Workbook

Sheet Input
D4: Cable EcAc = | E4: =0.305*20000000 -> 6100000 | F4: ton
D6: Span | E6: Center | F6: Side
D7: Cable Span = | E7: 808 | F7: 334 | G7: m
D8: Girder L = | E8: 800 | F8: 320 | G8: m
D9: Dead Load w = | E9: 11.99 | F9: =+E9 -> 11.99 | G9: t/m
D10: Live Load p = | E10: 2.4 | F10: 2.4 | G10: t/m
D11: Girder EI = | E11: 34650000 | F11: 27300000 | G11: t-m^2
D12: f = | E12: 73 | F12: =+(F9*F8^2)/(E9*E8^2)*E12 -> 11.68 | G12: m
D13: n = | E13: =+E12/E8 -> 0.09125 | F13: =+F12/F8 -> 0.0365
D14: L/f = | E14: =1/E13 -> 10.95890411 | F14: =1/F13 -> 27.39726027
D15: ε = | E15: 1.2e-05 | F15: /°C
D16: t rise = | E16: 30 | F16: °C
D17: t drop = | E17: -30 | F17: °C
D19: cable top to saddle = | E19: 86.12481481 | F19: m
E21: Main | F21: Side Top | G21: Side | H21: Side Bot | I21: Anchor
D22: b or L(m) | E22: =+(E7-E8)/2 -> 4 | F22: =+F7-(F8+H22) -> 4 | H22: 10 | I22: 10
D23: h1(m) | E23: =+(E19*F8-4*F22*F12+4*H22*F12)/(F22+F8+H22) -> 83.35407407
D24: tanα | E24: =4*E12/E8 -> 0.365 | F24: =+(E23+4*F12)/F8 -> 0.4064814815 | G24: =+E23/F8 -> 0.2604814815 | H24: =+(E23-4*F12)/F8 -> 0.1144814815
D25: secα | E25: =+SQRT(1+E24^2) -> 1.064530413 | F25: =+SQRT(1+F24^2) -> 1.079456898 | G25: =+SQRT(1+G24^2) -> 1.03336857 | H25: =+SQRT(1+H24^2) -> 1.006531673 | I25: =+SQRT(2) -> 1.414213562

Sheet PeeryMethod1 (hidden)
D3: Cable EcAc = | E3: =+Input!E4 -> 6100000 | F3: ton | P3: x/L | Q3: 0 | R3: 0.1 | S3: =+R3+0.1 -> 0.2 | T3: =+S3+0.1 -> 0.3 | U3: =+T3+0.1 -> 0.4 | V3: =+U3+0.1 -> 0.5 | W3: 0 | X3: =+R3 -> 0.1 | Y3: =+S3 -> 0.2 | Z3: =+T3 -> 0.3 | AA3: =+U3 -> 0.4 | AB3: =+V3 -> 0.5
O4: Hmin | P4: Mmax | Q4: 0 | R4: =+PeeryMethod1!M97 -> 2573.028021 | S4: =+PeeryMethod1!T97 -> 3836.012367 | T4: =+PeeryMethod1!AA97 -> 4449.338626 | U4: =+PeeryMethod1!AH97 -> 4724.518848 | V4: =+PeeryMethod1!AO97 -> 4802.841052 | W4: 0 | X4: =+PeeryMethod1!AV97 -> 4342.203221 | Y4: =+PeeryMethod1!BC97 -> 4752.920259 | Z4: =+PeeryMethod1!BJ97 -> 4293.97464 | AA4: =+PeeryMethod1!BQ97 -> 3957.698213 | AB4: =+PeeryMethod1!BX97 -> 3891.33495
D5: Span | E5: Center | F5: Side | P5: H(Mmax) | Q5: 0 | R5: =+PeeryMethod1!M101 -> -75.67871769 | S5: =+PeeryMethod1!T101 -> -63.88107033 | T5: =+PeeryMethod1!AA101 -> -63.88107033 | U5: =+PeeryMethod1!AH101 -> -63.88107033 | V5: =+PeeryMethod1!AO101 -> -63.88107033 | W5: 0 | X5: =+PeeryMethod1!AV101 -> 278.5334358 | Y5: =+PeeryMethod1!BC101 -> 278.5334358 | Z5: =+PeeryMethod1!BJ101 -> 517.0615162 | AA5: =+PeeryMethod1!BQ101 -> 436.3801552 | AB5: =+PeeryMethod1!BX101 -> 463.4678882
D6: Cable Span = | E6: =+Input!E7 -> 808 | F6: =+Input!F7 -> 334 | G6: m | P6: Mmin | Q6: 0 | R6: =+PeeryMethod1!M98 -> -2355.414074 | S6: =+PeeryMethod1!T98 -> -3511.153079 | T6: =+PeeryMethod1!AA98 -> -4072.538751 | U6: =+PeeryMethod1!AH98 -> -4324.414863 | V6: =+PeeryMethod1!AO98 -> -4396.104218 | W6: 0 | X6: =+PeeryMethod1!AV98 -> -3899.676822 | Y6: =+PeeryMethod1!BC98 -> -4217.206558 | Z6: =+PeeryMethod1!BJ98 -> -3738.64496 | AA6: =+PeeryMethod1!BQ98 -> -3398.274603 | AB6: =+PeeryMethod1!BX98 -> -3331.224357
D7: Girder L = | E7: =+Input!E8 -> 800 | F7: =+Input!F8 -> 320 | G7: m | P7: H(Mmin) | Q7: 0 | R7: =+PeeryMethod1!M102 -> 2477.868272 | S7: =+PeeryMethod1!T102 -> 2466.070625 | T7: =+PeeryMethod1!AA102 -> 2466.070625 | U7: =+PeeryMethod1!AH102 -> 2466.070625 | V7: =+PeeryMethod1!AO102 -> 2466.070625 | W7: 0 | X7: =+PeeryMethod1!AV102 -> 2123.656119 | Y7: =+PeeryMethod1!BC102 -> 2123.656119 | Z7: =+PeeryMethod1!BJ102 -> 1885.128039 | AA7: =+PeeryMethod1!BQ102 -> 1965.8094 | AB7: =+PeeryMethod1!BX102 -> 1938.721667
D8: Dead Load w = | E8: =+Input!E9 -> 11.99 | F8: =+Input!F9 -> 11.99 | G8: t/m | O8: Hmax | P8: Mmax | Q8: 0 | R8: =+PeeryMethod2!M97 -> 2318.577043 | S8: =+PeeryMethod2!T97 -> 3380.869969 | T8: =+PeeryMethod2!AA97 -> 3865.424676 | U8: =+PeeryMethod2!AH97 -> 4073.298507 | V8: =+PeeryMethod2!AO97 -> 4130.731589 | W8: 0 | X8: =+PeeryMethod2!AV97 -> 3867.964776 | Y8: =+PeeryMethod2!BC97 -> 4178.334058 | Z8: =+PeeryMethod2!BJ97 -> 3782.41451 | AA8: =+PeeryMethod2!BQ97 -> 3546.76995 | AB8: =+PeeryMethod2!BX97 -> 3493.073084
D9: Live Load p = | E9: =+Input!E10 -> 2.4 | F9: =+Input!F10 -> 2.4 | G9: t/m | P9: H(Mmax) | Q9: 0 | R9: =+PeeryMethod2!M101 -> -119.3845516 | S9: =+PeeryMethod2!T101 -> -106.0113806 | T9: =+PeeryMethod2!AA101 -> -94.13950218 | U9: =+PeeryMethod2!AH101 -> -94.13950218 | V9: =+PeeryMethod2!AO101 -> -94.13950218 | W9: 0 | X9: =+PeeryMethod2!AV101 -> 2.25048287 | Y9: =+PeeryMethod2!BC101 -> 240.2155014 | Z9: =+PeeryMethod2!BJ101 -> 473.967624 | AA9: =+PeeryMethod2!BQ101 -> 393.9506353 | AB9: =+PeeryMethod2!BX101 -> 420.3864075
D10: Girder EI = | E10: =+Input!E11 -> 34650000 | F10: =+Input!F11 -> 27300000 | G10: t-m^2 | P10: Mmin | Q10: 0 | R10: =+PeeryMethod2!M98 -> -2092.703922 | S10: =+PeeryMethod2!T98 -> -3050.587194 | T10: =+PeeryMethod2!AA98 -> -3487.523402 | U10: =+PeeryMethod2!AH98 -> -3675.074554 | V10: =+PeeryMethod2!AO98 -> -3726.892721 | W10: 0 | X10: =+PeeryMethod2!AV98 -> -3418.672089 | Y10: =+PeeryMethod2!BC98 -> -3647.312804 | Z10: =+PeeryMethod2!BJ98 -> -3236.529193 | AA10: =+PeeryMethod2!BQ98 -> -2998.19651 | AB10: =+PeeryMethod2!BX98 -> -2944.097184
D11: f = | E11: =+Input!E12 -> 73 | F11: =+(F8*F7^2)/(E8*E7^2)*E11 -> 11.68 | G11: m | P11: H(Mmin) | Q11: 0 | R11: =+PeeryMethod2!M102 -> 2483.465745 | S11: =+PeeryMethod2!T102 -> 2470.092574 | T11: =+PeeryMethod2!AA102 -> 2458.220696 | U11: =+PeeryMethod2!AH102 -> 2458.220696 | V11: =+PeeryMethod2!AO102 -> 2458.220696 | W11: 0 | X11: =+PeeryMethod2!AV102 -> 2361.830711 | Y11: =+PeeryMethod2!BC102 -> 2123.865692 | Z11: =+PeeryMethod2!BJ102 -> 1890.113569 | AA11: =+PeeryMethod2!BQ102 -> 1970.130558 | AB11: =+PeeryMethod2!BX102 -> 1943.694786
D12: n = | E12: =+E11/E7 -> 0.09125 | F12: =+F11/F7 -> 0.0365 | O12: Interpolated | P12: Mmax | Q12: =+Q4+(Q8-Q4)/PeeryMethod1!$E$51*Q13 -> 0 | R12: =+R4+(R8-R4)/PeeryMethod1!$E$51*R13 -> 2580.352064 | S12: =+S4+(S8-S4)/PeeryMethod1!$E$51*S13 -> 3847.077403 | T12: =+T4+(T8-T4)/PeeryMethod1!$E$51*T13 -> 4463.598674 | U12: =+U4+(U8-U4)/PeeryMethod1!$E$51*U13 -> 4740.422617 | V12: =+V4+(V8-V4)/PeeryMethod1!$E$51*V13 -> 4819.254966 | W12: =+W4+(W8-W4)/PeeryMethod1!$E$51*W13 -> 0 | X12: =+X4+(X8-X4)/PeeryMethod1!$E$51*X13 -> 4296.046475 | Y12: =+Y4+(Y8-Y4)/PeeryMethod1!$E$51*Y13 -> 4691.924953 | Z12: =+Z4+(Z8-Z4)/PeeryMethod1!$E$51*Z13 -> 4193.347995 | AA12: =+AA4+(AA8-AA4)/PeeryMethod1!$E$51*AA13 -> 3889.462006 | AB12: =+AB4+(AB8-AB4)/PeeryMethod1!$E$51*AB13 -> 3821.114353
D13: L/f = | E13: =1/E12 -> 10.95890411 | F13: =1/F12 -> 27.39726027 | P13: H(Mmax) | Q13: =+PeeryMethod1!$E$51*Q5/(PeeryMethod1!$E$51-(Q9-Q5)) -> 0 | R13: =+PeeryMethod1!$E$51*R5/(PeeryMethod1!$E$51-(R9-R5)) -> -74.42070166 | S13: =+PeeryMethod1!$E$51*S5/(PeeryMethod1!$E$51-(S9-S5)) -> -62.85683403 | T13: =+PeeryMethod1!$E$51*T5/(PeeryMethod1!$E$51-(T9-T5)) -> -63.1421144 | U13: =+PeeryMethod1!$E$51*U5/(PeeryMethod1!$E$51-(U9-U5)) -> -63.1421144 | V13: =+PeeryMethod1!$E$51*V5/(PeeryMethod1!$E$51-(V9-V5)) -> -63.1421144 | W13: =+PeeryMethod1!$E$51*W5/(PeeryMethod1!$E$51-(W9-W5)) -> 0 | X13: =+PeeryMethod1!$E$51*X5/(PeeryMethod1!$E$51-(X9-X5)) -> 251.6433298 | Y13: =+PeeryMethod1!$E$51*Y5/(PeeryMethod1!$E$51-(Y9-Y5)) -> 274.4657883 | Z13: =+PeeryMethod1!$E$51*Z5/(PeeryMethod1!$E$51-(Z9-Z5)) -> 508.5847144 | AA13: =+PeeryMethod1!$E$51*AA5/(PeeryMethod1!$E$51-(AA9-AA5)) -> 429.3345714 | AB13: =+PeeryMethod1!$E$51*AB5/(PeeryMethod1!$E$51-(AB9-AB5)) -> 455.8718627
D14: ε = | E14: =+Input!E15 -> 1.2e-05 | F14: /°C | P14: Mmin | Q14: =+Q6+(Q10-Q6)/PeeryMethod1!$E$51*Q15 -> 0 | R14: =+R6+(R10-R6)/PeeryMethod1!$E$51*R15 -> -2103.095448 | S14: =+S6+(S10-S6)/PeeryMethod1!$E$51*S15 -> -3071.17972 | T14: =+T6+(T10-T6)/PeeryMethod1!$E$51*T15 -> -3516.23857 | U14: =+U6+(U10-U6)/PeeryMethod1!$E$51*U15 -> -3706.947079 | V14: =+V6+(V10-V6)/PeeryMethod1!$E$51*V15 -> -3759.740612 | W14: =+W6+(W10-W6)/PeeryMethod1!$E$51*W15 -> 0 | X14: =+X6+(X10-X6)/PeeryMethod1!$E$51*X15 -> -3464.508234 | Y14: =+Y6+(Y10-Y6)/PeeryMethod1!$E$51*Y15 -> -3749.076749 | Z14: =+Z6+(Z10-Z6)/PeeryMethod1!$E$51*Z15 -> -3371.839364 | AA14: =+AA6+(AA10-AA6)/PeeryMethod1!$E$51*AA15 -> -3093.579396 | AB14: =+AB6+(AB10-AB6)/PeeryMethod1!$E$51*AB15 -> -3040.381587
D15: t rise = | E15: =+Input!E16 -> 30 | F15: °C | P15: H(Mmin) | Q15: =+PeeryMethod1!$E$51*Q7/(PeeryMethod1!$E$51-(Q11-Q7)) -> 0 | R15: =+PeeryMethod1!$E$51*R7/(PeeryMethod1!$E$51-(R11-R7)) -> 2483.244336 | S15: =+PeeryMethod1!$E$51*S7/(PeeryMethod1!$E$51-(S11-S7)) -> 2469.912747 | T15: =+PeeryMethod1!$E$51*T7/(PeeryMethod1!$E$51-(T11-T7)) -> 2458.606005 | U15: =+PeeryMethod1!$E$51*U7/(PeeryMethod1!$E$51-(U11-U7)) -> 2458.606005 | V15: =+PeeryMethod1!$E$51*V7/(PeeryMethod1!$E$51-(V11-V7)) -> 2458.606005 | W15: =+PeeryMethod1!$E$51*W7/(PeeryMethod1!$E$51-(W11-W7)) -> 0 | X15: =+PeeryMethod1!$E$51*X7/(PeeryMethod1!$E$51-(X11-X7)) -> 2339.134457 | Y15: =+PeeryMethod1!$E$51*Y7/(PeeryMethod1!$E$51-(Y11-Y7)) -> 2123.828269 | Z15: =+PeeryMethod1!$E$51*Z7/(PeeryMethod1!$E$51-(Z11-Z7)) -> 1888.770068 | AA15: =+PeeryMethod1!$E$51*AA7/(PeeryMethod1!$E$51-(AA11-AA7)) -> 1969.100348 | AB15: =+PeeryMethod1!$E$51*AB7/(PeeryMethod1!$E$51-(AB11-AB7)) -> 1942.457896
D16: t drop = | E16: =+Input!E17 -> -30 | F16: °C
D18: cable top to saddle = | E18: =+Input!E19 -> 86.12481481 | F18: m
E20: Main | F20: Side Top | G20: Side | H20: Side Bot | I20: Anchor
D21: b or L(m) | E21: =+(E6-E7)/2 -> 4 | F21: =+F6-(F7+H21) -> 4 | H21: =+Input!H22 -> 10 | I21: =+Input!I22 -> 10
D22: h1(m) | E22: =+(E18*F7-4*F21*F11+4*H21*F11)/(F21+F7+H21) -> 83.35407407
D23: tanα | E23: =4*E11/E7 -> 0.365 | F23: =+(E22+4*F11)/F7 -> 0.4064814815 | G23: =+E22/F7 -> 0.2604814815 | H23: =+(E22-4*F11)/F7 -> 0.1144814815
D24: secα | E24: =+SQRT(1+E23^2) -> 1.064530413 | F24: =+SQRT(1+F23^2) -> 1.079456898 | G24: =+SQRT(1+G23^2) -> 1.03336857 | H24: =+SQRT(1+H23^2) -> 1.006531673 | I24: =+Input!I25 -> 1.414213562
D26: Span | F26: L | G26: n | H26: n2 | I26: secα | J26: sec2α | K26: sec3α | L26: LT | M26: LS
F27: (m) | L27: (m) | M27: (m)
D28: Anchor Span | F28: =+I21 -> 10 | G28: 0 | H28: =+G28^2 -> 0 | I28: =+I24 -> 1.414213562 | J28: =+I28^2 -> 2 | K28: =+I28^3 -> 2.828427125 | L28: =+F28*(J28+16/3*H28) -> 20 | M28: =+F28*(K28+8*H28*I28) -> 28.28427125
D29: End | F29: =+H21 -> 10 | G29: 0 | H29: 0 | I29: =+H24 -> 1.006531673 | J29: 1.01310601 | K29: 1.019723287 | L29: 10.1310601 | M29: 10.19723287
D30: Side Span | F30: =+F7 -> 320 | G30: =+F12 -> 0.0365 | H30: 0.00133225 | I30: =+G24 -> 1.03336857 | J30: 1.067850602 | K30: 1.10348325 | L30: 343.9858994 | M30: 356.6390056
D31: b1 | F31: =+F21 -> 4 | G31: 0 | H31: 0 | I31: =+F24 -> 1.079456898 | J31: 1.165227195 | K31: 1.257812533 | L31: 4.660908779 | M31: 5.031250133
D32: b | F32: =+E21 -> 4 | G32: 0 | H32: 0 | I32: =+E24 -> 1.064530413 | J32: 1.133225 | K32: 1.206352477 | L32: 4.5329 | M32: 4.825409909
D33: Main Span | F33: =+E7 -> 800 | G33: =+E12 -> 0.09125 | H33: 0.0083265625 | I33: 1 | J33: 1 | K33: 1 | L33: 835.5266667 | M33: 853.29
D34: ∑ | L34: =+SUM(L28:L32)*2+L33 -> 1602.148203 | M34: =+SUM(M28:M32)*2+M33 -> 1663.244339
D36: Ls/(EcAc) = | E36: =+M34/E3 -> 0.0002726630065 | F36: m/ton
D38: Hr1 = Hw = | E38: =+E8*E7^2/(8*E11) -> 13139.72603 | F38: ton
E40: Main | F40: Side
D41: (cl)^2 | E41: =+E38*E$7^2/E$10 -> 242.6962383 | F41: =+E38*F$7^2/F$10 -> 49.28600532
D42: cl | E42: =+SQRT(E41) -> 15.57871106 | F42: =+SQRT(F41) -> 7.020399228
D43: c | E43: =+E42/E$7 -> 0.01947338883 | F43: =+F42/F$7 -> 0.02193874759
D44: D | E44: =64*E$11^2*E$7/(E$10*E41)*(1/12-1/E41+2*TANH(E42/2)/E42^3) -> 0.002587236611 | F44: =64*F$11^2*F$7/(F$10*F41)*(1/12-1/F41+2*TANH(F42/2)/F42^3) -> 0.0001428903912
D45: Dtotal | E45: =+E44+2*F44+E$36 -> 0.0031456804
D46: D/D0 | E46: =+E45/E44 -> 1.215845658 | F46: =+E45/F44 -> 22.01463914
D47: Hlive | E47: =+E38/E$8*E$9/E46 -> 2163.216169 | F47: =+E38/F$8*F$9/F46 -> 119.4721826
D48: Hlive total | E48: =+E47+2*F47 -> 2402.160534
D49: Ht(+) | E49: =-E$14*E$15*$L$34/$E45 -> -183.3540856
D50: Ht(-) | E50: =-E$14*E$16*$L$34/$E45 -> 183.3540856
D51: Hmax | E51: =+E48+E50 -> 2585.514619
E53: Hr min | F53: Hr min
E54: Main | F54: Side
D55: L | E55: =+E7 -> 800 | F55: =+F7 -> 320
D56: f | E56: =+E11 -> 73 | F56: =+F11 -> 11.68
D57: EI | E57: =+E10 -> 34650000 | F57: =+F10 -> 27300000
D58: (cl)^2 | E58: =+E41 -> 242.6962383 | F58: =+F41 -> 49.28600532
D59: cl | E59: =E42 -> 15.57871106 | F59: =F42 -> 7.020399228
D60: c | E60: =+E43 -> 0.01947338883 | F60: =+F43 -> 0.02193874759
D61: D | E61: =+E45 -> 0.0031456804 | F61: =+E45 -> 0.0031456804
C63: mh | D63: x/L
D64: 0 | E64: =-8*E$56/E$58*(TANH(E$59/2)*SINH(E$59*$D64)-COSH(E$59*$D64)+1) -> 0 | F64: =-8*F$56/F$58*(TANH(F$59/2)*SINH(F$59*$D64)-COSH(F$59*$D64)+1) -> 0
D65: 0.1 | E65: =-8*E$56/E$58*(TANH(E$59/2)*SINH(E$59*$D65)-COSH(E$59*$D65)+1) -> -1.899570212 | F65: -0.9537525024
D66: 0.2 | E66: -2.299582105 | F66: -1.423784478
D67: 0.3 | E67: -2.383784834 | F67: -1.651428272
D68: 0.4 | E68: -2.401358264 | F68: -1.75356489
D69: 0.5 | E69: -2.40430718 | F69: -1.782635166
D72: k/L
C73: -ηH/D | D73: 0 | E73: =-8*E$56/(E$57*E$60^4*E$55^2)*(TANH(E$59/2)*SINH(E$59*$D73)-COSH(E$59*$D73)+1-E$58/2*$D73*(1-$D73))/E$61 -> 0 | F73: =-8*F$56/(F$57*F$60^4*F$55^2)*(TANH(F$59/2)*SINH(F$59*$D73)-COSH(F$59*$D73)+1-F$58/2*$D73*(1-$D73))/F$61 -> 0
D74: =+D73+0.05 -> 0.05 | E74: =-8*E$56/(E$57*E$60^4*E$55^2)*(TANH(E$59/2)*SINH(E$59*$D74)-COSH(E$59*$D74)+1-E$58/2*$D74*(1-$D74))/E$61 -> 0.3040626776 | F74: 0.04014133182
D75: 0.1 | E75: 0.5898484615 | F75: 0.07865428877
D76: 0.15 | E76: 0.8481338768 | F76: 0.1143530604
D77: 0.2 | E77: 1.074686352 | F77: 0.1464050538
D78: 0.25 | E78: 1.267563647 | F78: 0.1742272479
D79: 0.3 | E79: 1.425874611 | F79: 0.1974136158
D80: 0.35 | E80: 1.549210593 | F80: 0.2156845805
D81: 0.4 | E81: 1.6373847 | F81: 0.2288522116
D82: 0.45 | E82: 1.69031255 | F82: 0.2367968306
D83: 0.5 | E83: 1.707958439 | F83: 0.2394521127
H84: 1 | I84: =+H84+1 -> 2 | J84: 3 | K84: 4 | L84: 5 | M84: 6 | N84: 7 | O84: 1 | P84: =+O84+1 -> 2 | Q84: 3 | R84: 4 | S84: 5 | T84: 6 | U84: 7 | V84: 1 | W84: =+V84+1 -> 2 | X84: 3 | Y84: 4 | Z84: 5 | AA84: 6 | AB84: 7 | AC84: 1 | AD84: =+AC84+1 -> 2 | AE84: 3 | AF84: 4 | AG84: 5 | AH84: 6 | AI84: 7 | AJ84: 1 | AK84: =+AJ84+1 -> 2 | AL84: 3 | AM84: 4 | AN84: 5 | AO84: 6 | AP84: 7 | AQ84: 1 | AR84: =+AQ84+1 -> 2 | AS84: 3 | AT84: 4 | AU84: 5 | AV84: 6 | AW84: 7 | AX84: 1 | AY84: =+AX84+1 -> 2 | AZ84: 3 | BA84: 4 | BB84: 5 | BC84: 6 | BD84: 7 | BE84: 1 | BF84: =+BE84+1 -> 2 | BG84: 3 | BH84: 4 | BI84: 5 | BJ84: 6 | BK84: 7 | BL84: 1 | BM84: =+BL84+1 -> 2 | BN84: 3 | BO84: 4 | BP84: 5 | BQ84: 6 | BR84: 7 | BS84: 1 | BT84: =+BS84+1 -> 2 | BU84: 3 | BV84: 4 | BW84: 5 | BX84: 6 | BY84: 7
H85: Side | O85: Side | V85: Side | AC85: Side | AJ85: Side | AQ85: Center | AX85: Center | BE85: Center | BL85: Center | BS85: Center
D86: x/L | H86: 0.1 | O86: =+H86+0.1 -> 0.2 | V86: 0.3 | AC86: 0.4 | AJ86: 0.5 | AQ86: 0.1 | AX86: 0.2 | BE86: 0.3 | BL86: 0.4 | BS86: 0.5
D87: mh | H87: =+INDEX($F$64:$F$69,MATCH(H86,$D$64:$D$69,0)) -> -0.9537525024 | O87: =+INDEX($F$64:$F$69,MATCH(O86,$D$64:$D$69,0)) -> -1.423784478 | V87: =+INDEX($F$64:$F$69,MATCH(V86,$D$64:$D$69,0)) -> -1.651428272 | AC87: =+INDEX($F$64:$F$69,MATCH(AC86,$D$64:$D$69,0)) -> -1.75356489 | AJ87: =+INDEX($F$64:$F$69,MATCH(AJ86,$D$64:$D$69,0)) -> -1.782635166 | AQ87: =+INDEX($E$64:$E$69,MATCH(AQ86,$D$64:$D$69,0)) -> -1.899570212 | AX87: =+INDEX($E$64:$E$69,MATCH(AX86,$D$64:$D$69,0)) -> -2.299582105 | BE87: =+INDEX($E$64:$E$69,MATCH(BE86,$D$64:$D$69,0)) -> -2.383784834 | BL87: =+INDEX($E$64:$E$69,MATCH(BL86,$D$64:$D$69,0)) -> -2.401358264 | BS87: =+INDEX($E$64:$E$69,MATCH(BS86,$D$64:$D$69,0)) -> -2.40430718
D88: cl | H88: =+$F$42 -> 7.020399228 | O88: =+$F$42 -> 7.020399228 | V88: =+$F$42 -> 7.020399228 | AC88: =+$F$42 -> 7.020399228 | AJ88: =+$F$42 -> 7.020399228 | AQ88: =+$E$42 -> 15.57871106 | AX88: =+$E$42 -> 15.57871106 | BE88: =+$E$42 -> 15.57871106 | BL88: =+$E$42 -> 15.57871106 | BS88: =+$E$42 -> 15.57871106
D89: c | H89: =+$F$43 -> 0.02193874759 | O89: =+$F$43 -> 0.02193874759 | V89: =+$F$43 -> 0.02193874759 | AC89: =+$F$43 -> 0.02193874759 | AJ89: =+$F$43 -> 0.02193874759 | AQ89: =+$E$43 -> 0.01947338883 | AX89: =+$E$43 -> 0.01947338883 | BE89: =+$E$43 -> 0.01947338883 | BL89: =+$E$43 -> 0.01947338883 | BS89: =+$E$43 -> 0.01947338883
D92: span | H92: 1 | I92: 2 | J92: 3 | K92: Sub Total | L92: Temp | M92: Total | O92: 1 | P92: 2 | Q92: 3 | R92: Sub Total | S92: Temp | T92: Total | V92: 1 | W92: 2 | X92: 3 | Y92: Sub Total | Z92: Temp | AA92: Total | AC92: 1 | AD92: 2 | AE92: 3 | AF92: Sub Total | AG92: Temp | AH92: Total | AJ92: 1 | AK92: 2 | AL92: 3 | AM92: Sub Total | AN92: Temp | AO92: Total | AQ92: 1 | AR92: 2 | AS92: 3 | AT92: Sub Total | AU92: Temp | AV92: Total | AX92: 1 | AY92: 2 | AZ92: 3 | BA92: Sub Total | BB92: Temp | BC92: Total | BE92: 1 | BF92: 2 | BG92: 3 | BH92: Sub Total | BI92: Temp | BJ92: Total | BL92: 1 | BM92: 2 | BN92: 3 | BO92: Sub Total | BP92: Temp | BQ92: Total | BS92: 1 | BT92: 2 | BU92: 3 | BV92: Sub Total | BW92: Temp | BX92: Total
D93: L | H93: =+$F$7 -> 320 | I93: =+$E$7 -> 800 | J93: =+$F$7 -> 320 | O93: =+$F$7 -> 320 | P93: =+$E$7 -> 800 | Q93: =+$F$7 -> 320 | V93: =+$F$7 -> 320 | W93: =+$E$7 -> 800 | X93: =+$F$7 -> 320 | AC93: =+$F$7 -> 320 | AD93: =+$E$7 -> 800 | AE93: =+$F$7 -> 320 | AJ93: =+$F$7 -> 320 | AK93: =+$E$7 -> 800 | AL93: =+$F$7 -> 320 | AQ93: =+$F$7 -> 320 | AR93: =+$E$7 -> 800 | AS93: =+$F$7 -> 320 | AX93: =+$F$7 -> 320 | AY93: =+$E$7 -> 800 | AZ93: =+$F$7 -> 320 | BE93: =+$F$7 -> 320 | BF93: =+$E$7 -> 800 | BG93: =+$F$7 -> 320 | BL93: =+$F$7 -> 320 | BM93: =+$E$7 -> 800 | BN93: =+$F$7 -> 320 | BS93: =+$F$7 -> 320 | BT93: =+$E$7 -> 800 | BU93: =+$F$7 -> 320
D94: p | H94: =+$F$9 -> 2.4 | I94: =+$E$9 -> 2.4 | J94: =+$F$9 -> 2.4 | O94: =+$F$9 -> 2.4 | P94: =+$E$9 -> 2.4 | Q94: =+$F$9 -> 2.4 | V94: =+$F$9 -> 2.4 | W94: =+$E$9 -> 2.4 | X94: =+$F$9 -> 2.4 | AC94: =+$F$9 -> 2.4 | AD94: =+$E$9 -> 2.4 | AE94: =+$F$9 -> 2.4 | AJ94: =+$F$9 -> 2.4 | AK94: =+$E$9 -> 2.4 | AL94: =+$F$9 -> 2.4 | AQ94: =+$F$9 -> 2.4 | AR94: =+$E$9 -> 2.4 | AS94: =+$F$9 -> 2.4 | AX94: =+$F$9 -> 2.4 | AY94: =+$E$9 -> 2.4 | AZ94: =+$F$9 -> 2.4 | BE94: =+$F$9 -> 2.4 | BF94: =+$E$9 -> 2.4 | BG94: =+$F$9 -> 2.4 | BL94: =+$F$9 -> 2.4 | BM94: =+$E$9 -> 2.4 | BN94: =+$F$9 -> 2.4 | BS94: =+$F$9 -> 2.4 | BT94: =+$E$9 -> 2.4 | BU94: =+$F$9 -> 2.4
D95: ∑+ΔM/P | H95: =+K127 -> 187.3557502 | I95: =+K151 -> 0 | J95: =+K175 -> 0 | O95: =+R127 -> 279.2934114 | P95: =+R151 -> 0 | Q95: =+R175 -> 0 | V95: =+Y127 -> 323.9486333 | W95: =+Y151 -> 0 | X95: =+Y175 -> 0 | AC95: =+AF127 -> 343.9840282 | AD95: =+AF151 -> 0 | AE95: =+AF175 -> 0 | AJ95: =+AM127 -> 349.6865322 | AK95: =+AM151 -> 0 | AL95: =+AM175 -> 0 | AQ95: =+AT127 -> 0 | AR95: =+AT151 -> 124.8096644 | AS95: =+AT175 -> 0 | AX95: =+BA127 -> 0 | AY95: =+BA151 -> 135.3525776 | AZ95: =+BA175 -> 0 | BE95: =+BH127 -> 0 | BF95: =+BH151 -> 120.528061 | BG95: =+BH175 -> 0 | BL95: =+BO127 -> 0 | BM95: =+BO151 -> 109.9187301 | BN95: =+BO175 -> 0 | BS95: =+BV127 -> 0 | BT95: =+BV151 -> 107.8279814 | BU95: =+BV175 -> 0
D96: ∑-ΔM/P | H96: =+K128 -> -0.265081583 | I96: =+K152 -> -64.47496639 | J96: =+K176 -> -8.902163067 | O96: =+R128 -> 0 | P96: =+R152 -> -96.24976728 | Q96: =+R176 -> -13.2893613 | V96: =+Y128 -> 0 | W96: =+Y152 -> -111.6387974 | X96: =+Y176 -> -15.41414962 | AC96: =+AF128 -> 0 | AD96: =+AF152 -> -118.5433716 | AE96: =+AF176 -> -16.36747537 | AJ96: =+AM128 -> 0 | AK96: =+AM152 -> -120.5085618 | AL96: =+AM176 -> -16.63881237 | AQ96: =+AT128 -> -17.73026413 | AR96: =+AT152 -> -96.79650315 | AS96: =+AT176 -> -17.73026413 | AX96: =+BA128 -> -21.46390687 | AY96: =+BA152 -> -101.440399 | AZ96: =+BA176 -> -21.46390687 | BE96: =+BH128 -> -22.24984077 | BF96: =+BH152 -> -85.37413588 | BG96: =+BH176 -> -22.24984077 | BL96: =+BO128 -> -22.41386816 | BM96: =+BO152 -> -74.5056478 | BN96: =+BO176 -> -22.41386816 | BS96: =+BV128 -> -22.44139284 | BT96: =+BV152 -> -72.37141112 | BU96: =+BV176 -> -22.44139284
D97: +M | H97: =+H93*H94*H95*0.05/3 -> 2398.153603 | I97: =+I93*I94*I95*0.05/3 -> 0 | J97: =+J93*J94*J95*0.05/3 -> 0 | K97: =+SUM(H97:J97) -> 2398.153603 | L97: =+$E$49*H87 -> 174.8744179 | M97: =+K97+L97 -> 2573.028021 | O97: =+O93*O94*O95*0.05/3 -> 3574.955666 | P97: =+P93*P94*P95*0.05/3 -> 0 | Q97: =+Q93*Q94*Q95*0.05/3 -> 0 | R97: =+SUM(O97:Q97) -> 3574.955666 | S97: =+$E$49*O87 -> 261.0567011 | T97: =+R97+S97 -> 3836.012367 | V97: =+V93*V94*V95*0.05/3 -> 4146.542506 | W97: =+W93*W94*W95*0.05/3 -> 0 | X97: =+X93*X94*X95*0.05/3 -> 0 | Y97: =+SUM(V97:X97) -> 4146.542506 | Z97: =+$E$49*V87 -> 302.7961207 | AA97: =+Y97+Z97 -> 4449.338626 | AC97: =+AC93*AC94*AC95*0.05/3 -> 4402.995561 | AD97: =+AD93*AD94*AD95*0.05/3 -> 0 | AE97: =+AE93*AE94*AE95*0.05/3 -> 0 | AF97: =+SUM(AC97:AE97) -> 4402.995561 | AG97: =+$E$49*AC87 -> 321.5232868 | AH97: =+AF97+AG97 -> 4724.518848 | AJ97: =+AJ93*AJ94*AJ95*0.05/3 -> 4475.987612 | AK97: =+AK93*AK94*AK95*0.05/3 -> 0 | AL97: =+AL93*AL94*AL95*0.05/3 -> 0 | AM97: =+SUM(AJ97:AL97) -> 4475.987612 | AN97: =+$E$49*AJ87 -> 326.8534407 | AO97: =+AM97+AN97 -> 4802.841052 | AQ97: =+AQ93*AQ94*AQ95*0.05/3 -> 0 | AR97: =+AR93*AR94*AR95*0.05/3 -> 3993.909261 | AS97: =+AS93*AS94*AS95*0.05/3 -> 0 | AT97: =+SUM(AQ97:AS97) -> 3993.909261 | AU97: =+$E$49*AQ87 -> 348.2939592 | AV97: =+AT97+AU97 -> 4342.203221 | AX97: =+AX93*AX94*AX95*0.05/3 -> 0 | AY97: =+AY93*AY94*AY95*0.05/3 -> 4331.282484 | AZ97: =+AZ93*AZ94*AZ95*0.05/3 -> 0 | BA97: =+SUM(AX97:AZ97) -> 4331.282484 | BB97: =+$E$49*AX87 -> 421.6377741 | BC97: =+BA97+BB97 -> 4752.920259 | BE97: =+BE93*BE94*BE95*0.05/3 -> 0 | BF97: =+BF93*BF94*BF95*0.05/3 -> 3856.897952 | BG97: =+BG93*BG94*BG95*0.05/3 -> 0 | BH97: =+SUM(BE97:BG97) -> 3856.897952 | BI97: =+$E$49*BE87 -> 437.0766885 | BJ97: =+BH97+BI97 -> 4293.97464 | BL97: =+BL93*BL94*BL95*0.05/3 -> 0 | BM97: =+BM93*BM94*BM95*0.05/3 -> 3517.399364 | BN97: =+BN93*BN94*BN95*0.05/3 -> 0 | BO97: =+SUM(BL97:BN97) -> 3517.399364 | BP97: =+$E$49*BL87 -> 440.2988486 | BQ97: =+BO97+BP97 -> 3957.698213 | BS97: =+BS93*BS94*BS95*0.05/3 -> 0 | BT97: =+BT93*BT94*BT95*0.05/3 -> 3450.495405 | BU97: =+BU93*BU94*BU95*0.05/3 -> 0 | BV97: =+SUM(BS97:BU97) -> 3450.495405 | BW97: =+$E$49*BS87 -> 440.8395444 | BX97: =+BV97+BW97 -> 3891.33495
D98: -M | H98: =+H93*H94*H96*0.05/3 -> -3.393044263 | I98: =+I93*I94*I96*0.05/3 -> -2063.198925 | J98: =+J93*J94*J96*0.05/3 -> -113.9476873 | K98: =+SUM(H98:J98) -> -2180.539656 | L98: =+$E$50*H87 -> -174.8744179 | M98: =+K98+L98 -> -2355.414074 | O98: =+O93*O94*O96*0.05/3 -> 0 | P98: =+P93*P94*P96*0.05/3 -> -3079.992553 | Q98: =+Q93*Q94*Q96*0.05/3 -> -170.1038247 | R98: =+SUM(O98:Q98) -> -3250.096378 | S98: =+$E$50*O87 -> -261.0567011 | T98: =+R98+S98 -> -3511.153079 | V98: =+V93*V94*V96*0.05/3 -> 0 | W98: =+W93*W94*W96*0.05/3 -> -3572.441515 | X98: =+X93*X94*X96*0.05/3 -> -197.3011151 | Y98: =+SUM(V98:X98) -> -3769.742631 | Z98: =+$E$50*V87 -> -302.7961207 | AA98: =+Y98+Z98 -> -4072.538751 | AC98: =+AC93*AC94*AC96*0.05/3 -> 0 | AD98: =+AD93*AD94*AD96*0.05/3 -> -3793.387892 | AE98: =+AE93*AE94*AE96*0.05/3 -> -209.5036848 | AF98: =+SUM(AC98:AE98) -> -4002.891577 | AG98: =+$E$50*AC87 -> -321.5232868 | AH98: =+AF98+AG98 -> -4324.414863 | AJ98: =+AJ93*AJ94*AJ96*0.05/3 -> 0 | AK98: =+AK93*AK94*AK96*0.05/3 -> -3856.273979 | AL98: =+AL93*AL94*AL96*0.05/3 -> -212.9767983 | AM98: =+SUM(AJ98:AL98) -> -4069.250777 | AN98: =+$E$50*AJ87 -> -326.8534407 | AO98: =+AM98+AN98 -> -4396.104218 | AQ98: =+AQ93*AQ94*AQ96*0.05/3 -> -226.9473809 | AR98: =+AR93*AR94*AR96*0.05/3 -> -3097.488101 | AS98: =+AS93*AS94*AS96*0.05/3 -> -226.9473809 | AT98: =+SUM(AQ98:AS98) -> -3551.382863 | AU98: =+$E$50*AQ87 -> -348.2939592 | AV98: =+AT98+AU98 -> -3899.676822 | AX98: =+AX93*AX94*AX96*0.05/3 -> -274.7380079 | AY98: =+AY93*AY94*AY96*0.05/3 -> -3246.092768 | AZ98: =+AZ93*AZ94*AZ96*0.05/3 -> -274.7380079 | BA98: =+SUM(AX98:AZ98) -> -3795.568784 | BB98: =+$E$50*AX87 -> -421.6377741 | BC98: =+BA98+BB98 -> -4217.206558 | BE98: =+BE93*BE94*BE96*0.05/3 -> -284.7979618 | BF98: =+BF93*BF94*BF96*0.05/3 -> -2731.972348 | BG98: =+BG93*BG94*BG96*0.05/3 -> -284.7979618 | BH98: =+SUM(BE98:BG98) -> -3301.568272 | BI98: =+$E$50*BE87 -> -437.0766885 | BJ98: =+BH98+BI98 -> -3738.64496 | BL98: =+BL93*BL94*BL96*0.05/3 -> -286.8975125 | BM98: =+BM93*BM94*BM96*0.05/3 -> -2384.18073 | BN98: =+BN93*BN94*BN96*0.05/3 -> -286.8975125 | BO98: =+SUM(BL98:BN98) -> -2957.975754 | BP98: =+$E$50*BL87 -> -440.2988486 | BQ98: =+BO98+BP98 -> -3398.274603 | BS98: =+BS93*BS94*BS96*0.05/3 -> -287.2498283 | BT98: =+BT93*BT94*BT96*0.05/3 -> -2315.885156 | BU98: =+BU93*BU94*BU96*0.05/3 -> -287.2498283 | BV98: =+SUM(BS98:BU98) -> -2890.384812 | BW98: =+$E$50*BS87 -> -440.8395444 | BX98: =+BV98+BW98 -> -3331.224357
D99: ∑+ΔH/P | H99: =+L127 -> 8.412138115 | I99: =+L151 -> 0 | J99: =+L175 -> 0 | O99: =+S127 -> 9.333829315 | P99: =+S151 -> 0 | Q99: =+S175 -> 0 | V99: =+Z127 -> 9.333829315 | W99: =+Z151 -> 0 | X99: =+Z175 -> 0 | AC99: =+AG127 -> 9.333829315 | AD99: =+AG151 -> 0 | AE99: =+AG175 -> 0 | AJ99: =+AN127 -> 9.333829315 | AK99: =+AN151 -> 0 | AL99: =+AN175 -> 0 | AQ99: =+AU127 -> 0 | AR99: =+AU151 -> 14.43398504 | AS99: =+AU175 -> 0 | AX99: =+BB127 -> 0 | AY99: =+BB151 -> 14.43398504 | AZ99: =+BB175 -> 0 | BE99: =+BI127 -> 0 | BF99: =+BI151 -> 21.88798755 | BG99: =+BI175 -> 0 | BL99: =+BP127 -> 0 | BM99: =+BP151 -> 19.36669502 | BN99: =+BP175 -> 0 | BS99: =+BW127 -> 0 | BT99: =+BW151 -> 20.21318668 | BU99: =+BW175 -> 0
D100: ∑-ΔH/P | H100: =+M127 -> 0.9216912003 | I100: =+M151 -> 67.60136013 | J100: =+M175 -> 9.333829315 | O100: =+T127 -> 0 | P100: =+T151 -> 67.60136013 | Q100: =+T175 -> 9.333829315 | V100: =+AA127 -> 0 | W100: =+AA151 -> 67.60136013 | X100: =+AA175 -> 9.333829315 | AC100: =+AH127 -> 0 | AD100: =+AH151 -> 67.60136013 | AE100: =+AH175 -> 9.333829315 | AJ100: =+AO127 -> 0 | AK100: =+AO151 -> 67.60136013 | AL100: =+AO175 -> 9.333829315 | AQ100: =+AV127 -> 9.333829315 | AR100: =+AV151 -> 53.16737509 | AS100: =+AV175 -> 9.333829315 | AX100: =+BC127 -> 9.333829315 | AY100: =+BC151 -> 53.16737509 | AZ100: =+BC175 -> 9.333829315 | BE100: =+BJ127 -> 9.333829315 | BF100: =+BJ151 -> 45.71337258 | BG100: =+BJ175 -> 9.333829315 | BL100: =+BQ127 -> 9.333829315 | BM100: =+BQ151 -> 48.23466511 | BN100: =+BQ175 -> 9.333829315 | BS100: =+BX127 -> 9.333829315 | BT100: =+BX151 -> 47.38817345 | BU100: =+BX175 -> 9.333829315
D101: +H | H101: =+H93*H94*H99*0.05/3 -> 107.6753679 | I101: =+I93*I94*I99*0.05/3 -> 0 | J101: =+J93*J94*J99*0.05/3 -> 0 | K101: =+SUM(H101:J101) -> 107.6753679 | L101: =+$E$49 -> -183.3540856 | M101: =+K101+L101 -> -75.67871769 | O101: =+O93*O94*O99*0.05/3 -> 119.4730152 | P101: =+P93*P94*P99*0.05/3 -> 0 | Q101: =+Q93*Q94*Q99*0.05/3 -> 0 | R101: =+SUM(O101:Q101) -> 119.4730152 | S101: =+$E$49 -> -183.3540856 | T101: =+R101+S101 -> -63.88107033 | V101: =+V93*V94*V99*0.05/3 -> 119.4730152 | W101: =+W93*W94*W99*0.05/3 -> 0 | X101: =+X93*X94*X99*0.05/3 -> 0 | Y101: =+SUM(V101:X101) -> 119.4730152 | Z101: =+$E$49 -> -183.3540856 | AA101: =+Y101+Z101 -> -63.88107033 | AC101: =+AC93*AC94*AC99*0.05/3 -> 119.4730152 | AD101: =+AD93*AD94*AD99*0.05/3 -> 0 | AE101: =+AE93*AE94*AE99*0.05/3 -> 0 | AF101: =+SUM(AC101:AE101) -> 119.4730152 | AG101: =+$E$49 -> -183.3540856 | AH101: =+AF101+AG101 -> -63.88107033 | AJ101: =+AJ93*AJ94*AJ99*0.05/3 -> 119.4730152 | AK101: =+AK93*AK94*AK99*0.05/3 -> 0 | AL101: =+AL93*AL94*AL99*0.05/3 -> 0 | AM101: =+SUM(AJ101:AL101) -> 119.4730152 | AN101: =+$E$49 -> -183.3540856 | AO101: =+AM101+AN101 -> -63.88107033 | AQ101: =+AQ93*AQ94*AQ99*0.05/3 -> 0 | AR101: =+AR93*AR94*AR99*0.05/3 -> 461.8875214 | AS101: =+AS93*AS94*AS99*0.05/3 -> 0 | AT101: =+SUM(AQ101:AS101) -> 461.8875214 | AU101: =+$E$49 -> -183.3540856 | AV101: =+AT101+AU101 -> 278.5334358 | AX101: =+AX93*AX94*AX99*0.05/3 -> 0 | AY101: =+AY93*AY94*AY99*0.05/3 -> 461.8875214 | AZ101: =+AZ93*AZ94*AZ99*0.05/3 -> 0 | BA101: =+SUM(AX101:AZ101) -> 461.8875214 | BB101: =+$E$49 -> -183.3540856 | BC101: =+BA101+BB101 -> 278.5334358 | BE101: =+BE93*BE94*BE99*0.05/3 -> 0 | BF101: =+BF93*BF94*BF99*0.05/3 -> 700.4156018 | BG101: =+BG93*BG94*BG99*0.05/3 -> 0 | BH101: =+SUM(BE101:BG101) -> 700.4156018 | BI101: =+$E$49 -> -183.3540856 | BJ101: =+BH101+BI101 -> 517.0615162 | BL101: =+BL93*BL94*BL99*0.05/3 -> 0 | BM101: =+BM93*BM94*BM99*0.05/3 -> 619.7342407 | BN101: =+BN93*BN94*BN99*0.05/3 -> 0 | BO101: =+SUM(BL101:BN101) -> 619.7342407 | BP101: =+$E$49 -> -183.3540856 | BQ101: =+BO101+BP101 -> 436.3801552 | BS101: =+BS93*BS94*BS99*0.05/3 -> 0 | BT101: =+BT93*BT94*BT99*0.05/3 -> 646.8219738 | BU101: =+BU93*BU94*BU99*0.05/3 -> 0 | BV101: =+SUM(BS101:BU101) -> 646.8219738 | BW101: =+$E$49 -> -183.3540856 | BX101: =+BV101+BW101 -> 463.4678882
D102: -H | H102: =+H93*H94*H100*0.05/3 -> 11.79764736 | I102: =+I93*I94*I100*0.05/3 -> 2163.243524 | J102: =+J93*J94*J100*0.05/3 -> 119.4730152 | K102: =+SUM(H102:J102) -> 2294.514187 | L102: =+$E$50 -> 183.3540856 | M102: =+K102+L102 -> 2477.868272 | O102: =+O93*O94*O100*0.05/3 -> 0 | P102: =+P93*P94*P100*0.05/3 -> 2163.243524 | Q102: =+Q93*Q94*Q100*0.05/3 -> 119.4730152 | R102: =+SUM(O102:Q102) -> 2282.71654 | S102: =+$E$50 -> 183.3540856 | T102: =+R102+S102 -> 2466.070625 | V102: =+V93*V94*V100*0.05/3 -> 0 | W102: =+W93*W94*W100*0.05/3 -> 2163.243524 | X102: =+X93*X94*X100*0.05/3 -> 119.4730152 | Y102: =+SUM(V102:X102) -> 2282.71654 | Z102: =+$E$50 -> 183.3540856 | AA102: =+Y102+Z102 -> 2466.070625 | AC102: =+AC93*AC94*AC100*0.05/3 -> 0 | AD102: =+AD93*AD94*AD100*0.05/3 -> 2163.243524 | AE102: =+AE93*AE94*AE100*0.05/3 -> 119.4730152 | AF102: =+SUM(AC102:AE102) -> 2282.71654 | AG102: =+$E$50 -> 183.3540856 | AH102: =+AF102+AG102 -> 2466.070625 | AJ102: =+AJ93*AJ94*AJ100*0.05/3 -> 0 | AK102: =+AK93*AK94*AK100*0.05/3 -> 2163.243524 | AL102: =+AL93*AL94*AL100*0.05/3 -> 119.4730152 | AM102: =+SUM(AJ102:AL102) -> 2282.71654 | AN102: =+$E$50 -> 183.3540856 | AO102: =+AM102+AN102 -> 2466.070625 | AQ102: =+AQ93*AQ94*AQ100*0.05/3 -> 119.4730152 | AR102: =+AR93*AR94*AR100*0.05/3 -> 1701.356003 | AS102: =+AS93*AS94*AS100*0.05/3 -> 119.4730152 | AT102: =+SUM(AQ102:AS102) -> 1940.302033 | AU102: =+$E$50 -> 183.3540856 | AV102: =+AT102+AU102 -> 2123.656119 | AX102: =+AX93*AX94*AX100*0.05/3 -> 119.4730152 | AY102: =+AY93*AY94*AY100*0.05/3 -> 1701.356003 | AZ102: =+AZ93*AZ94*AZ100*0.05/3 -> 119.4730152 | BA102: =+SUM(AX102:AZ102) -> 1940.302033 | BB102: =+$E$50 -> 183.3540856 | BC102: =+BA102+BB102 -> 2123.656119 | BE102: =+BE93*BE94*BE100*0.05/3 -> 119.4730152 | BF102: =+BF93*BF94*BF100*0.05/3 -> 1462.827923 | BG102: =+BG93*BG94*BG100*0.05/3 -> 119.4730152 | BH102: =+SUM(BE102:BG102) -> 1701.773953 | BI102: =+$E$50 -> 183.3540856 | BJ102: =+BH102+BI102 -> 1885.128039 | BL102: =+BL93*BL94*BL100*0.05/3 -> 119.4730152 | BM102: =+BM93*BM94*BM100*0.05/3 -> 1543.509284 | BN102: =+BN93*BN94*BN100*0.05/3 -> 119.4730152 | BO102: =+SUM(BL102:BN102) -> 1782.455314 | BP102: =+$E$50 -> 183.3540856 | BQ102: =+BO102+BP102 -> 1965.8094 | BS102: =+BS93*BS94*BS100*0.05/3 -> 119.4730152 | BT102: =+BT93*BT94*BT100*0.05/3 -> 1516.421551 | BU102: =+BU93*BU94*BU100*0.05/3 -> 119.4730152 | BV102: =+SUM(BS102:BU102) -> 1755.367581 | BW102: =+$E$50 -> 183.3540856 | BX102: =+BV102+BW102 -> 1938.721667
D105: k/L | E105: H/P | F105: ΔH/P | H105: mhH/P | I105: mp | J105: M/P | K105: ΔM/P | L105: Δ+H/P | M105: Δ-H/P | O105: mhH/P | P105: mp | Q105: M/P | R105: ΔM/P | S105: Δ+H/P | T105: Δ-H/P | V105: mhH/P | W105: mp | X105: M/P | Y105: ΔM/P | Z105: Δ+H/P | AA105: Δ-H/P | AC105: mhH/P | AD105: mp | AE105: M/P | AF105: ΔM/P | AG105: Δ+H/P | AH105: Δ-H/P | AJ105: mhH/P | AK105: mp | AL105: M/P | AM105: ΔM/P | AN105: Δ+H/P | AO105: Δ-H/P | AQ105: mhH/P | AR105: mp | AS105: M/P | AT105: ΔM/P | AU105: Δ+H/P | AV105: Δ-H/P | AX105: mhH/P | AY105: mp | AZ105: M/P | BA105: ΔM/P | BB105: Δ+H/P | BC105: Δ-H/P | BE105: mhH/P | BF105: mp | BG105: M/P | BH105: ΔM/P | BI105: Δ+H/P | BJ105: Δ-H/P | BL105: mhH/P | BM105: mp | BN105: M/P | BO105: ΔM/P | BP105: Δ+H/P | BQ105: Δ-H/P | BS105: mhH/P | BT105: mp | BU105: M/P | BV105: ΔM/P | BW105: Δ+H/P | BX105: Δ-H/P
D106: 0 | E106: =+F73 -> 0 | H106: =+H$87*$E106 -> 0 | I106: =+IF(H$86<$D106,SINH(H$88-H$88*$D106)/(H$89*SINH(H$88))*SINH(H$88*H$86),SINH(H$88*$D106)/(H$89*SINH(H$88))*SINH(H$88-H$88*H$86)) -> 0 | J106: =+H106+I106 -> 0 | O106: =+O$87*$E106 -> 0 | P106: =+IF(O$86<$D106,SINH(O$88-O$88*$D106)/(O$89*SINH(O$88))*SINH(O$88*O$86),SINH(O$88*$D106)/(O$89*SINH(O$88))*SINH(O$88-O$88*O$86)) -> 0 | Q106: =+O106+P106 -> 0 | V106: =+V$87*$E106 -> 0 | W106: =+IF(V$86<$D106,SINH(V$88-V$88*$D106)/(V$89*SINH(V$88))*SINH(V$88*V$86),SINH(V$88*$D106)/(V$89*SINH(V$88))*SINH(V$88-V$88*V$86)) -> 0 | X106: =+V106+W106 -> 0 | AC106: =+AC$87*$E106 -> 0 | AD106: =+IF(AC$86<$D106,SINH(AC$88-AC$88*$D106)/(AC$89*SINH(AC$88))*SINH(AC$88*AC$86),SINH(AC$88*$D106)/(AC$89*SINH(AC$88))*SINH(AC$88-AC$88*AC$86)) -> 0 | AE106: =+AC106+AD106 -> 0 | AJ106: =+AJ$87*$E106 -> 0 | AK106: =+IF(AJ$86<$D106,SINH(AJ$88-AJ$88*$D106)/(AJ$89*SINH(AJ$88))*SINH(AJ$88*AJ$86),SINH(AJ$88*$D106)/(AJ$89*SINH(AJ$88))*SINH(AJ$88-AJ$88*AJ$86)) -> 0 | AL106: =+AJ106+AK106 -> 0 | AQ106: =+AQ$87*$E106 -> 0 | AS106: =+AQ106+AR106 -> 0 | AX106: =+AX$87*$E106 -> 0 | AZ106: =+AX106+AY106 -> 0 | BE106: =+BE$87*$E106 -> 0 | BG106: =+BE106+BF106 -> 0 | BL106: =+BL$87*$E106 -> 0 | BN106: =+BL106+BM106 -> 0 | BS106: =+BS$87*$E106 -> 0 | BU106: =+BS106+BT106 -> 0
D107: =+D106+0.05 -> 0.05 | E107: =+F74 -> 0.04014133182 | H107: =+H$87*$E107 -> -0.03828489567 | I107: 8.092991923 | J107: =+H107+I107 -> 8.054707028 | O107: =+O$87*$E107 -> -0.05715260519 | P107: 4.010630998 | Q107: =+O107+P107 -> 3.953478393 | V107: =+V$87*$E107 -> -0.06629053025 | W107: 1.987480996 | X107: =+V107+W107 -> 1.921190465 | AC107: =+AC$87*$E107 -> -0.0703904301 | AD107: 0.984779541 | AE107: =+AC107+AD107 -> 0.9143891109 | AJ107: =+AJ$87*$E107 -> -0.07155734971 | AK107: 0.4877014631 | AL107: =+AJ107+AK107 -> 0.4161441134 | AQ107: -0.0762512782 | AS107: =+AQ107+AR107 -> -0.0762512782 | AX107: -0.09230828833 | AZ107: =+AX107+AY107 -> -0.09230828833 | BE107: -0.09568829802 | BG107: =+BE107+BF107 -> -0.09568829802 | BL107: -0.0963937189 | BN107: =+BL107+BM107 -> -0.0963937189 | BS107: -0.09651209231 | BU107: =+BS107+BT107 -> -0.09651209231
D108: 0.1 | E108: 0.07865428877 | F108: =+E106+4*E107+E108 -> 0.2392196161 | H108: -0.07501672473 | I108: 17.19344304 | J108: 17.11842632 | K108: =+J106+4*J107+J108 -> 49.33725443 | L108: =+IF(K108>0,$F108,"") -> 0.2392196161 | M108: =+IF(K108<0,$F108,"") ->  | O108: -0.1119867555 | P108: 8.52052693 | Q108: 8.408540174 | R108: =+Q106+4*Q107+Q108 -> 24.22245375 | S108: =+IF(R108>0,$F108,"") -> 0.2392196161 | T108: =+IF(R108<0,$F108,"") ->  | V108: -0.1298919162 | W108: 4.222374324 | X108: 4.092482407 | Y108: =+X106+4*X107+X108 -> 11.77724427 | Z108: =+IF(Y108>0,$F108,"") -> 0.2392196161 | AA108: =+IF(Y108<0,$F108,"") ->  | AC108: -0.1379253992 | AD108: 2.09214974 | AE108: 1.954224341 | AF108: =+AE106+4*AE107+AE108 -> 5.611780785 | AG108: =+IF(AF108>0,$F108,"") -> 0.2392196161 | AH108: =+IF(AF108<0,$F108,"") ->  | AJ108: -0.1402119011 | AK108: 1.036114629 | AL108: 0.8959027283 | AM108: =+AL106+4*AL107+AL108 -> 2.560479182 | AN108: =+IF(AM108>0,$F108,"") -> 0.2392196161 | AO108: =+IF(AM108<0,$F108,"") ->  | AQ108: -0.149409344 | AS108: -0.149409344 | AT108: =+AS106+4*AS107+AS108 -> -0.4544144568 | AU108: =+IF(AT108>0,$F108,"") ->  | AV108: =+IF(AT108<0,$F108,"") -> 0.2392196161 | AX108: -0.1808719949 | AZ108: -0.1808719949 | BA108: =+AZ106+4*AZ107+AZ108 -> -0.5501051483 | BB108: =+IF(BA108>0,$F108,"") ->  | BC108: =+IF(BA108<0,$F108,"") -> 0.2392196161 | BE108: -0.1874949007 | BG108: -0.1874949007 | BH108: =+BG106+4*BG107+BG108 -> -0.5702480928 | BI108: =+IF(BH108>0,$F108,"") ->  | BJ108: =+IF(BH108<0,$F108,"") -> 0.2392196161 | BL108: -0.1888771263 | BN108: -0.1888771263 | BO108: =+BN106+4*BN107+BN108 -> -0.5744520019 | BP108: =+IF(BO108>0,$F108,"") ->  | BQ108: =+IF(BO108<0,$F108,"") -> 0.2392196161 | BS108: -0.1891090712 | BU108: -0.1891090712 | BV108: =+BU106+4*BU107+BU108 -> -0.5751574404 | BW108: =+IF(BV108>0,$F108,"") ->  | BX108: =+IF(BV108<0,$F108,"") -> 0.2392196161
D109: 0.15 | E109: 0.1143530604 | H109: -0.1090645175 | I109: 12.10362292 | J109: 11.9945584 | O109: -0.1628141125 | P109: 14.09110392 | Q109: 13.9282898 | V109: -0.188845877 | W109: 6.982891535 | X109: 6.794045658 | AC109: -0.2005255118 | AD109: 3.459962 | AE109: 3.259436488 | AJ109: -0.2038497868 | AK109: 1.713508922 | AL109: 1.509659135 | AQ109: -0.2172216672 | AS109: -0.2172216672 | AX109: -0.2629642514 | AZ109: -0.2629642514 | BE109: -0.2725930911 | BG109: -0.2725930911 | BL109: -0.2746026666 | BN109: -0.2746026666 | BS109: -0.2749398842 | BU109: -0.2749398842
D110: 0.2 | E110: 0.1464050538 | F110: =+E108+4*E109+E110 -> 0.6824715842 | H110: -0.1396341864 | I110: 8.52052693 | J110: 8.380892743 | K110: =+J108+4*J109+J110 -> 73.47755268 | L110: =+IF(K110>0,$F110,"") -> 0.6824715842 | M110: =+IF(K110<0,$F110,"") ->  | O110: -0.2084492432 | P110: 21.41581737 | Q110: 21.20736812 | R110: =+Q108+4*Q109+Q110 -> 85.32906752 | S110: =+IF(R110>0,$F110,"") -> 0.6824715842 | T110: =+IF(R110<0,$F110,"") ->  | V110: -0.2417774451 | W110: 10.61267667 | X110: 10.37089922 | Y110: =+X108+4*X109+X110 -> 41.63956426 | Z110: =+IF(Y110>0,$F110,"") -> 0.6824715842 | AA110: =+IF(Y110<0,$F110,"") ->  | AC110: -0.256730762 | AD110: 5.258488953 | AE110: 5.001758191 | AF110: =+AE108+4*AE109+AE110 -> 19.99372848 | AG110: =+IF(AF110>0,$F110,"") -> 0.6824715842 | AH110: =+IF(AF110<0,$F110,"") ->  | AJ110: -0.2609867974 | AK110: 2.604210028 | AL110: 2.343223231 | AM110: =+AL108+4*AL109+AL110 -> 9.277762499 | AN110: =+IF(AM110>0,$F110,"") -> 0.6824715842 | AO110: =+IF(AM110<0,$F110,"") ->  | AQ110: -0.2781066792 | AS110: -0.2781066792 | AT110: =+AS108+4*AS109+AS110 -> -1.296402692 | AU110: =+IF(AT110>0,$F110,"") ->  | AV110: =+IF(AT110<0,$F110,"") -> 0.6824715842 | AX110: -0.3366704419 | AZ110: -0.3366704419 | BA110: =+AZ108+4*AZ109+AZ110 -> -1.569399442 | BB110: =+IF(BA110>0,$F110,"") ->  | BC110: =+IF(BA110<0,$F110,"") -> 0.6824715842 | BE110: -0.348998147 | BG110: -0.348998147 | BH110: =+BG108+4*BG109+BG110 -> -1.626865412 | BI110: =+IF(BH110>0,$F110,"") ->  | BJ110: =+IF(BH110<0,$F110,"") -> 0.6824715842 | BL110: -0.3515709859 | BN110: -0.3515709859 | BO110: =+BN108+4*BN109+BN110 -> -1.638858779 | BP110: =+IF(BO110>0,$F110,"") ->  | BQ110: =+IF(BO110<0,$F110,"") -> 0.6824715842 | BS110: -0.3520027221 | BU110: -0.3520027221 | BV110: =+BU108+4*BU109+BU110 -> -1.64087133 | BW110: =+IF(BV110>0,$F110,"") ->  | BX110: =+IF(BV110<0,$F110,"") -> 0.6824715842
D111: 0.25 | E111: 0.1742272479 | H111: -0.1661696737 | I111: 5.998111994 | J111: 5.83194232 | O111: -0.2480620513 | P111: 15.07588346 | Q111: 14.82782141 | V111: -0.287723803 | W111: 15.56358492 | X111: 15.27586112 | AC111: -0.3055187848 | AD111: 7.711620915 | AE111: 7.406102131 | AJ111: -0.310583619 | AK111: 3.819097216 | AL111: 3.508513597 | AQ111: -0.3309568903 | AS111: -0.3309568903 | AX111: -0.4006498615 | AZ111: -0.4006498615 | BE111: -0.4153202713 | BG111: -0.4153202713 | BL111: -0.4183820416 | BN111: -0.4183820416 | BS111: -0.4188958231 | BU111: -0.4188958231
D112: 0.3 | E112: 0.1974136158 | F112: =+E110+4*E111+E112 -> 1.040727661 | H112: -0.1882837301 | I112: 4.222374324 | J112: 4.034090593 | K112: =+J110+4*J111+J112 -> 35.74275262 | L112: =+IF(K112>0,$F112,"") -> 1.040727661 | M112: =+IF(K112<0,$F112,"") ->  | O112: -0.2810744421 | P112: 10.61267667 | Q112: 10.33160223 | R112: =+Q110+4*Q111+Q112 -> 90.85025598 | S112: =+IF(R112>0,$F112,"") -> 1.040727661 | T112: =+IF(R112<0,$F112,"") ->  | V112: -0.3260144265 | W112: 22.451932 | X112: 22.12591757 | Y112: =+X110+4*X111+X112 -> 93.60026127 | Z112: =+IF(Y112>0,$F112,"") -> 1.040727661 | AA112: =+IF(Y112<0,$F112,"") ->  | AC112: -0.3461775855 | AD112: 11.12473696 | AE112: 10.77855937 | AF112: =+AE110+4*AE111+AE112 -> 45.40472609 | AG112: =+IF(AF112>0,$F112,"") -> 1.040727661 | AH112: =+IF(AF112<0,$F112,"") ->  | AJ112: -0.3519164538 | AK112: 5.509406182 | AL112: 5.157489728 | AM112: =+AL110+4*AL111+AL112 -> 21.53476735 | AN112: =+IF(AM112>0,$F112,"") -> 1.040727661 | AO112: =+IF(AM112<0,$F112,"") ->  | AQ112: -0.3750010241 | AS112: -0.3750010241 | AT112: =+AS110+4*AS111+AS112 -> -1.976935264 | AU112: =+IF(AT112>0,$F112,"") ->  | AV112: =+IF(AT112<0,$F112,"") -> 1.040727661 | AX112: -0.4539688183 | AZ112: -0.4539688183 | BA112: =+AZ110+4*AZ111+AZ112 -> -2.393238706 | BB112: =+IF(BA112>0,$F112,"") ->  | BC112: =+IF(BA112<0,$F112,"") -> 1.040727661 | BE112: -0.4705915835 | BG112: -0.4705915835 | BH112: =+BG110+4*BG111+BG112 -> -2.480870816 | BI112: =+IF(BH112>0,$F112,"") ->  | BJ112: =+IF(BH112<0,$F112,"") -> 1.040727661 | BL112: -0.4740608178 | BN112: -0.4740608178 | BO112: =+BN110+4*BN111+BN112 -> -2.49915997 | BP112: =+IF(BO112>0,$F112,"") ->  | BQ112: =+IF(BO112<0,$F112,"") -> 1.040727661 | BS112: -0.4746429739 | BU112: -0.4746429739 | BV112: =+BU110+4*BU111+BU112 -> -2.502228988 | BW112: =+IF(BV112>0,$F112,"") ->  | BX112: =+IF(BV112<0,$F112,"") -> 1.040727661
D113: 0.35 | E113: 0.2156845805 | H113: -0.2057097084 | I113: 2.972260537 | J113: 2.766550828 | O113: -0.307088358 | P113: 7.470592998 | Q113: 7.16350464 | V113: -0.3561876142 | W113: 15.80461284 | X113: 15.44842522 | AC113: -0.3782169077 | AD113: 15.92272014 | AE113: 15.54450323 | AJ113: -0.384486918 | AK113: 7.885555684 | AL113: 7.501068766 | AQ113: -0.4097080044 | AS113: -0.4097080044 | AX113: -0.4959844018 | AZ113: -0.4959844018 | BE113: -0.5141456321 | BG113: -0.5141456321 | BL113: -0.5179359499 | BN113: -0.5179359499 | BS113: -0.5185719856 | BU113: -0.5185719856
D114: 0.4 | E114: 0.2288522116 | F114: =+E112+4*E113+E114 -> 1.28900415 | H114: -0.2182683695 | I114: 2.09214974 | J114: 1.873881371 | K114: =+J112+4*J113+J114 -> 16.97417528 | L114: =+IF(K114>0,$F114,"") -> 1.28900415 | M114: =+IF(K114<0,$F114,"") ->  | O114: -0.3258362268 | P114: 5.258488953 | Q114: 4.932652726 | R114: =+Q112+4*Q113+Q114 -> 43.91827351 | S114: =+IF(R114>0,$F114,"") -> 1.28900415 | T114: =+IF(R114<0,$F114,"") ->  | V114: -0.3779330124 | W114: 11.12473696 | X114: 10.74680395 | Y114: =+X112+4*X113+X114 -> 94.66642241 | Z114: =+IF(Y114>0,$F114,"") -> 1.28900415 | AA114: =+IF(Y114<0,$F114,"") ->  | AC114: -0.4013072032 | AD114: 22.70284922 | AE114: 22.30154202 | AF114: =+AE112+4*AE113+AE114 -> 95.25811431 | AG114: =+IF(AF114>0,$F114,"") -> 1.28900415 | AH114: =+IF(AF114<0,$F114,"") ->  | AJ114: -0.4079600002 | AK114: 11.2433416 | AL114: 10.8353816 | AM114: =+AL112+4*AL113+AL114 -> 45.99714639 | AN114: =+IF(AM114>0,$F114,"") -> 1.28900415 | AO114: =+IF(AM114<0,$F114,"") ->  | AQ114: -0.4347208442 | AS114: -0.4347208442 | AT114: =+AS112+4*AS113+AS114 -> -2.448553886 | AU114: =+IF(AT114>0,$F114,"") ->  | AV114: =+IF(AT114<0,$F114,"") -> 1.28900415 | AX114: -0.5262644505 | AZ114: -0.5262644505 | BA114: =+AZ112+4*AZ113+AZ114 -> -2.964170876 | BB114: =+IF(BA114>0,$F114,"") ->  | BC114: =+IF(BA114<0,$F114,"") -> 1.28900415 | BE114: -0.5455344313 | BG114: -0.5455344313 | BH114: =+BG112+4*BG113+BG114 -> -3.072708543 | BI114: =+IF(BH114>0,$F114,"") ->  | BJ114: =+IF(BH114<0,$F114,"") -> 1.28900415 | BL114: -0.5495561496 | BN114: -0.5495561496 | BO114: =+BN112+4*BN113+BN114 -> -3.095360767 | BP114: =+IF(BO114>0,$F114,"") ->  | BQ114: =+IF(BO114<0,$F114,"") -> 1.28900415 | BS114: -0.5502310155 | BU114: -0.5502310155 | BV114: =+BU112+4*BU113+BU114 -> -3.099161932 | BW114: =+IF(BV114>0,$F114,"") ->  | BX114: =+IF(BV114<0,$F114,"") -> 1.28900415
D115: 0.45 | E115: 0.2367968306 | H115: -0.2258455697 | I115: 1.472481004 | J115: 1.246635434 | O115: -0.3371476519 | P115: 3.700989918 | Q115: 3.363842266 | V115: -0.3910529807 | W115: 7.829728214 | X115: 7.438675233 | AC115: -0.415238608 | AD115: 15.97854761 | AE115: 15.563309 | AJ115: -0.4221223573 | AK115: 16.0007592 | AL115: 15.57863685 | AQ115: -0.4498122056 | AS115: -0.4498122056 | AX115: -0.5445337541 | AZ115: -0.5445337541 | BE115: -0.5644726935 | BG115: -0.5644726935 | BL115: -0.5686340259 | BN115: -0.5686340259 | BS115: -0.5693323199 | BU115: -0.5693323199
D116: 0.5 | E116: 0.2394521127 | F116: =+E114+4*E115+E116 -> 1.415491646 | H116: -0.2283780517 | I116: 1.036114629 | J116: 0.8077365778 | K116: =+J114+4*J115+J116 -> 7.668159686 | L116: =+IF(K116>0,$F116,"") -> 1.415491646 | M116: =+IF(K116<0,$F116,"") ->  | O116: -0.3409282013 | P116: 2.604210028 | Q116: 2.263281827 | R116: =+Q114+4*Q115+Q116 -> 20.65130362 | S116: =+IF(R116>0,$F116,"") -> 1.415491646 | T116: =+IF(R116<0,$F116,"") ->  | V116: -0.3954379887 | W116: 5.509406182 | X116: 5.113968193 | Y116: =+X114+4*X115+X116 -> 45.61547307 | Z116: =+IF(Y116>0,$F116,"") -> 1.415491646 | AA116: =+IF(Y116<0,$F116,"") ->  | AC116: -0.4198948175 | AD116: 11.2433416 | AE116: 10.82344679 | AF116: =+AE114+4*AE115+AE116 -> 95.3782248 | AG116: =+IF(AF116>0,$F116,"") -> 1.415491646 | AH116: =+IF(AF116<0,$F116,"") ->  | AJ116: -0.4268557566 | AK116: 22.75003743 | AL116: 22.32318168 | AM116: =+AL114+4*AL115+AL116 -> 95.47311066 | AN116: =+IF(AM116>0,$F116,"") -> 1.415491646 | AO116: =+IF(AM116<0,$F116,"") ->  | AQ116: -0.4548561005 | AS116: -0.4548561005 | AT116: =+AS114+4*AS115+AS116 -> -2.688825767 | AU116: =+IF(AT116>0,$F116,"") ->  | AV116: =+IF(AT116<0,$F116,"") -> 1.415491646 | AX116: -0.5506397933 | AZ116: -0.5506397933 | BA116: =+AZ114+4*AZ115+AZ116 -> -3.25503926 | BB116: =+IF(BA116>0,$F116,"") ->  | BC116: =+IF(BA116<0,$F116,"") -> 1.415491646 | BE116: -0.5708023147 | BG116: -0.5708023147 | BH116: =+BG114+4*BG115+BG116 -> -3.37422752 | BI116: =+IF(BH116>0,$F116,"") ->  | BJ116: =+IF(BH116<0,$F116,"") -> 1.415491646 | BL116: -0.5750103096 | BN116: -0.5750103096 | BO116: =+BN114+4*BN115+BN116 -> -3.399102563 | BP116: =+IF(BO116>0,$F116,"") ->  | BQ116: =+IF(BO116<0,$F116,"") -> 1.415491646 | BS116: -0.5757164337 | BU116: -0.5757164337 | BV116: =+BU114+4*BU115+BU116 -> -3.403276729 | BW116: =+IF(BV116>0,$F116,"") ->  | BX116: =+IF(BV116<0,$F116,"") -> 1.415491646
D117: 0.55 | E117: =+E115 -> 0.2367968306 | H117: =+H115 -> -0.2258455697 | I117: 0.7287293808 | J117: 0.5028838111 | O117: =+O115 -> -0.3371476519 | P117: 1.83161622 | Q117: 1.494468568 | V117: =+V115 -> -0.3910529807 | W117: 3.874924686 | X117: 3.483871705 | AC117: =+AC115 -> -0.415238608 | AD117: 7.907767279 | AE117: 7.492528671 | AJ117: =+AJ115 -> -0.4221223573 | AK117: 16.0007592 | AL117: 15.57863685 | AQ117: =+AQ115 -> -0.4498122056 | AS117: -0.4498122056 | AX117: =+AX115 -> -0.5445337541 | AZ117: -0.5445337541 | BE117: =+BE115 -> -0.5644726935 | BG117: -0.5644726935 | BL117: =+BL115 -> -0.5686340259 | BN117: -0.5686340259 | BS117: =+BS115 -> -0.5693323199 | BU117: -0.5693323199
D118: 0.6 | E118: =+E114 -> 0.2288522116 | F118: =+E116+4*E117+E118 -> 1.415491646 | H118: =+H114 -> -0.2182683695 | I118: 0.5120602879 | J118: 0.2937919184 | K118: =+J116+4*J117+J118 -> 3.11306374 | L118: =+IF(K118>0,$F118,"") -> 1.415491646 | M118: =+IF(K118<0,$F118,"") ->  | O118: =+O114 -> -0.3258362268 | P118: 1.287031858 | Q118: 0.9611956313 | R118: =+Q116+4*Q117+Q118 -> 9.20235173 | S118: =+IF(R118>0,$F118,"") -> 1.415491646 | T118: =+IF(R118<0,$F118,"") ->  | V118: =+V114 -> -0.3779330124 | W118: 2.722814673 | X118: 2.34488166 | Y118: =+X116+4*X117+X118 -> 21.39433667 | Z118: =+IF(Y118>0,$F118,"") -> 1.415491646 | AA118: =+IF(Y118<0,$F118,"") ->  | AC118: =+AC114 -> -0.4013072032 | AD118: 5.556594391 | AE118: 5.155287188 | AF118: =+AE116+4*AE117+AE118 -> 45.94884866 | AG118: =+IF(AF118>0,$F118,"") -> 1.415491646 | AH118: =+IF(AF118<0,$F118,"") ->  | AJ118: =+AJ114 -> -0.4079600002 | AK118: 11.2433416 | AL118: 10.8353816 | AM118: =+AL116+4*AL117+AL118 -> 95.47311066 | AN118: =+IF(AM118>0,$F118,"") -> 1.415491646 | AO118: =+IF(AM118<0,$F118,"") ->  | AQ118: =+AQ114 -> -0.4347208442 | AS118: -0.4347208442 | AT118: =+AS116+4*AS117+AS118 -> -2.688825767 | AU118: =+IF(AT118>0,$F118,"") ->  | AV118: =+IF(AT118<0,$F118,"") -> 1.415491646 | AX118: =+AX114 -> -0.5262644505 | AZ118: -0.5262644505 | BA118: =+AZ116+4*AZ117+AZ118 -> -3.25503926 | BB118: =+IF(BA118>0,$F118,"") ->  | BC118: =+IF(BA118<0,$F118,"") -> 1.415491646 | BE118: =+BE114 -> -0.5455344313 | BG118: -0.5455344313 | BH118: =+BG116+4*BG117+BG118 -> -3.37422752 | BI118: =+IF(BH118>0,$F118,"") ->  | BJ118: =+IF(BH118<0,$F118,"") -> 1.415491646 | BL118: =+BL114 -> -0.5495561496 | BN118: -0.5495561496 | BO118: =+BN116+4*BN117+BN118 -> -3.399102563 | BP118: =+IF(BO118>0,$F118,"") ->  | BQ118: =+IF(BO118<0,$F118,"") -> 1.415491646 | BS118: =+BS114 -> -0.5502310155 | BU118: -0.5502310155 | BV118: =+BU116+4*BU117+BU118 -> -3.403276729 | BW118: =+IF(BV118>0,$F118,"") ->  | BX118: =+IF(BV118<0,$F118,"") -> 1.415491646
D119: 0.65 | E119: =+E113 -> 0.2156845805 | H119: =+H113 -> -0.2057097084 | I119: 0.3591352159 | J119: 0.1534255075 | O119: =+O113 -> -0.307088358 | P119: 0.9026641494 | Q119: 0.5955757913 | V119: =+V113 -> -0.3561876142 | W119: 1.909655286 | X119: 1.553467671 | AC119: =+AC113 -> -0.3782169077 | AD119: 3.897136281 | AE119: 3.518919374 | AJ119: =+AJ113 -> -0.384486918 | AK119: 7.885555684 | AL119: 7.501068766 | AQ119: =+AQ113 -> -0.4097080044 | AS119: -0.4097080044 | AX119: =+AX113 -> -0.4959844018 | AZ119: -0.4959844018 | BE119: =+BE113 -> -0.5141456321 | BG119: -0.5141456321 | BL119: =+BL113 -> -0.5179359499 | BN119: -0.5179359499 | BS119: =+BS113 -> -0.5185719856 | BU119: -0.5185719856
D120: 0.7 | E120: =+E112 -> 0.1974136158 | F120: =+E118+4*E119+E120 -> 1.28900415 | H120: =+H112 -> -0.1882837301 | I120: 0.2509172286 | J120: 0.06263349853 | K120: =+J118+4*J119+J120 -> 0.9701274468 | L120: =+IF(K120>0,$F120,"") -> 1.28900415 | M120: =+IF(K120<0,$F120,"") ->  | O120: =+O112 -> -0.2810744421 | P120: 0.6306649327 | Q120: 0.3495904906 | R120: =+Q118+4*Q119+Q120 -> 3.693089287 | S120: =+IF(R120>0,$F120,"") -> 1.28900415 | T120: =+IF(R120<0,$F120,"") ->  | V120: =+V112 -> -0.3260144265 | W120: 1.334220067 | X120: 1.008205641 | Y120: =+X118+4*X119+X120 -> 9.566957986 | Z120: =+IF(Y120>0,$F120,"") -> 1.28900415 | AA120: =+IF(Y120<0,$F120,"") ->  | AC120: =+AC112 -> -0.3461775855 | AD120: 2.722814673 | AE120: 2.376637087 | AF120: =+AE118+4*AE119+AE120 -> 21.60760177 | AG120: =+IF(AF120>0,$F120,"") -> 1.28900415 | AH120: =+IF(AF120<0,$F120,"") ->  | AJ120: =+AJ112 -> -0.3519164538 | AK120: 5.509406182 | AL120: 5.157489728 | AM120: =+AL118+4*AL119+AL120 -> 45.99714639 | AN120: =+IF(AM120>0,$F120,"") -> 1.28900415 | AO120: =+IF(AM120<0,$F120,"") ->  | AQ120: =+AQ112 -> -0.3750010241 | AS120: -0.3750010241 | AT120: =+AS118+4*AS119+AS120 -> -2.448553886 | AU120: =+IF(AT120>0,$F120,"") ->  | AV120: =+IF(AT120<0,$F120,"") -> 1.28900415 | AX120: =+AX112 -> -0.4539688183 | AZ120: -0.4539688183 | BA120: =+AZ118+4*AZ119+AZ120 -> -2.964170876 | BB120: =+IF(BA120>0,$F120,"") ->  | BC120: =+IF(BA120<0,$F120,"") -> 1.28900415 | BE120: =+BE112 -> -0.4705915835 | BG120: -0.4705915835 | BH120: =+BG118+4*BG119+BG120 -> -3.072708543 | BI120: =+IF(BH120>0,$F120,"") ->  | BJ120: =+IF(BH120<0,$F120,"") -> 1.28900415 | BL120: =+BL112 -> -0.4740608178 | BN120: -0.4740608178 | BO120: =+BN118+4*BN119+BN120 -> -3.095360767 | BP120: =+IF(BO120>0,$F120,"") ->  | BQ120: =+IF(BO120<0,$F120,"") -> 1.28900415 | BS120: =+BS112 -> -0.4746429739 | BU120: -0.4746429739 | BV120: =+BU118+4*BU119+BU120 -> -3.099161932 | BW120: =+IF(BV120>0,$F120,"") ->  | BX120: =+IF(BV120<0,$F120,"") -> 1.28900415
D121: 0.75 | E121: =+E111 -> 0.1742272479 | H121: =+H111 -> -0.1661696737 | I121: 0.1739347686 | J121: 0.007765094904 | O121: =+O111 -> -0.2480620513 | P121: 0.4371742814 | Q121: 0.1891122301 | V121: =+V111 -> -0.287723803 | W121: 0.9248757445 | X121: 0.6371519415 | AC121: =+AC111 -> -0.3055187848 | AD121: 1.88744369 | AE121: 1.581924906 | AJ121: =+AJ111 -> -0.310583619 | AK121: 3.819097216 | AL121: 3.508513597 | AQ121: =+AQ111 -> -0.3309568903 | AS121: -0.3309568903 | AX121: =+AX111 -> -0.4006498615 | AZ121: -0.4006498615 | BE121: =+BE111 -> -0.4153202713 | BG121: -0.4153202713 | BL121: =+BL111 -> -0.4183820416 | BN121: -0.4183820416 | BS121: =+BS111 -> -0.4188958231 | BU121: -0.4188958231
D122: 0.8 | E122: =+E110 -> 0.1464050538 | F122: =+E120+4*E121+E122 -> 1.040727661 | H122: =+H110 -> -0.1396341864 | I122: 0.1186046448 | J122: -0.02102954169 | K122: =+J120+4*J121+J122 -> 0.07266433645 | L122: =+IF(K122>0,$F122,"") -> 1.040727661 | M122: =+IF(K122<0,$F122,"") ->  | O122: =+O110 -> -0.2084492432 | P122: 0.2981054378 | Q122: 0.08965619462 | R122: =+Q120+4*Q121+Q122 -> 1.195695606 | S122: =+IF(R122>0,$F122,"") -> 1.040727661 | T122: =+IF(R122<0,$F122,"") ->  | V122: =+V110 -> -0.2417774451 | W122: 0.6306649327 | X122: 0.3888874876 | Y122: =+X120+4*X121+X122 -> 3.945700894 | Z122: =+IF(Y122>0,$F122,"") -> 1.040727661 | AA122: =+IF(Y122<0,$F122,"") ->  | AC122: =+AC110 -> -0.256730762 | AD122: 1.287031858 | AE122: 1.030301096 | AF122: =+AE120+4*AE121+AE122 -> 9.734637806 | AG122: =+IF(AF122>0,$F122,"") -> 1.040727661 | AH122: =+IF(AF122<0,$F122,"") ->  | AJ122: =+AJ110 -> -0.2609867974 | AK122: 2.604210028 | AL122: 2.343223231 | AM122: =+AL120+4*AL121+AL122 -> 21.53476735 | AN122: =+IF(AM122>0,$F122,"") -> 1.040727661 | AO122: =+IF(AM122<0,$F122,"") ->  | AQ122: =+AQ110 -> -0.2781066792 | AS122: -0.2781066792 | AT122: =+AS120+4*AS121+AS122 -> -1.976935264 | AU122: =+IF(AT122>0,$F122,"") ->  | AV122: =+IF(AT122<0,$F122,"") -> 1.040727661 | AX122: =+AX110 -> -0.3366704419 | AZ122: -0.3366704419 | BA122: =+AZ120+4*AZ121+AZ122 -> -2.393238706 | BB122: =+IF(BA122>0,$F122,"") ->  | BC122: =+IF(BA122<0,$F122,"") -> 1.040727661 | BE122: =+BE110 -> -0.348998147 | BG122: -0.348998147 | BH122: =+BG120+4*BG121+BG122 -> -2.480870816 | BI122: =+IF(BH122>0,$F122,"") ->  | BJ122: =+IF(BH122<0,$F122,"") -> 1.040727661 | BL122: =+BL110 -> -0.3515709859 | BN122: -0.3515709859 | BO122: =+BN120+4*BN121+BN122 -> -2.49915997 | BP122: =+IF(BO122>0,$F122,"") ->  | BQ122: =+IF(BO122<0,$F122,"") -> 1.040727661 | BS122: =+BS110 -> -0.3520027221 | BU122: -0.3520027221 | BV122: =+BU120+4*BU121+BU122 -> -2.502228988 | BW122: =+IF(BV122>0,$F122,"") ->  | BX122: =+IF(BV122<0,$F122,"") -> 1.040727661
D123: 0.85 | E123: =+E109 -> 0.1143530604 | H123: =+H109 -> -0.1090645175 | I123: 0.07803906551 | J123: -0.03102545202 | O123: =+O109 -> -0.1628141125 | P123: 0.1961463637 | Q123: 0.03333225125 | V123: =+V109 -> -0.188845877 | W123: 0.4149626863 | X123: 0.2261168093 | AC123: =+AC109 -> -0.2005255118 | AD123: 0.846836679 | AE123: 0.6463111672 | AJ123: =+AJ109 -> -0.2038497868 | AK123: 1.713508922 | AL123: 1.509659135 | AQ123: =+AQ109 -> -0.2172216672 | AS123: -0.2172216672 | AX123: =+AX109 -> -0.2629642514 | AZ123: -0.2629642514 | BE123: =+BE109 -> -0.2725930911 | BG123: -0.2725930911 | BL123: =+BL109 -> -0.2746026666 | BN123: -0.2746026666 | BS123: =+BS109 -> -0.2749398842 | BU123: -0.2749398842
D124: 0.9 | E124: =+E108 -> 0.07865428877 | F124: =+E122+4*E123+E124 -> 0.6824715842 | H124: =+H108 -> -0.07501672473 | I124: 0.04718820918 | J124: -0.02782851555 | K124: =+J122+4*J123+J124 -> -0.1729598653 | L124: =+IF(K124>0,$F124,"") ->  | M124: =+IF(K124<0,$F124,"") -> 0.6824715842 | O124: =+O108 -> -0.1119867555 | P124: 0.1186046448 | Q124: 0.006617889249 | R124: =+Q122+4*Q123+Q124 -> 0.2296030888 | S124: =+IF(R124>0,$F124,"") -> 0.6824715842 | T124: =+IF(R124<0,$F124,"") ->  | V124: =+V108 -> -0.1298919162 | W124: 0.2509172286 | X124: 0.1210253124 | Y124: =+X122+4*X123+X124 -> 1.414380037 | Z124: =+IF(Y124>0,$F124,"") -> 0.6824715842 | AA124: =+IF(Y124<0,$F124,"") ->  | AC124: =+AC108 -> -0.1379253992 | AD124: 0.5120602879 | AE124: 0.3741348887 | AF124: =+AE122+4*AE123+AE124 -> 3.989680654 | AG124: =+IF(AF124>0,$F124,"") -> 0.6824715842 | AH124: =+IF(AF124<0,$F124,"") ->  | AJ124: =+AJ108 -> -0.1402119011 | AK124: 1.036114629 | AL124: 0.8959027283 | AM124: =+AL122+4*AL123+AL124 -> 9.277762499 | AN124: =+IF(AM124>0,$F124,"") -> 0.6824715842 | AO124: =+IF(AM124<0,$F124,"") ->  | AQ124: =+AQ108 -> -0.149409344 | AS124: -0.149409344 | AT124: =+AS122+4*AS123+AS124 -> -1.296402692 | AU124: =+IF(AT124>0,$F124,"") ->  | AV124: =+IF(AT124<0,$F124,"") -> 0.6824715842 | AX124: =+AX108 -> -0.1808719949 | AZ124: -0.1808719949 | BA124: =+AZ122+4*AZ123+AZ124 -> -1.569399442 | BB124: =+IF(BA124>0,$F124,"") ->  | BC124: =+IF(BA124<0,$F124,"") -> 0.6824715842 | BE124: =+BE108 -> -0.1874949007 | BG124: -0.1874949007 | BH124: =+BG122+4*BG123+BG124 -> -1.626865412 | BI124: =+IF(BH124>0,$F124,"") ->  | BJ124: =+IF(BH124<0,$F124,"") -> 0.6824715842 | BL124: =+BL108 -> -0.1888771263 | BN124: -0.1888771263 | BO124: =+BN122+4*BN123+BN124 -> -1.638858779 | BP124: =+IF(BO124>0,$F124,"") ->  | BQ124: =+IF(BO124<0,$F124,"") -> 0.6824715842 | BS124: =+BS108 -> -0.1891090712 | BU124: -0.1891090712 | BV124: =+BU122+4*BU123+BU124 -> -1.64087133 | BW124: =+IF(BV124>0,$F124,"") ->  | BX124: =+IF(BV124<0,$F124,"") -> 0.6824715842
D125: 0.95 | E125: =+E107 -> 0.04014133182 | H125: =+H107 -> -0.03828489567 | I125: 0.02221159513 | J125: -0.01607330054 | O125: =+O107 -> -0.05715260519 | P125: 0.05582747037 | Q125: -0.001325134818 | V125: =+V107 -> -0.06629053025 | W125: 0.1181072982 | X125: 0.05181676796 | AC125: =+AC107 -> -0.0703904301 | AD125: 0.2410279177 | AE125: 0.1706374876 | AJ125: =+AJ107 -> -0.07155734971 | AK125: 0.4877014631 | AL125: 0.4161441134 | AQ125: =+AQ107 -> -0.0762512782 | AS125: -0.0762512782 | AX125: =+AX107 -> -0.09230828833 | AZ125: -0.09230828833 | BE125: =+BE107 -> -0.09568829802 | BG125: -0.09568829802 | BL125: =+BL107 -> -0.0963937189 | BN125: -0.0963937189 | BS125: =+BS107 -> -0.09651209231 | BU125: -0.09651209231
D126: 1 | E126: =+E106 -> 0 | F126: =+E124+4*E125+E126 -> 0.2392196161 | H126: =+H106 -> 0 | I126: -1.101275286e-16 | J126: -1.101275286e-16 | K126: =+J124+4*J125+J126 -> -0.09212171772 | L126: =+IF(K126>0,$F126,"") ->  | M126: =+IF(K126<0,$F126,"") -> 0.2392196161 | O126: =+O106 -> 0 | P126: -2.767987307e-16 | Q126: -2.767987307e-16 | R126: =+Q124+4*Q125+Q126 -> 0.001317349977 | S126: =+IF(R126>0,$F126,"") -> 0.2392196161 | T126: =+IF(R126<0,$F126,"") ->  | V126: =+V106 -> 0 | W126: -5.855889585e-16 | X126: -5.855889585e-16 | Y126: =+X124+4*X125+X126 -> 0.3282923843 | Z126: =+IF(Y126>0,$F126,"") -> 0.2392196161 | AA126: =+IF(Y126<0,$F126,"") ->  | AC126: =+AC106 -> 0 | AD126: -1.195042893e-15 | AE126: -1.195042893e-15 | AF126: =+AE124+4*AE125+AE126 -> 1.056684839 | AG126: =+IF(AF126>0,$F126,"") -> 0.2392196161 | AH126: =+IF(AF126<0,$F126,"") ->  | AJ126: =+AJ106 -> 0 | AK126: -2.418077428e-15 | AL126: -2.418077428e-15 | AM126: =+AL124+4*AL125+AL126 -> 2.560479182 | AN126: =+IF(AM126>0,$F126,"") -> 0.2392196161 | AO126: =+IF(AM126<0,$F126,"") ->  | AQ126: =+AQ106 -> 0 | AS126: 0 | AT126: =+AS124+4*AS125+AS126 -> -0.4544144568 | AU126: =+IF(AT126>0,$F126,"") ->  | AV126: =+IF(AT126<0,$F126,"") -> 0.2392196161 | AX126: =+AX106 -> 0 | AZ126: 0 | BA126: =+AZ124+4*AZ125+AZ126 -> -0.5501051483 | BB126: =+IF(BA126>0,$F126,"") ->  | BC126: =+IF(BA126<0,$F126,"") -> 0.2392196161 | BE126: =+BE106 -> 0 | BG126: 0 | BH126: =+BG124+4*BG125+BG126 -> -0.5702480928 | BI126: =+IF(BH126>0,$F126,"") ->  | BJ126: =+IF(BH126<0,$F126,"") -> 0.2392196161 | BL126: =+BL106 -> 0 | BN126: 0 | BO126: =+BN124+4*BN125+BN126 -> -0.5744520019 | BP126: =+IF(BO126>0,$F126,"") ->  | BQ126: =+IF(BO126<0,$F126,"") -> 0.2392196161 | BS126: =+BS106 -> 0 | BU126: 0 | BV126: =+BU124+4*BU125+BU126 -> -0.5751574404 | BW126: =+IF(BV126>0,$F126,"") ->  | BX126: =+IF(BV126<0,$F126,"") -> 0.2392196161
K127: =+SUMIF(K106:K126,">0") -> 187.3557502 | L127: =+SUM(L106:L126) -> 8.412138115 | M127: =+SUM(M106:M126) -> 0.9216912003 | R127: =+SUMIF(R106:R126,">0") -> 279.2934114 | S127: =+SUM(S106:S126) -> 9.333829315 | T127: =+SUM(T106:T126) -> 0 | Y127: =+SUMIF(Y106:Y126,">0") -> 323.9486333 | Z127: =+SUM(Z106:Z126) -> 9.333829315 | AA127: =+SUM(AA106:AA126) -> 0 | AF127: =+SUMIF(AF106:AF126,">0") -> 343.9840282 | AG127: =+SUM(AG106:AG126) -> 9.333829315 | AH127: =+SUM(AH106:AH126) -> 0 | AM127: =+SUMIF(AM106:AM126,">0") -> 349.6865322 | AN127: =+SUM(AN106:AN126) -> 9.333829315 | AO127: =+SUM(AO106:AO126) -> 0 | AT127: =+SUMIF(AT106:AT126,">0") -> 0 | AU127: =+SUM(AU106:AU126) -> 0 | AV127: =+SUM(AV106:AV126) -> 9.333829315 | BA127: =+SUMIF(BA106:BA126,">0") -> 0 | BB127: =+SUM(BB106:BB126) -> 0 | BC127: =+SUM(BC106:BC126) -> 9.333829315 | BH127: =+SUMIF(BH106:BH126,">0") -> 0 | BI127: =+SUM(BI106:BI126) -> 0 | BJ127: =+SUM(BJ106:BJ126) -> 9.333829315 | BO127: =+SUMIF(BO106:BO126,">0") -> 0 | BP127: =+SUM(BP106:BP126) -> 0 | BQ127: =+SUM(BQ106:BQ126) -> 9.333829315 | BV127: =+SUMIF(BV106:BV126,">0") -> 0 | BW127: =+SUM(BW106:BW126) -> 0 | BX127: =+SUM(BX106:BX126) -> 9.333829315
K128: =+SUMIF(K106:K126,"<0") -> -0.265081583 | R128: =+SUMIF(R106:R126,"<0") -> 0 | Y128: =+SUMIF(Y106:Y126,"<0") -> 0 | AF128: =+SUMIF(AF106:AF126,"<0") -> 0 | AM128: =+SUMIF(AM106:AM126,"<0") -> 0 | AT128: =+SUMIF(AT106:AT126,"<0") -> -17.73026413 | BA128: =+SUMIF(BA106:BA126,"<0") -> -21.46390687 | BH128: =+SUMIF(BH106:BH126,"<0") -> -22.24984077 | BO128: =+SUMIF(BO106:BO126,"<0") -> -22.41386816 | BV128: =+SUMIF(BV106:BV126,"<0") -> -22.44139284
D130: 0 | E130: =+E73 -> 0 | H130: =+H$87*$E130 -> 0 | J130: =+H130+I130 -> 0 | O130: =+O$87*$E130 -> 0 | Q130: =+O130+P130 -> 0 | V130: =+V$87*$E130 -> 0 | X130: =+V130+W130 -> 0 | AC130: =+AC$87*$E130 -> 0 | AE130: =+AC130+AD130 -> 0 | AJ130: =+AJ$87*$E130 -> 0 | AL130: =+AJ130+AK130 -> 0 | AQ130: =+AQ$87*$E130 -> 0 | AR130: =+IF(AQ$86<$D130,SINH(AQ$88-AQ$88*$D130)/(AQ$89*SINH(AQ$88))*SINH(AQ$88*AQ$86),SINH(AQ$88*$D130)/(AQ$89*SINH(AQ$88))*SINH(AQ$88-AQ$88*AQ$86)) -> 0 | AS130: =+AQ130+AR130 -> 0 | AX130: =+AX$87*$E130 -> 0 | AY130: =+IF(AX$86<$D130,SINH(AX$88-AX$88*$D130)/(AX$89*SINH(AX$88))*SINH(AX$88*AX$86),SINH(AX$88*$D130)/(AX$89*SINH(AX$88))*SINH(AX$88-AX$88*AX$86)) -> 0 | AZ130: =+AX130+AY130 -> 0 | BE130: =+BE$87*$E130 -> 0 | BF130: =+IF(BE$86<$D130,SINH(BE$88-BE$88*$D130)/(BE$89*SINH(BE$88))*SINH(BE$88*BE$86),SINH(BE$88*$D130)/(BE$89*SINH(BE$88))*SINH(BE$88-BE$88*BE$86)) -> 0 | BG130: =+BE130+BF130 -> 0 | BL130: =+BL$87*$E130 -> 0 | BM130: =+IF(BL$86<$D130,SINH(BL$88-BL$88*$D130)/(BL$89*SINH(BL$88))*SINH(BL$88*BL$86),SINH(BL$88*$D130)/(BL$89*SINH(BL$88))*SINH(BL$88-BL$88*BL$86)) -> 0 | BN130: =+BL130+BM130 -> 0 | BS130: =+BS$87*$E130 -> 0 | BT130: =+IF(BS$86<$D130,SINH(BS$88-BS$88*$D130)/(BS$89*SINH(BS$88))*SINH(BS$88*BS$86),SINH(BS$88*$D130)/(BS$89*SINH(BS$88))*SINH(BS$88-BS$88*BS$86)) -> 0 | BU130: =+BS130+BT130 -> 0
D131: =+D130+0.05 -> 0.05 | E131: =+E74 -> 0.3040626776 | H131: =+H$87*$E131 -> -0.2900005397 | J131: -0.2900005397 | O131: =+O$87*$E131 -> -0.4329197209 | Q131: -0.4329197209 | V131: =+V$87*$E131 -> -0.5021377023 | X131: -0.5021377023 | AC131: =+AC$87*$E131 -> -0.5331936357 | AE131: -0.5331936357 | AJ131: =+AJ$87*$E131 -> -0.5420328218 | AL131: -0.5420328218 | AQ131: -0.577588405 | AR131: 9.30137241 | AS131: 8.723784005 | AX131: -0.6992170923 | AY131: 1.958719325 | AZ131: 1.259502233 | BE131: -0.7248199996 | BF131: 0.4124747644 | BG131: -0.3123452352 | BL131: -0.7301634237 | BM131: 0.08686054603 | BN131: -0.6433028776 | BS131: -0.7310600789 | BT131: 0.01829142999 | BU131: -0.7127686489
D132: 0.1 | E132: 0.5898484615 | F132: =+E130+4*E131+E132 -> 1.806099172 | H132: -0.5625694462 | J132: -0.5625694462 | K132: =+J130+4*J131+J132 -> -1.722571605 | L132: =+IF(K132>0,$F132,"") ->  | M132: =+IF(K132<0,$F132,"") -> 1.806099172 | O132: -0.8398170841 | Q132: -0.8398170841 | R132: =+Q130+4*Q131+Q132 -> -2.571495968 | S132: =+IF(R132>0,$F132,"") ->  | T132: =+IF(R132<0,$F132,"") -> 1.806099172 | V132: -0.9740924256 | X132: -0.9740924256 | Y132: =+X130+4*X131+X132 -> -2.982643235 | Z132: =+IF(Y132>0,$F132,"") ->  | AA132: =+IF(Y132<0,$F132,"") -> 1.806099172 | AC132: -1.034337552 | AE132: -1.034337552 | AF132: =+AE130+4*AE131+AE132 -> -3.167112095 | AG132: =+IF(AF132>0,$F132,"") ->  | AH132: =+IF(AF132<0,$F132,"") -> 1.806099172 | AJ132: -1.05148461 | AL132: -1.05148461 | AM132: =+AL130+4*AL131+AL132 -> -3.219615897 | AN132: =+IF(AM132>0,$F132,"") ->  | AO132: =+IF(AM132<0,$F132,"") -> 1.806099172 | AQ132: -1.120458567 | AR132: 24.53744511 | AS132: 23.41698654 | AT132: =+AS130+4*AS131+AS132 -> 58.31212256 | AU132: =+IF(AT132>0,$F132,"") -> 1.806099172 | AV132: =+IF(AT132<0,$F132,"") ->  | AX132: -1.356404967 | AY132: 5.167191014 | AZ132: 3.810786047 | BA132: =+AZ130+4*AZ131+AZ132 -> 8.848794978 | BB132: =+IF(BA132>0,$F132,"") -> 1.806099172 | BC132: =+IF(BA132<0,$F132,"") ->  | BE132: -1.406071817 | BF132: 1.088127262 | BG132: -0.3179445552 | BH132: =+BG130+4*BG131+BG132 -> -1.567325496 | BI132: =+IF(BH132>0,$F132,"") ->  | BJ132: =+IF(BH132<0,$F132,"") -> 1.806099172 | BL132: -1.416437478 | BM132: 0.2291420864 | BN132: -1.187295391 | BO132: =+BN130+4*BN131+BN132 -> -3.760506902 | BP132: =+IF(BO132>0,$F132,"") ->  | BQ132: =+IF(BO132<0,$F132,"") -> 1.806099172 | BS132: -1.418176891 | BT132: 0.04825362748 | BU132: -1.369923264 | BV132: =+BU130+4*BU131+BU132 -> -4.220997859 | BW132: =+IF(BV132>0,$F132,"") ->  | BX132: =+IF(BV132<0,$F132,"") -> 1.806099172
D133: 0.15 | E133: 0.8481338768 | H133: -0.8089098073 | J133: -0.8089098073 | O133: -1.207559849 | Q133: -1.207559849 | V133: -1.400632263 | X133: -1.400632263 | AC133: -1.487257788 | AE133: -1.487257788 | AJ133: -1.511913274 | AL133: -1.511913274 | AQ133: -1.611089848 | AR133: 11.26009173 | AS133: 9.649001887 | AX133: -1.950353486 | AY133: 11.6725665 | AZ133: 9.722213013 | BE133: -2.021768673 | BF133: 2.458054636 | BG133: 0.4362859627 | BL133: -2.036673294 | BM133: 0.5176267404 | BN133: -1.519046554 | BS133: -2.039174369 | BT133: 0.1090038425 | BU133: -1.930170527
D134: 0.2 | E134: 1.074686352 | F134: =+E132+4*E133+E134 -> 5.057070321 | H134: -1.024984798 | J134: -1.024984798 | K134: =+J132+4*J133+J134 -> -4.823193473 | L134: =+IF(K134>0,$F134,"") ->  | M134: =+IF(K134<0,$F134,"") -> 5.057070321 | O134: -1.530121748 | Q134: -1.530121748 | R134: =+Q132+4*Q133+Q134 -> -7.200178229 | S134: =+IF(R134>0,$F134,"") ->  | T134: =+IF(R134<0,$F134,"") -> 5.057070321 | V134: -1.774767426 | X134: -1.774767426 | Y134: =+X132+4*X133+X134 -> -8.351388902 | Z134: =+IF(Y134>0,$F134,"") ->  | AA134: =+IF(Y134<0,$F134,"") -> 5.057070321 | AC134: -1.884532255 | AE134: -1.884532255 | AF134: =+AE132+4*AE133+AE134 -> -8.867900959 | AG134: =+IF(AF134>0,$F134,"") ->  | AH134: =+IF(AF134<0,$F134,"") -> 5.057070321 | AJ134: -1.915773684 | AL134: -1.915773684 | AM134: =+AL132+4*AL133+AL134 -> -9.01491139 | AN134: =+IF(AM134>0,$F134,"") ->  | AO134: =+IF(AM134<0,$F134,"") -> 5.057070321 | AQ134: -2.041442182 | AR134: 5.167191014 | AS134: 3.125748831 | AT134: =+AS132+4*AS133+AS134 -> 65.13874292 | AU134: =+IF(AT134>0,$F134,"") -> 5.057070321 | AV134: =+IF(AT134<0,$F134,"") ->  | AX134: -2.471329504 | AY134: 25.62557237 | AZ134: 23.15424287 | BA134: =+AZ132+4*AZ133+AZ134 -> 65.85388097 | BB134: =+IF(BA134>0,$F134,"") -> 5.057070321 | BC134: =+IF(BA134<0,$F134,"") ->  | BE134: -2.561821028 | BF134: 5.3963331 | BG134: 2.834512072 | BH134: =+BG132+4*BG133+BG134 -> 4.261711368 | BI134: =+IF(BH134>0,$F134,"") -> 5.057070321 | BJ134: =+IF(BH134<0,$F134,"") ->  | BL134: -2.580706953 | BM134: 1.136380889 | BN134: -1.444326064 | BO134: =+BN132+4*BN133+BN134 -> -8.707807669 | BP134: =+IF(BO134>0,$F134,"") ->  | BQ134: =+IF(BO134<0,$F134,"") -> 5.057070321 | BS134: -2.583876113 | BT134: 0.2393034862 | BU134: -2.344572627 | BV134: =+BU132+4*BU133+BU134 -> -11.435178 | BW134: =+IF(BV134>0,$F134,"") ->  | BX134: =+IF(BV134<0,$F134,"") -> 5.057070321
D135: 0.25 | E135: 1.267563647 | H135: -1.208942 | J135: -1.208942 | O135: -1.804737446 | Q135: -1.804737446 | V135: -2.093290443 | X135: -2.093290443 | AC135: -2.222755106 | AE135: -2.222755106 | AJ135: -2.259603532 | AL135: -2.259603532 | AQ135: -2.407826146 | AR135: 2.37119409 | AS135: -0.03663205606 | AX135: -2.914866679 | AY135: 11.75942705 | AZ135: 8.844560366 | BE135: -3.021598998 | BF135: 11.77771848 | BG135: 8.756119477 | BL135: -3.043874438 | BM135: 2.480197932 | BN135: -0.5636765064 | BS135: -3.047612377 | BT135: 0.5222896804 | BU135: -2.525322697
D136: 0.3 | E136: 1.425874611 | F136: =+E134+4*E135+E136 -> 7.570815551 | H136: -1.359931478 | J136: -1.359931478 | K136: =+J134+4*J135+J136 -> -7.220684277 | L136: =+IF(K136>0,$F136,"") ->  | M136: =+IF(K136<0,$F136,"") -> 7.570815551 | O136: -2.03013814 | Q136: -2.03013814 | R136: =+Q134+4*Q135+Q136 -> -10.77920967 | S136: =+IF(R136>0,$F136,"") ->  | T136: =+IF(R136<0,$F136,"") -> 7.570815551 | V136: -2.354729645 | X136: -2.354729645 | Y136: =+X134+4*X135+X136 -> -12.50265884 | Z136: =+IF(Y136>0,$F136,"") ->  | AA136: =+IF(Y136<0,$F136,"") -> 7.570815551 | AC136: -2.500363655 | AE136: -2.500363655 | AF136: =+AE134+4*AE135+AE136 -> -13.27591634 | AG136: =+IF(AF136>0,$F136,"") ->  | AH136: =+IF(AF136<0,$F136,"") -> 7.570815551 | AJ136: -2.541814224 | AL136: -2.541814224 | AM136: =+AL134+4*AL135+AL136 -> -13.49600204 | AN136: =+IF(AM136>0,$F136,"") ->  | AO136: =+IF(AM136<0,$F136,"") -> 7.570815551 | AQ136: -2.708548938 | AR136: 1.088127262 | AS136: -1.620421676 | AT136: =+AS134+4*AS135+AS136 -> 1.358798931 | AU136: =+IF(AT136>0,$F136,"") -> 7.570815551 | AV136: =+IF(AT136<0,$F136,"") ->  | AX136: -3.27891574 | AY136: 5.3963331 | AZ136: 2.11741736 | BA136: =+AZ134+4*AZ135+AZ136 -> 60.64990169 | BB136: =+IF(BA136>0,$F136,"") -> 7.570815551 | BC136: =+IF(BA136<0,$F136,"") ->  | BE136: -3.398978273 | BF136: 25.673826 | BG136: 22.27484773 | BH136: =+BG134+4*BG135+BG136 -> 60.13383771 | BI136: =+IF(BH136>0,$F136,"") -> 7.570815551 | BJ136: =+IF(BH136<0,$F136,"") ->  | BL136: -3.424035781 | BM136: 5.4064945 | BN136: 1.982458719 | BO136: =+BN134+4*BN135+BN136 -> -1.716573371 | BP136: =+IF(BO136>0,$F136,"") ->  | BQ136: =+IF(BO136<0,$F136,"") -> 7.570815551 | BS136: -3.428240565 | BT136: 1.138520538 | BU136: -2.289720027 | BV136: =+BU134+4*BU135+BU136 -> -14.73558344 | BW136: =+IF(BV136>0,$F136,"") ->  | BX136: =+IF(BV136<0,$F136,"") -> 7.570815551
D137: 0.35 | E137: 1.549210593 | H137: -1.47756348 | J137: -1.47756348 | O137: -2.205741996 | Q137: -2.205741996 | V137: -2.558410173 | X137: -2.558410173 | AC137: -2.716641303 | AE137: -2.716641303 | AJ137: -2.761677283 | AL137: -2.761677283 | AQ137: -2.942834295 | AR137: 0.4993353104 | AS137: -2.443498984 | AX137: -3.562536957 | AY137: 2.476346066 | AZ137: -1.086190891 | BE137: -3.692984717 | BF137: 11.78157034 | BG137: 8.088585625 | BL137: -3.72020966 | BM137: 11.78238142 | BN137: 8.062171755 | BS137: -3.724778152 | BT137: 2.481179484 | BU137: -1.243598668
D138: 0.4 | E138: 1.6373847 | F138: =+E136+4*E137+E138 -> 9.260101683 | H138: -1.561659755 | J138: -1.561659755 | K138: =+J136+4*J137+J138 -> -8.831845153 | L138: =+IF(K138>0,$F138,"") ->  | M138: =+IF(K138<0,$F138,"") -> 9.260101683 | O138: -2.331282921 | Q138: -2.331282921 | R138: =+Q136+4*Q137+Q138 -> -13.18438905 | S138: =+IF(R138>0,$F138,"") ->  | T138: =+IF(R138<0,$F138,"") -> 9.260101683 | V138: -2.704023385 | X138: -2.704023385 | Y138: =+X136+4*X137+X138 -> -15.29239372 | Z138: =+IF(Y138>0,$F138,"") ->  | AA138: =+IF(Y138<0,$F138,"") -> 9.260101683 | AC138: -2.87126032 | AE138: -2.87126032 | AF138: =+AE136+4*AE137+AE138 -> -16.23818919 | AG138: =+IF(AF138>0,$F138,"") ->  | AH138: =+IF(AF138<0,$F138,"") -> 9.260101683 | AJ138: -2.918859546 | AL138: -2.918859546 | AM138: =+AL136+4*AL137+AL138 -> -16.5073829 | AN138: =+IF(AM138>0,$F138,"") ->  | AO138: =+IF(AM138<0,$F138,"") -> 9.260101683 | AQ138: -3.110327201 | AR138: 0.2291420864 | AS138: -2.881185115 | AT138: =+AS136+4*AS137+AS138 -> -14.27560273 | AU138: =+IF(AT138>0,$F138,"") ->  | AV138: =+IF(AT138<0,$F138,"") -> 9.260101683 | AX138: -3.765300555 | AY138: 1.136380889 | AZ138: -2.628919665 | BA138: =+AZ136+4*AZ137+AZ138 -> -4.856265871 | BB138: =+IF(BA138>0,$F138,"") ->  | BC138: =+IF(BA138<0,$F138,"") -> 9.260101683 | BE138: -3.903172815 | BF138: 5.4064945 | BG138: 1.503321685 | BH138: =+BG136+4*BG137+BG138 -> 56.13251191 | BI138: =+IF(BH138>0,$F138,"") -> 9.260101683 | BJ138: =+IF(BH138<0,$F138,"") ->  | BL138: -3.93194728 | BM138: 25.67596565 | BN138: 21.74401837 | BO138: =+BN136+4*BN137+BN138 -> 55.97516411 | BP138: =+IF(BO138>0,$F138,"") -> 9.260101683 | BQ138: =+IF(BO138<0,$F138,"") ->  | BS138: -3.936775789 | BT138: 5.406944228 | BU138: 1.470168439 | BV138: =+BU136+4*BU137+BU138 -> -5.793946262 | BW138: =+IF(BV138>0,$F138,"") ->  | BX138: =+IF(BV138<0,$F138,"") -> 9.260101683
D139: 0.45 | E139: 1.69031255 | H139: -1.612139825 | J139: -1.612139825 | O139: -2.406640773 | Q139: -2.406640773 | V139: -2.791429934 | X139: -2.791429934 | AC139: -2.964072741 | AE139: -2.964072741 | AJ139: -3.013210594 | AL139: -3.013210594 | AQ139: -3.21086737 | AR139: 0.105151976 | AS139: -3.105715394 | AX139: -3.887012493 | AY139: 0.5214786069 | AZ139: -3.365533886 | BE139: -4.029341423 | BF139: 2.481009006 | BG139: -1.548332417 | BL139: -4.059046012 | BM139: 11.78255189 | BN139: 7.723505882 | BS139: -4.064030601 | BT139: 11.78258627 | BU139: 7.718555668
D140: 0.5 | E140: 1.707958439 | F140: =+E138+4*E139+E140 -> 10.10659334 | H140: -1.628969635 | J140: -1.628969635 | K140: =+J138+4*J139+J140 -> -9.639188689 | L140: =+IF(K140>0,$F140,"") ->  | M140: =+IF(K140<0,$F140,"") -> 10.10659334 | O140: -2.431764715 | Q140: -2.431764715 | R140: =+Q138+4*Q139+Q140 -> -14.38961073 | S140: =+IF(R140>0,$F140,"") ->  | T140: =+IF(R140<0,$F140,"") -> 10.10659334 | V140: -2.820570854 | X140: -2.820570854 | Y140: =+X138+4*X139+X140 -> -16.69031398 | Z140: =+IF(Y140>0,$F140,"") ->  | AA140: =+IF(Y140<0,$F140,"") -> 10.10659334 | AC140: -2.995015951 | AE140: -2.995015951 | AF140: =+AE138+4*AE139+AE140 -> -17.72256723 | AG140: =+IF(AF140>0,$F140,"") ->  | AH140: =+IF(AF140<0,$F140,"") -> 10.10659334 | AJ140: -3.044666775 | AL140: -3.044666775 | AM140: =+AL138+4*AL139+AL140 -> -18.0163687 | AN140: =+IF(AM140>0,$F140,"") ->  | AO140: =+IF(AM140<0,$F140,"") -> 10.10659334 | AQ140: -3.244386974 | AR140: 0.04825362748 | AS140: -3.196133347 | AT140: =+AS138+4*AS139+AS140 -> -18.50018004 | AU140: =+IF(AT140>0,$F140,"") ->  | AV140: =+IF(AT140<0,$F140,"") -> 10.10659334 | AX140: -3.927590662 | AY140: 0.2393034862 | AZ140: -3.688287176 | BA140: =+AZ138+4*AZ139+AZ140 -> -19.77934239 | BB140: =+IF(BA140>0,$F140,"") ->  | BC140: =+IF(BA140<0,$F140,"") -> 10.10659334 | BE140: -4.071405424 | BF140: 1.138520538 | BG140: -2.932884886 | BH140: =+BG138+4*BG139+BG140 -> -7.622892869 | BI140: =+IF(BH140>0,$F140,"") ->  | BJ140: =+IF(BH140<0,$F140,"") -> 10.10659334 | BL140: -4.101420112 | BM140: 5.406944228 | BN140: 1.305524117 | BO140: =+BN138+4*BN139+BN140 -> 53.94356601 | BP140: =+IF(BO140>0,$F140,"") -> 10.10659334 | BQ140: =+IF(BO140<0,$F140,"") ->  | BS140: -4.106456737 | BT140: 25.67605633 | BU140: 21.5695996 | BV140: =+BU138+4*BU139+BU140 -> 53.91399071 | BW140: =+IF(BV140>0,$F140,"") -> 10.10659334 | BX140: =+IF(BV140<0,$F140,"") -> 
D141: 0.55 | E141: =+E139 -> 1.69031255 | H141: =+H139 -> -1.612139825 | J141: -1.612139825 | O141: =+O139 -> -2.406640773 | Q141: -2.406640773 | V141: =+V139 -> -2.791429934 | X141: -2.791429934 | AC141: =+AC139 -> -2.964072741 | AE141: -2.964072741 | AJ141: =+AJ139 -> -3.013210594 | AL141: -3.013210594 | AQ141: =+AQ139 -> -3.21086737 | AR141: 0.02214329651 | AS141: -3.188724073 | AX141: =+AX139 -> -3.887012493 | AY141: 0.109814916 | AZ141: -3.777197577 | BE141: =+BE139 -> -4.029341423 | BF141: 0.5224601584 | BG141: -3.506881264 | BL141: =+BL139 -> -4.059046012 | BM141: 2.481213859 | BN141: -1.577832152 | BS141: =+BS139 -> -4.064030601 | BT141: 11.78258627 | BU141: 7.718555668
D142: 0.6 | E142: =+E138 -> 1.6373847 | F142: =+E140+4*E141+E142 -> 10.10659334 | H142: =+H138 -> -1.561659755 | J142: -1.561659755 | K142: =+J140+4*J141+J142 -> -9.639188689 | L142: =+IF(K142>0,$F142,"") ->  | M142: =+IF(K142<0,$F142,"") -> 10.10659334 | O142: =+O138 -> -2.331282921 | Q142: -2.331282921 | R142: =+Q140+4*Q141+Q142 -> -14.38961073 | S142: =+IF(R142>0,$F142,"") ->  | T142: =+IF(R142<0,$F142,"") -> 10.10659334 | V142: =+V138 -> -2.704023385 | X142: -2.704023385 | Y142: =+X140+4*X141+X142 -> -16.69031398 | Z142: =+IF(Y142>0,$F142,"") ->  | AA142: =+IF(Y142<0,$F142,"") -> 10.10659334 | AC142: =+AC138 -> -2.87126032 | AE142: -2.87126032 | AF142: =+AE140+4*AE141+AE142 -> -17.72256723 | AG142: =+IF(AF142>0,$F142,"") ->  | AH142: =+IF(AF142<0,$F142,"") -> 10.10659334 | AJ142: =+AJ138 -> -2.918859546 | AL142: -2.918859546 | AM142: =+AL140+4*AL141+AL142 -> -18.0163687 | AN142: =+IF(AM142>0,$F142,"") ->  | AO142: =+IF(AM142<0,$F142,"") -> 10.10659334 | AQ142: =+AQ138 -> -3.110327201 | AR142: 0.01016139976 | AS142: -3.100165801 | AT142: =+AS140+4*AS141+AS142 -> -19.05119544 | AU142: =+IF(AT142>0,$F142,"") ->  | AV142: =+IF(AT142<0,$F142,"") -> 10.10659334 | AX142: =+AX138 -> -3.765300555 | AY142: 0.05039327639 | AZ142: -3.714907278 | BA142: =+AZ140+4*AZ141+AZ142 -> -22.51198476 | BB142: =+IF(BA142>0,$F142,"") ->  | BC142: =+IF(BA142<0,$F142,"") -> 10.10659334 | BE142: =+BE138 -> -3.903172815 | BF142: 0.2397532149 | BG142: -3.6634196 | BH142: =+BG140+4*BG141+BG142 -> -20.62382954 | BI142: =+IF(BH142>0,$F142,"") ->  | BJ142: =+IF(BH142<0,$F142,"") -> 10.10659334 | BL142: =+BL138 -> -3.93194728 | BM142: 1.138611222 | BN142: -2.793336057 | BO142: =+BN140+4*BN141+BN142 -> -7.79914055 | BP142: =+IF(BO142>0,$F142,"") ->  | BQ142: =+IF(BO142<0,$F142,"") -> 10.10659334 | BS142: =+BS138 -> -3.936775789 | BT142: 5.406944228 | BU142: 1.470168439 | BV142: =+BU140+4*BU141+BU142 -> 53.91399071 | BW142: =+IF(BV142>0,$F142,"") -> 10.10659334 | BX142: =+IF(BV142<0,$F142,"") -> 
D143: 0.65 | E143: =+E137 -> 1.549210593 | H143: =+H137 -> -1.47756348 | J143: -1.47756348 | O143: =+O137 -> -2.205741996 | Q143: -2.205741996 | V143: =+V137 -> -2.558410173 | X143: -2.558410173 | AC143: =+AC137 -> -2.716641303 | AE143: -2.716641303 | AJ143: =+AJ137 -> -2.761677283 | AL143: -2.761677283 | AQ143: =+AQ137 -> -2.942834295 | AR143: 0.004662940015 | AS143: -2.938171355 | AX143: =+AX137 -> -3.562536957 | AY143: 0.02312484801 | AZ143: -3.539412109 | BE143: =+BE137 -> -3.692984717 | BF143: 0.1100197696 | BG143: -3.582964947 | BL143: =+BL137 -> -3.72020966 | BM143: 0.522494534 | BN143: -3.197715126 | BS143: =+BS137 -> -3.724778152 | BT143: 2.481179484 | BU143: -1.243598668
D144: 0.7 | E144: =+E136 -> 1.425874611 | F144: =+E142+4*E143+E144 -> 9.260101683 | H144: =+H136 -> -1.359931478 | J144: -1.359931478 | K144: =+J142+4*J143+J144 -> -8.831845153 | L144: =+IF(K144>0,$F144,"") ->  | M144: =+IF(K144<0,$F144,"") -> 9.260101683 | O144: =+O136 -> -2.03013814 | Q144: -2.03013814 | R144: =+Q142+4*Q143+Q144 -> -13.18438905 | S144: =+IF(R144>0,$F144,"") ->  | T144: =+IF(R144<0,$F144,"") -> 9.260101683 | V144: =+V136 -> -2.354729645 | X144: -2.354729645 | Y144: =+X142+4*X143+X144 -> -15.29239372 | Z144: =+IF(Y144>0,$F144,"") ->  | AA144: =+IF(Y144<0,$F144,"") -> 9.260101683 | AC144: =+AC136 -> -2.500363655 | AE144: -2.500363655 | AF144: =+AE142+4*AE143+AE144 -> -16.23818919 | AG144: =+IF(AF144>0,$F144,"") ->  | AH144: =+IF(AF144<0,$F144,"") -> 9.260101683 | AJ144: =+AJ136 -> -2.541814224 | AL144: -2.541814224 | AM144: =+AL142+4*AL143+AL144 -> -16.5073829 | AN144: =+IF(AM144>0,$F144,"") ->  | AO144: =+IF(AM144<0,$F144,"") -> 9.260101683 | AQ144: =+AQ136 -> -2.708548938 | AR144: 0.002139648909 | AS144: -2.706409289 | AT144: =+AS142+4*AS143+AS144 -> -17.55926051 | AU144: =+IF(AT144>0,$F144,"") ->  | AV144: =+IF(AT144<0,$F144,"") -> 9.260101683 | AX144: =+AX136 -> -3.27891574 | AY144: 0.01061112853 | AZ144: -3.268304611 | BA144: =+AZ142+4*AZ143+AZ144 -> -21.14086033 | BB144: =+IF(BA144>0,$F144,"") ->  | BC144: =+IF(BA144<0,$F144,"") -> 9.260101683 | BE144: =+BE136 -> -3.398978273 | BF144: 0.05048396059 | BG144: -3.348494313 | BH144: =+BG142+4*BG143+BG144 -> -21.3437737 | BI144: =+IF(BH144>0,$F144,"") ->  | BJ144: =+IF(BH144<0,$F144,"") -> 9.260101683 | BL144: =+BL136 -> -3.424035781 | BM144: 0.2397532149 | BN144: -3.184282566 | BO144: =+BN142+4*BN143+BN144 -> -18.76847913 | BP144: =+IF(BO144>0,$F144,"") ->  | BQ144: =+IF(BO144<0,$F144,"") -> 9.260101683 | BS144: =+BS136 -> -3.428240565 | BT144: 1.138520538 | BU144: -2.289720027 | BV144: =+BU142+4*BU143+BU144 -> -5.793946262 | BW144: =+IF(BV144>0,$F144,"") ->  | BX144: =+IF(BV144<0,$F144,"") -> 9.260101683
D145: 0.75 | E145: =+E135 -> 1.267563647 | H145: =+H135 -> -1.208942 | J145: -1.208942 | O145: =+O135 -> -1.804737446 | Q145: -1.804737446 | V145: =+V135 -> -2.093290443 | X145: -2.093290443 | AC145: =+AC135 -> -2.222755106 | AE145: -2.222755106 | AJ145: =+AJ135 -> -2.259603532 | AL145: -2.259603532 | AQ145: =+AQ135 -> -2.407826146 | AR145: 0.0009815515026 | AS145: -2.406844594 | AX145: =+AX135 -> -2.914866679 | AY145: 0.004867793546 | AZ145: -2.909998886 | BE145: =+BE135 -> -3.021598998 | BF145: 0.02315922353 | BG145: -2.998439774 | BL145: =+BL135 -> -3.043874438 | BM145: 0.109985394 | BN145: -2.933889044 | BS145: =+BS135 -> -3.047612377 | BT145: 0.5222896804 | BU145: -2.525322697
D146: 0.8 | E146: =+E134 -> 1.074686352 | F146: =+E144+4*E145+E146 -> 7.570815551 | H146: =+H134 -> -1.024984798 | J146: -1.024984798 | K146: =+J144+4*J145+J146 -> -7.220684277 | L146: =+IF(K146>0,$F146,"") ->  | M146: =+IF(K146<0,$F146,"") -> 7.570815551 | O146: =+O134 -> -1.530121748 | Q146: -1.530121748 | R146: =+Q144+4*Q145+Q146 -> -10.77920967 | S146: =+IF(R146>0,$F146,"") ->  | T146: =+IF(R146<0,$F146,"") -> 7.570815551 | V146: =+V134 -> -1.774767426 | X146: -1.774767426 | Y146: =+X144+4*X145+X146 -> -12.50265884 | Z146: =+IF(Y146>0,$F146,"") ->  | AA146: =+IF(Y146<0,$F146,"") -> 7.570815551 | AC146: =+AC134 -> -1.884532255 | AE146: -1.884532255 | AF146: =+AE144+4*AE145+AE146 -> -13.27591634 | AG146: =+IF(AF146>0,$F146,"") ->  | AH146: =+IF(AF146<0,$F146,"") -> 7.570815551 | AJ146: =+AJ134 -> -1.915773684 | AL146: -1.915773684 | AM146: =+AL144+4*AL145+AL146 -> -13.49600204 | AN146: =+IF(AM146>0,$F146,"") ->  | AO146: =+IF(AM146<0,$F146,"") -> 7.570815551 | AQ146: =+AQ134 -> -2.041442182 | AR146: 0.0004497287717 | AS146: -2.040992453 | AT146: =+AS144+4*AS145+AS146 -> -14.37478012 | AU146: =+IF(AT146>0,$F146,"") ->  | AV146: =+IF(AT146<0,$F146,"") -> 7.570815551 | AX146: =+AX134 -> -2.471329504 | AY146: 0.002230333107 | AZ146: -2.469099171 | BA146: =+AZ144+4*AZ145+AZ146 -> -17.37739933 | BB146: =+IF(BA146>0,$F146,"") ->  | BC146: =+IF(BA146<0,$F146,"") -> 7.570815551 | BE146: =+BE134 -> -2.561821028 | BF146: 0.01061112853 | BG146: -2.551209899 | BH146: =+BG144+4*BG145+BG146 -> -17.89346331 | BI146: =+IF(BH146>0,$F146,"") ->  | BJ146: =+IF(BH146<0,$F146,"") -> 7.570815551 | BL146: =+BL134 -> -2.580706953 | BM146: 0.05039327639 | BN146: -2.530313677 | BO146: =+BN144+4*BN145+BN146 -> -17.45015242 | BP146: =+IF(BO146>0,$F146,"") ->  | BQ146: =+IF(BO146<0,$F146,"") -> 7.570815551 | BS146: =+BS134 -> -2.583876113 | BT146: 0.2393034862 | BU146: -2.344572627 | BV146: =+BU144+4*BU145+BU146 -> -14.73558344 | BW146: =+IF(BV146>0,$F146,"") ->  | BX146: =+IF(BV146<0,$F146,"") -> 7.570815551
D147: 0.85 | E147: =+E133 -> 0.8481338768 | H147: =+H133 -> -0.8089098073 | J147: -0.8089098073 | O147: =+O133 -> -1.207559849 | Q147: -1.207559849 | V147: =+V133 -> -1.400632263 | X147: -1.400632263 | AC147: =+AC133 -> -1.487257788 | AE147: -1.487257788 | AJ147: =+AJ133 -> -1.511913274 | AL147: -1.511913274 | AQ147: =+AQ133 -> -1.611089848 | AR147: 0.0002048535314 | AS147: -1.610884995 | AX147: =+AX133 -> -1.950353486 | AY147: 0.001015927025 | AZ147: -1.949337559 | BE147: =+BE133 -> -2.021768673 | BF147: 0.004833418024 | BG147: -2.016935255 | BL147: =+BL133 -> -2.036673294 | BM147: 0.02295437 | BN147: -2.013718924 | BS147: =+BS133 -> -2.039174369 | BT147: 0.1090038425 | BU147: -1.930170527
D148: 0.9 | E148: =+E132 -> 0.5898484615 | F148: =+E146+4*E147+E148 -> 5.057070321 | H148: =+H132 -> -0.5625694462 | J148: -0.5625694462 | K148: =+J146+4*J147+J148 -> -4.823193473 | L148: =+IF(K148>0,$F148,"") ->  | M148: =+IF(K148<0,$F148,"") -> 5.057070321 | O148: =+O132 -> -0.8398170841 | Q148: -0.8398170841 | R148: =+Q146+4*Q147+Q148 -> -7.200178229 | S148: =+IF(R148>0,$F148,"") ->  | T148: =+IF(R148<0,$F148,"") -> 5.057070321 | V148: =+V132 -> -0.9740924256 | X148: -0.9740924256 | Y148: =+X146+4*X147+X148 -> -8.351388902 | Z148: =+IF(Y148>0,$F148,"") ->  | AA148: =+IF(Y148<0,$F148,"") -> 5.057070321 | AC148: =+AC132 -> -1.034337552 | AE148: -1.034337552 | AF148: =+AE146+4*AE147+AE148 -> -8.867900959 | AG148: =+IF(AF148>0,$F148,"") ->  | AH148: =+IF(AF148<0,$F148,"") -> 5.057070321 | AJ148: =+AJ132 -> -1.05148461 | AL148: -1.05148461 | AM148: =+AL146+4*AL147+AL148 -> -9.01491139 | AN148: =+IF(AM148>0,$F148,"") ->  | AO148: =+IF(AM148<0,$F148,"") -> 5.057070321 | AQ148: =+AQ132 -> -1.120458567 | AR148: 9.068419755e-05 | AS148: -1.120367883 | AT148: =+AS146+4*AS147+AS148 -> -9.604900315 | AU148: =+IF(AT148>0,$F148,"") ->  | AV148: =+IF(AT148<0,$F148,"") -> 5.057070321 | AX148: =+AX132 -> -1.356404967 | AY148: 0.0004497287717 | AZ148: -1.355955238 | BA148: =+AZ146+4*AZ147+AZ148 -> -11.62240464 | BB148: =+IF(BA148>0,$F148,"") ->  | BC148: =+IF(BA148<0,$F148,"") -> 5.057070321 | BE148: =+BE132 -> -1.406071817 | BF148: 0.002139648909 | BG148: -1.403932168 | BH148: =+BG146+4*BG147+BG148 -> -12.02288309 | BI148: =+IF(BH148>0,$F148,"") ->  | BJ148: =+IF(BH148<0,$F148,"") -> 5.057070321 | BL148: =+BL132 -> -1.416437478 | BM148: 0.01016139976 | BN148: -1.406276078 | BO148: =+BN146+4*BN147+BN148 -> -11.99146545 | BP148: =+IF(BO148>0,$F148,"") ->  | BQ148: =+IF(BO148<0,$F148,"") -> 5.057070321 | BS148: =+BS132 -> -1.418176891 | BT148: 0.04825362748 | BU148: -1.369923264 | BV148: =+BU146+4*BU147+BU148 -> -11.435178 | BW148: =+IF(BV148>0,$F148,"") ->  | BX148: =+IF(BV148<0,$F148,"") -> 5.057070321
D149: 0.95 | E149: =+E131 -> 0.3040626776 | H149: =+H131 -> -0.2900005397 | J149: -0.2900005397 | O149: =+O131 -> -0.4329197209 | Q149: -0.4329197209 | V149: =+V131 -> -0.5021377023 | X149: -0.5021377023 | AC149: =+AC131 -> -0.5331936357 | AE149: -0.5331936357 | AJ149: =+AJ131 -> -0.5420328218 | AL149: -0.5420328218 | AQ149: =+AQ131 -> -0.577588405 | AR149: 3.437552236e-05 | AS149: -0.5775540295 | AX149: =+AX131 -> -0.6992170923 | AY149: 0.000170478009 | AZ149: -0.6990466143 | BE149: =+BE131 -> -0.7248199996 | BF149: 0.0008110734936 | BG149: -0.7240089261 | BL149: =+BL131 -> -0.7301634237 | BM149: 0.003851866521 | BN149: -0.7263115572 | BS149: =+BS131 -> -0.7310600789 | BT149: 0.01829142999 | BU149: -0.7127686489
D150: 1 | E150: =+E130 -> 0 | F150: =+E148+4*E149+E150 -> 1.806099172 | H150: =+H130 -> 0 | J150: 0 | K150: =+J148+4*J149+J150 -> -1.722571605 | L150: =+IF(K150>0,$F150,"") ->  | M150: =+IF(K150<0,$F150,"") -> 1.806099172 | O150: =+O130 -> 0 | Q150: 0 | R150: =+Q148+4*Q149+Q150 -> -2.571495968 | S150: =+IF(R150>0,$F150,"") ->  | T150: =+IF(R150<0,$F150,"") -> 1.806099172 | V150: =+V130 -> 0 | X150: 0 | Y150: =+X148+4*X149+X150 -> -2.982643235 | Z150: =+IF(Y150>0,$F150,"") ->  | AA150: =+IF(Y150<0,$F150,"") -> 1.806099172 | AC150: =+AC130 -> 0 | AE150: 0 | AF150: =+AE148+4*AE149+AE150 -> -3.167112095 | AG150: =+IF(AF150>0,$F150,"") ->  | AH150: =+IF(AF150<0,$F150,"") -> 1.806099172 | AJ150: =+AJ130 -> 0 | AL150: 0 | AM150: =+AL148+4*AL149+AL150 -> -3.219615897 | AN150: =+IF(AM150>0,$F150,"") ->  | AO150: =+IF(AM150<0,$F150,"") -> 1.806099172 | AQ150: =+AQ130 -> 0 | AR150: -1.41986195e-19 | AS150: -1.41986195e-19 | AT150: =+AS148+4*AS149+AS150 -> -3.430584001 | AU150: =+IF(AT150>0,$F150,"") ->  | AV150: =+IF(AT150<0,$F150,"") -> 1.806099172 | AX150: =+AX130 -> 0 | AY150: -7.04149993e-19 | AZ150: -7.04149993e-19 | BA150: =+AZ148+4*AZ149+AZ150 -> -4.152141695 | BB150: =+IF(BA150>0,$F150,"") ->  | BC150: =+IF(BA150<0,$F150,"") -> 1.806099172 | BE150: =+BE130 -> 0 | BF150: -3.350094233e-18 | BG150: -3.350094233e-18 | BH150: =+BG148+4*BG149+BG150 -> -4.299967872 | BI150: =+IF(BH150>0,$F150,"") ->  | BJ150: =+IF(BH150<0,$F150,"") -> 1.806099172 | BL150: =+BL130 -> 0 | BM150: -1.590992176e-17 | BN150: -1.590992176e-17 | BO150: =+BN148+4*BN149+BN150 -> -4.311522306 | BP150: =+IF(BO150>0,$F150,"") ->  | BQ150: =+IF(BO150<0,$F150,"") -> 1.806099172 | BS150: =+BS130 -> 0 | BT150: -7.55517405e-17 | BU150: -7.55517405e-17 | BV150: =+BU148+4*BU149+BU150 -> -4.220997859 | BW150: =+IF(BV150>0,$F150,"") ->  | BX150: =+IF(BV150<0,$F150,"") -> 1.806099172
K151: =+SUMIF(K130:K150,">0") -> 0 | L151: =+SUM(L130:L150) -> 0 | M151: =+SUM(M130:M150) -> 67.60136013 | R151: =+SUMIF(R130:R150,">0") -> 0 | S151: =+SUM(S130:S150) -> 0 | T151: =+SUM(T130:T150) -> 67.60136013 | Y151: =+SUMIF(Y130:Y150,">0") -> 0 | Z151: =+SUM(Z130:Z150) -> 0 | AA151: =+SUM(AA130:AA150) -> 67.60136013 | AF151: =+SUMIF(AF130:AF150,">0") -> 0 | AG151: =+SUM(AG130:AG150) -> 0 | AH151: =+SUM(AH130:AH150) -> 67.60136013 | AM151: =+SUMIF(AM130:AM150,">0") -> 0 | AN151: =+SUM(AN130:AN150) -> 0 | AO151: =+SUM(AO130:AO150) -> 67.60136013 | AT151: =+SUMIF(AT130:AT150,">0") -> 124.8096644 | AU151: =+SUM(AU130:AU150) -> 14.43398504 | AV151: =+SUM(AV130:AV150) -> 53.16737509 | BA151: =+SUMIF(BA130:BA150,">0") -> 135.3525776 | BB151: =+SUM(BB130:BB150) -> 14.43398504 | BC151: =+SUM(BC130:BC150) -> 53.16737509 | BH151: =+SUMIF(BH130:BH150,">0") -> 120.528061 | BI151: =+SUM(BI130:BI150) -> 21.88798755 | BJ151: =+SUM(BJ130:BJ150) -> 45.71337258 | BO151: =+SUMIF(BO130:BO150,">0") -> 109.9187301 | BP151: =+SUM(BP130:BP150) -> 19.36669502 | BQ151: =+SUM(BQ130:BQ150) -> 48.23466511 | BV151: =+SUMIF(BV130:BV150,">0") -> 107.8279814 | BW151: =+SUM(BW130:BW150) -> 20.21318668 | BX151: =+SUM(BX130:BX150) -> 47.38817345
K152: =+SUMIF(K130:K150,"<0") -> -64.47496639 | R152: =+SUMIF(R130:R150,"<0") -> -96.24976728 | Y152: =+SUMIF(Y130:Y150,"<0") -> -111.6387974 | AF152: =+SUMIF(AF130:AF150,"<0") -> -118.5433716 | AM152: =+SUMIF(AM130:AM150,"<0") -> -120.5085618 | AT152: =+SUMIF(AT130:AT150,"<0") -> -96.79650315 | BA152: =+SUMIF(BA130:BA150,"<0") -> -101.440399 | BH152: =+SUMIF(BH130:BH150,"<0") -> -85.37413588 | BO152: =+SUMIF(BO130:BO150,"<0") -> -74.5056478 | BV152: =+SUMIF(BV130:BV150,"<0") -> -72.37141112
D154: 0 | E154: =+F73 -> 0 | H154: =+H$87*$E154 -> 0 | J154: =+H154+I154 -> 0 | O154: =+O$87*$E154 -> 0 | Q154: =+O154+P154 -> 0 | V154: =+V$87*$E154 -> 0 | X154: =+V154+W154 -> 0 | AC154: =+AC$87*$E154 -> 0 | AE154: =+AC154+AD154 -> 0 | AJ154: =+AJ$87*$E154 -> 0 | AL154: =+AJ154+AK154 -> 0 | AQ154: =+AQ$87*$E154 -> 0 | AS154: =+AQ154+AR154 -> 0 | AX154: =+AX$87*$E154 -> 0 | AZ154: =+AX154+AY154 -> 0 | BE154: =+BE$87*$E154 -> 0 | BG154: =+BE154+BF154 -> 0 | BL154: =+BL$87*$E154 -> 0 | BN154: =+BL154+BM154 -> 0 | BS154: =+BS$87*$E154 -> 0 | BU154: =+BS154+BT154 -> 0
D155: =+D154+0.05 -> 0.05 | E155: =+F74 -> 0.04014133182 | H155: =+H$87*$E155 -> -0.03828489567 | J155: -0.03828489567 | O155: =+O$87*$E155 -> -0.05715260519 | Q155: -0.05715260519 | V155: =+V$87*$E155 -> -0.06629053025 | X155: -0.06629053025 | AC155: =+AC$87*$E155 -> -0.0703904301 | AE155: -0.0703904301 | AJ155: =+AJ$87*$E155 -> -0.07155734971 | AL155: -0.07155734971 | AQ155: -0.0762512782 | AS155: -0.0762512782 | AX155: -0.09230828833 | AZ155: -0.09230828833 | BE155: -0.09568829802 | BG155: -0.09568829802 | BL155: -0.0963937189 | BN155: -0.0963937189 | BS155: -0.09651209231 | BU155: -0.09651209231
D156: 0.1 | E156: 0.07865428877 | F156: =+E154+4*E155+E156 -> 0.2392196161 | H156: -0.07501672473 | J156: -0.07501672473 | K156: =+J154+4*J155+J156 -> -0.2281563074 | L156: =+IF(K156>0,$F156,"") ->  | M156: =+IF(K156<0,$F156,"") -> 0.2392196161 | O156: -0.1119867555 | Q156: -0.1119867555 | R156: =+Q154+4*Q155+Q156 -> -0.3405971763 | S156: =+IF(R156>0,$F156,"") ->  | T156: =+IF(R156<0,$F156,"") -> 0.2392196161 | V156: -0.1298919162 | X156: -0.1298919162 | Y156: =+X154+4*X155+X156 -> -0.3950540372 | Z156: =+IF(Y156>0,$F156,"") ->  | AA156: =+IF(Y156<0,$F156,"") -> 0.2392196161 | AC156: -0.1379253992 | AE156: -0.1379253992 | AF156: =+AE154+4*AE155+AE156 -> -0.4194871196 | AG156: =+IF(AF156>0,$F156,"") ->  | AH156: =+IF(AF156<0,$F156,"") -> 0.2392196161 | AJ156: -0.1402119011 | AL156: -0.1402119011 | AM156: =+AL154+4*AL155+AL156 -> -0.4264412999 | AN156: =+IF(AM156>0,$F156,"") ->  | AO156: =+IF(AM156<0,$F156,"") -> 0.2392196161 | AQ156: -0.149409344 | AS156: -0.149409344 | AT156: =+AS154+4*AS155+AS156 -> -0.4544144568 | AU156: =+IF(AT156>0,$F156,"") ->  | AV156: =+IF(AT156<0,$F156,"") -> 0.2392196161 | AX156: -0.1808719949 | AZ156: -0.1808719949 | BA156: =+AZ154+4*AZ155+AZ156 -> -0.5501051483 | BB156: =+IF(BA156>0,$F156,"") ->  | BC156: =+IF(BA156<0,$F156,"") -> 0.2392196161 | BE156: -0.1874949007 | BG156: -0.1874949007 | BH156: =+BG154+4*BG155+BG156 -> -0.5702480928 | BI156: =+IF(BH156>0,$F156,"") ->  | BJ156: =+IF(BH156<0,$F156,"") -> 0.2392196161 | BL156: -0.1888771263 | BN156: -0.1888771263 | BO156: =+BN154+4*BN155+BN156 -> -0.5744520019 | BP156: =+IF(BO156>0,$F156,"") ->  | BQ156: =+IF(BO156<0,$F156,"") -> 0.2392196161 | BS156: -0.1891090712 | BU156: -0.1891090712 | BV156: =+BU154+4*BU155+BU156 -> -0.5751574404 | BW156: =+IF(BV156>0,$F156,"") ->  | BX156: =+IF(BV156<0,$F156,"") -> 0.2392196161
D157: 0.15 | E157: 0.1143530604 | H157: -0.1090645175 | J157: -0.1090645175 | O157: -0.1628141125 | Q157: -0.1628141125 | V157: -0.188845877 | X157: -0.188845877 | AC157: -0.2005255118 | AE157: -0.2005255118 | AJ157: -0.2038497868 | AL157: -0.2038497868 | AQ157: -0.2172216672 | AS157: -0.2172216672 | AX157: -0.2629642514 | AZ157: -0.2629642514 | BE157: -0.2725930911 | BG157: -0.2725930911 | BL157: -0.2746026666 | BN157: -0.2746026666 | BS157: -0.2749398842 | BU157: -0.2749398842
D158: 0.2 | E158: 0.1464050538 | F158: =+E156+4*E157+E158 -> 0.6824715842 | H158: -0.1396341864 | J158: -0.1396341864 | K158: =+J156+4*J157+J158 -> -0.6509089813 | L158: =+IF(K158>0,$F158,"") ->  | M158: =+IF(K158<0,$F158,"") -> 0.6824715842 | O158: -0.2084492432 | Q158: -0.2084492432 | R158: =+Q156+4*Q157+Q158 -> -0.9716924486 | S158: =+IF(R158>0,$F158,"") ->  | T158: =+IF(R158<0,$F158,"") -> 0.6824715842 | V158: -0.2417774451 | X158: -0.2417774451 | Y158: =+X156+4*X157+X158 -> -1.127052869 | Z158: =+IF(Y158>0,$F158,"") ->  | AA158: =+IF(Y158<0,$F158,"") -> 0.6824715842 | AC158: -0.256730762 | AE158: -0.256730762 | AF158: =+AE156+4*AE157+AE158 -> -1.196758208 | AG158: =+IF(AF158>0,$F158,"") ->  | AH158: =+IF(AF158<0,$F158,"") -> 0.6824715842 | AJ158: -0.2609867974 | AL158: -0.2609867974 | AM158: =+AL156+4*AL157+AL158 -> -1.216597846 | AN158: =+IF(AM158>0,$F158,"") ->  | AO158: =+IF(AM158<0,$F158,"") -> 0.6824715842 | AQ158: -0.2781066792 | AS158: -0.2781066792 | AT158: =+AS156+4*AS157+AS158 -> -1.296402692 | AU158: =+IF(AT158>0,$F158,"") ->  | AV158: =+IF(AT158<0,$F158,"") -> 0.6824715842 | AX158: -0.3366704419 | AZ158: -0.3366704419 | BA158: =+AZ156+4*AZ157+AZ158 -> -1.569399442 | BB158: =+IF(BA158>0,$F158,"") ->  | BC158: =+IF(BA158<0,$F158,"") -> 0.6824715842 | BE158: -0.348998147 | BG158: -0.348998147 | BH158: =+BG156+4*BG157+BG158 -> -1.626865412 | BI158: =+IF(BH158>0,$F158,"") ->  | BJ158: =+IF(BH158<0,$F158,"") -> 0.6824715842 | BL158: -0.3515709859 | BN158: -0.3515709859 | BO158: =+BN156+4*BN157+BN158 -> -1.638858779 | BP158: =+IF(BO158>0,$F158,"") ->  | BQ158: =+IF(BO158<0,$F158,"") -> 0.6824715842 | BS158: -0.3520027221 | BU158: -0.3520027221 | BV158: =+BU156+4*BU157+BU158 -> -1.64087133 | BW158: =+IF(BV158>0,$F158,"") ->  | BX158: =+IF(BV158<0,$F158,"") -> 0.6824715842
D159: 0.25 | E159: 0.1742272479 | H159: -0.1661696737 | J159: -0.1661696737 | O159: -0.2480620513 | Q159: -0.2480620513 | V159: -0.287723803 | X159: -0.287723803 | AC159: -0.3055187848 | AE159: -0.3055187848 | AJ159: -0.310583619 | AL159: -0.310583619 | AQ159: -0.3309568903 | AS159: -0.3309568903 | AX159: -0.4006498615 | AZ159: -0.4006498615 | BE159: -0.4153202713 | BG159: -0.4153202713 | BL159: -0.4183820416 | BN159: -0.4183820416 | BS159: -0.4188958231 | BU159: -0.4188958231
D160: 0.3 | E160: 0.1974136158 | F160: =+E158+4*E159+E160 -> 1.040727661 | H160: -0.1882837301 | J160: -0.1882837301 | K160: =+J158+4*J159+J160 -> -0.9925966113 | L160: =+IF(K160>0,$F160,"") ->  | M160: =+IF(K160<0,$F160,"") -> 1.040727661 | O160: -0.2810744421 | Q160: -0.2810744421 | R160: =+Q158+4*Q159+Q160 -> -1.48177189 | S160: =+IF(R160>0,$F160,"") ->  | T160: =+IF(R160<0,$F160,"") -> 1.040727661 | V160: -0.3260144265 | X160: -0.3260144265 | Y160: =+X158+4*X159+X160 -> -1.718687083 | Z160: =+IF(Y160>0,$F160,"") ->  | AA160: =+IF(Y160<0,$F160,"") -> 1.040727661 | AC160: -0.3461775855 | AE160: -0.3461775855 | AF160: =+AE158+4*AE159+AE160 -> -1.824983487 | AG160: =+IF(AF160>0,$F160,"") ->  | AH160: =+IF(AF160<0,$F160,"") -> 1.040727661 | AJ160: -0.3519164538 | AL160: -0.3519164538 | AM160: =+AL158+4*AL159+AL160 -> -1.855237727 | AN160: =+IF(AM160>0,$F160,"") ->  | AO160: =+IF(AM160<0,$F160,"") -> 1.040727661 | AQ160: -0.3750010241 | AS160: -0.3750010241 | AT160: =+AS158+4*AS159+AS160 -> -1.976935264 | AU160: =+IF(AT160>0,$F160,"") ->  | AV160: =+IF(AT160<0,$F160,"") -> 1.040727661 | AX160: -0.4539688183 | AZ160: -0.4539688183 | BA160: =+AZ158+4*AZ159+AZ160 -> -2.393238706 | BB160: =+IF(BA160>0,$F160,"") ->  | BC160: =+IF(BA160<0,$F160,"") -> 1.040727661 | BE160: -0.4705915835 | BG160: -0.4705915835 | BH160: =+BG158+4*BG159+BG160 -> -2.480870816 | BI160: =+IF(BH160>0,$F160,"") ->  | BJ160: =+IF(BH160<0,$F160,"") -> 1.040727661 | BL160: -0.4740608178 | BN160: -0.4740608178 | BO160: =+BN158+4*BN159+BN160 -> -2.49915997 | BP160: =+IF(BO160>0,$F160,"") ->  | BQ160: =+IF(BO160<0,$F160,"") -> 1.040727661 | BS160: -0.4746429739 | BU160: -0.4746429739 | BV160: =+BU158+4*BU159+BU160 -> -2.502228988 | BW160: =+IF(BV160>0,$F160,"") ->  | BX160: =+IF(BV160<0,$F160,"") -> 1.040727661
D161: 0.35 | E161: 0.2156845805 | H161: -0.2057097084 | J161: -0.2057097084 | O161: -0.307088358 | Q161: -0.307088358 | V161: -0.3561876142 | X161: -0.3561876142 | AC161: -0.3782169077 | AE161: -0.3782169077 | AJ161: -0.384486918 | AL161: -0.384486918 | AQ161: -0.4097080044 | AS161: -0.4097080044 | AX161: -0.4959844018 | AZ161: -0.4959844018 | BE161: -0.5141456321 | BG161: -0.5141456321 | BL161: -0.5179359499 | BN161: -0.5179359499 | BS161: -0.5185719856 | BU161: -0.5185719856
D162: 0.4 | E162: 0.2288522116 | F162: =+E160+4*E161+E162 -> 1.28900415 | H162: -0.2182683695 | J162: -0.2182683695 | K162: =+J160+4*J161+J162 -> -1.229390933 | L162: =+IF(K162>0,$F162,"") ->  | M162: =+IF(K162<0,$F162,"") -> 1.28900415 | O162: -0.3258362268 | Q162: -0.3258362268 | R162: =+Q160+4*Q161+Q162 -> -1.835264101 | S162: =+IF(R162>0,$F162,"") ->  | T162: =+IF(R162<0,$F162,"") -> 1.28900415 | V162: -0.3779330124 | X162: -0.3779330124 | Y162: =+X160+4*X161+X162 -> -2.128697896 | Z162: =+IF(Y162>0,$F162,"") ->  | AA162: =+IF(Y162<0,$F162,"") -> 1.28900415 | AC162: -0.4013072032 | AE162: -0.4013072032 | AF162: =+AE160+4*AE161+AE162 -> -2.260352419 | AG162: =+IF(AF162>0,$F162,"") ->  | AH162: =+IF(AF162<0,$F162,"") -> 1.28900415 | AJ162: -0.4079600002 | AL162: -0.4079600002 | AM162: =+AL160+4*AL161+AL162 -> -2.297824126 | AN162: =+IF(AM162>0,$F162,"") ->  | AO162: =+IF(AM162<0,$F162,"") -> 1.28900415 | AQ162: -0.4347208442 | AS162: -0.4347208442 | AT162: =+AS160+4*AS161+AS162 -> -2.448553886 | AU162: =+IF(AT162>0,$F162,"") ->  | AV162: =+IF(AT162<0,$F162,"") -> 1.28900415 | AX162: -0.5262644505 | AZ162: -0.5262644505 | BA162: =+AZ160+4*AZ161+AZ162 -> -2.964170876 | BB162: =+IF(BA162>0,$F162,"") ->  | BC162: =+IF(BA162<0,$F162,"") -> 1.28900415 | BE162: -0.5455344313 | BG162: -0.5455344313 | BH162: =+BG160+4*BG161+BG162 -> -3.072708543 | BI162: =+IF(BH162>0,$F162,"") ->  | BJ162: =+IF(BH162<0,$F162,"") -> 1.28900415 | BL162: -0.5495561496 | BN162: -0.5495561496 | BO162: =+BN160+4*BN161+BN162 -> -3.095360767 | BP162: =+IF(BO162>0,$F162,"") ->  | BQ162: =+IF(BO162<0,$F162,"") -> 1.28900415 | BS162: -0.5502310155 | BU162: -0.5502310155 | BV162: =+BU160+4*BU161+BU162 -> -3.099161932 | BW162: =+IF(BV162>0,$F162,"") ->  | BX162: =+IF(BV162<0,$F162,"") -> 1.28900415
D163: 0.45 | E163: 0.2367968306 | H163: -0.2258455697 | J163: -0.2258455697 | O163: -0.3371476519 | Q163: -0.3371476519 | V163: -0.3910529807 | X163: -0.3910529807 | AC163: -0.415238608 | AE163: -0.415238608 | AJ163: -0.4221223573 | AL163: -0.4221223573 | AQ163: -0.4498122056 | AS163: -0.4498122056 | AX163: -0.5445337541 | AZ163: -0.5445337541 | BE163: -0.5644726935 | BG163: -0.5644726935 | BL163: -0.5686340259 | BN163: -0.5686340259 | BS163: -0.5693323199 | BU163: -0.5693323199
D164: 0.5 | E164: 0.2394521127 | F164: =+E162+4*E163+E164 -> 1.415491646 | H164: -0.2283780517 | J164: -0.2283780517 | K164: =+J162+4*J163+J164 -> -1.3500287 | L164: =+IF(K164>0,$F164,"") ->  | M164: =+IF(K164<0,$F164,"") -> 1.415491646 | O164: -0.3409282013 | Q164: -0.3409282013 | R164: =+Q162+4*Q163+Q164 -> -2.015355036 | S164: =+IF(R164>0,$F164,"") ->  | T164: =+IF(R164<0,$F164,"") -> 1.415491646 | V164: -0.3954379887 | X164: -0.3954379887 | Y164: =+X162+4*X163+X164 -> -2.337582924 | Z164: =+IF(Y164>0,$F164,"") ->  | AA164: =+IF(Y164<0,$F164,"") -> 1.415491646 | AC164: -0.4198948175 | AE164: -0.4198948175 | AF164: =+AE162+4*AE163+AE164 -> -2.482156453 | AG164: =+IF(AF164>0,$F164,"") ->  | AH164: =+IF(AF164<0,$F164,"") -> 1.415491646 | AJ164: -0.4268557566 | AL164: -0.4268557566 | AM164: =+AL162+4*AL163+AL164 -> -2.523305186 | AN164: =+IF(AM164>0,$F164,"") ->  | AO164: =+IF(AM164<0,$F164,"") -> 1.415491646 | AQ164: -0.4548561005 | AS164: -0.4548561005 | AT164: =+AS162+4*AS163+AS164 -> -2.688825767 | AU164: =+IF(AT164>0,$F164,"") ->  | AV164: =+IF(AT164<0,$F164,"") -> 1.415491646 | AX164: -0.5506397933 | AZ164: -0.5506397933 | BA164: =+AZ162+4*AZ163+AZ164 -> -3.25503926 | BB164: =+IF(BA164>0,$F164,"") ->  | BC164: =+IF(BA164<0,$F164,"") -> 1.415491646 | BE164: -0.5708023147 | BG164: -0.5708023147 | BH164: =+BG162+4*BG163+BG164 -> -3.37422752 | BI164: =+IF(BH164>0,$F164,"") ->  | BJ164: =+IF(BH164<0,$F164,"") -> 1.415491646 | BL164: -0.5750103096 | BN164: -0.5750103096 | BO164: =+BN162+4*BN163+BN164 -> -3.399102563 | BP164: =+IF(BO164>0,$F164,"") ->  | BQ164: =+IF(BO164<0,$F164,"") -> 1.415491646 | BS164: -0.5757164337 | BU164: -0.5757164337 | BV164: =+BU162+4*BU163+BU164 -> -3.403276729 | BW164: =+IF(BV164>0,$F164,"") ->  | BX164: =+IF(BV164<0,$F164,"") -> 1.415491646
D165: 0.55 | E165: =+E163 -> 0.2367968306 | H165: =+H163 -> -0.2258455697 | J165: -0.2258455697 | O165: =+O163 -> -0.3371476519 | Q165: -0.3371476519 | V165: =+V163 -> -0.3910529807 | X165: -0.3910529807 | AC165: =+AC163 -> -0.415238608 | AE165: -0.415238608 | AJ165: =+AJ163 -> -0.4221223573 | AL165: -0.4221223573 | AQ165: =+AQ163 -> -0.4498122056 | AS165: -0.4498122056 | AX165: =+AX163 -> -0.5445337541 | AZ165: -0.5445337541 | BE165: =+BE163 -> -0.5644726935 | BG165: -0.5644726935 | BL165: =+BL163 -> -0.5686340259 | BN165: -0.5686340259 | BS165: =+BS163 -> -0.5693323199 | BU165: -0.5693323199
D166: 0.6 | E166: =+E162 -> 0.2288522116 | F166: =+E164+4*E165+E166 -> 1.415491646 | H166: =+H162 -> -0.2182683695 | J166: -0.2182683695 | K166: =+J164+4*J165+J166 -> -1.3500287 | L166: =+IF(K166>0,$F166,"") ->  | M166: =+IF(K166<0,$F166,"") -> 1.415491646 | O166: =+O162 -> -0.3258362268 | Q166: -0.3258362268 | R166: =+Q164+4*Q165+Q166 -> -2.015355036 | S166: =+IF(R166>0,$F166,"") ->  | T166: =+IF(R166<0,$F166,"") -> 1.415491646 | V166: =+V162 -> -0.3779330124 | X166: -0.3779330124 | Y166: =+X164+4*X165+X166 -> -2.337582924 | Z166: =+IF(Y166>0,$F166,"") ->  | AA166: =+IF(Y166<0,$F166,"") -> 1.415491646 | AC166: =+AC162 -> -0.4013072032 | AE166: -0.4013072032 | AF166: =+AE164+4*AE165+AE166 -> -2.482156453 | AG166: =+IF(AF166>0,$F166,"") ->  | AH166: =+IF(AF166<0,$F166,"") -> 1.415491646 | AJ166: =+AJ162 -> -0.4079600002 | AL166: -0.4079600002 | AM166: =+AL164+4*AL165+AL166 -> -2.523305186 | AN166: =+IF(AM166>0,$F166,"") ->  | AO166: =+IF(AM166<0,$F166,"") -> 1.415491646 | AQ166: =+AQ162 -> -0.4347208442 | AS166: -0.4347208442 | AT166: =+AS164+4*AS165+AS166 -> -2.688825767 | AU166: =+IF(AT166>0,$F166,"") ->  | AV166: =+IF(AT166<0,$F166,"") -> 1.415491646 | AX166: =+AX162 -> -0.5262644505 | AZ166: -0.5262644505 | BA166: =+AZ164+4*AZ165+AZ166 -> -3.25503926 | BB166: =+IF(BA166>0,$F166,"") ->  | BC166: =+IF(BA166<0,$F166,"") -> 1.415491646 | BE166: =+BE162 -> -0.5455344313 | BG166: -0.5455344313 | BH166: =+BG164+4*BG165+BG166 -> -3.37422752 | BI166: =+IF(BH166>0,$F166,"") ->  | BJ166: =+IF(BH166<0,$F166,"") -> 1.415491646 | BL166: =+BL162 -> -0.5495561496 | BN166: -0.5495561496 | BO166: =+BN164+4*BN165+BN166 -> -3.399102563 | BP166: =+IF(BO166>0,$F166,"") ->  | BQ166: =+IF(BO166<0,$F166,"") -> 1.415491646 | BS166: =+BS162 -> -0.5502310155 | BU166: -0.5502310155 | BV166: =+BU164+4*BU165+BU166 -> -3.403276729 | BW166: =+IF(BV166>0,$F166,"") ->  | BX166: =+IF(BV166<0,$F166,"") -> 1.415491646
D167: 0.65 | E167: =+E161 -> 0.2156845805 | H167: =+H161 -> -0.2057097084 | J167: -0.2057097084 | O167: =+O161 -> -0.307088358 | Q167: -0.307088358 | V167: =+V161 -> -0.3561876142 | X167: -0.3561876142 | AC167: =+AC161 -> -0.3782169077 | AE167: -0.3782169077 | AJ167: =+AJ161 -> -0.384486918 | AL167: -0.384486918 | AQ167: =+AQ161 -> -0.4097080044 | AS167: -0.4097080044 | AX167: =+AX161 -> -0.4959844018 | AZ167: -0.4959844018 | BE167: =+BE161 -> -0.5141456321 | BG167: -0.5141456321 | BL167: =+BL161 -> -0.5179359499 | BN167: -0.5179359499 | BS167: =+BS161 -> -0.5185719856 | BU167: -0.5185719856
D168: 0.7 | E168: =+E160 -> 0.1974136158 | F168: =+E166+4*E167+E168 -> 1.28900415 | H168: =+H160 -> -0.1882837301 | J168: -0.1882837301 | K168: =+J166+4*J167+J168 -> -1.229390933 | L168: =+IF(K168>0,$F168,"") ->  | M168: =+IF(K168<0,$F168,"") -> 1.28900415 | O168: =+O160 -> -0.2810744421 | Q168: -0.2810744421 | R168: =+Q166+4*Q167+Q168 -> -1.835264101 | S168: =+IF(R168>0,$F168,"") ->  | T168: =+IF(R168<0,$F168,"") -> 1.28900415 | V168: =+V160 -> -0.3260144265 | X168: -0.3260144265 | Y168: =+X166+4*X167+X168 -> -2.128697896 | Z168: =+IF(Y168>0,$F168,"") ->  | AA168: =+IF(Y168<0,$F168,"") -> 1.28900415 | AC168: =+AC160 -> -0.3461775855 | AE168: -0.3461775855 | AF168: =+AE166+4*AE167+AE168 -> -2.260352419 | AG168: =+IF(AF168>0,$F168,"") ->  | AH168: =+IF(AF168<0,$F168,"") -> 1.28900415 | AJ168: =+AJ160 -> -0.3519164538 | AL168: -0.3519164538 | AM168: =+AL166+4*AL167+AL168 -> -2.297824126 | AN168: =+IF(AM168>0,$F168,"") ->  | AO168: =+IF(AM168<0,$F168,"") -> 1.28900415 | AQ168: =+AQ160 -> -0.3750010241 | AS168: -0.3750010241 | AT168: =+AS166+4*AS167+AS168 -> -2.448553886 | AU168: =+IF(AT168>0,$F168,"") ->  | AV168: =+IF(AT168<0,$F168,"") -> 1.28900415 | AX168: =+AX160 -> -0.4539688183 | AZ168: -0.4539688183 | BA168: =+AZ166+4*AZ167+AZ168 -> -2.964170876 | BB168: =+IF(BA168>0,$F168,"") ->  | BC168: =+IF(BA168<0,$F168,"") -> 1.28900415 | BE168: =+BE160 -> -0.4705915835 | BG168: -0.4705915835 | BH168: =+BG166+4*BG167+BG168 -> -3.072708543 | BI168: =+IF(BH168>0,$F168,"") ->  | BJ168: =+IF(BH168<0,$F168,"") -> 1.28900415 | BL168: =+BL160 -> -0.4740608178 | BN168: -0.4740608178 | BO168: =+BN166+4*BN167+BN168 -> -3.095360767 | BP168: =+IF(BO168>0,$F168,"") ->  | BQ168: =+IF(BO168<0,$F168,"") -> 1.28900415 | BS168: =+BS160 -> -0.4746429739 | BU168: -0.4746429739 | BV168: =+BU166+4*BU167+BU168 -> -3.099161932 | BW168: =+IF(BV168>0,$F168,"") ->  | BX168: =+IF(BV168<0,$F168,"") -> 1.28900415
D169: 0.75 | E169: =+E159 -> 0.1742272479 | H169: =+H159 -> -0.1661696737 | J169: -0.1661696737 | O169: =+O159 -> -0.2480620513 | Q169: -0.2480620513 | V169: =+V159 -> -0.287723803 | X169: -0.287723803 | AC169: =+AC159 -> -0.3055187848 | AE169: -0.3055187848 | AJ169: =+AJ159 -> -0.310583619 | AL169: -0.310583619 | AQ169: =+AQ159 -> -0.3309568903 | AS169: -0.3309568903 | AX169: =+AX159 -> -0.4006498615 | AZ169: -0.4006498615 | BE169: =+BE159 -> -0.4153202713 | BG169: -0.4153202713 | BL169: =+BL159 -> -0.4183820416 | BN169: -0.4183820416 | BS169: =+BS159 -> -0.4188958231 | BU169: -0.4188958231
D170: 0.8 | E170: =+E158 -> 0.1464050538 | F170: =+E168+4*E169+E170 -> 1.040727661 | H170: =+H158 -> -0.1396341864 | J170: -0.1396341864 | K170: =+J168+4*J169+J170 -> -0.9925966113 | L170: =+IF(K170>0,$F170,"") ->  | M170: =+IF(K170<0,$F170,"") -> 1.040727661 | O170: =+O158 -> -0.2084492432 | Q170: -0.2084492432 | R170: =+Q168+4*Q169+Q170 -> -1.48177189 | S170: =+IF(R170>0,$F170,"") ->  | T170: =+IF(R170<0,$F170,"") -> 1.040727661 | V170: =+V158 -> -0.2417774451 | X170: -0.2417774451 | Y170: =+X168+4*X169+X170 -> -1.718687083 | Z170: =+IF(Y170>0,$F170,"") ->  | AA170: =+IF(Y170<0,$F170,"") -> 1.040727661 | AC170: =+AC158 -> -0.256730762 | AE170: -0.256730762 | AF170: =+AE168+4*AE169+AE170 -> -1.824983487 | AG170: =+IF(AF170>0,$F170,"") ->  | AH170: =+IF(AF170<0,$F170,"") -> 1.040727661 | AJ170: =+AJ158 -> -0.2609867974 | AL170: -0.2609867974 | AM170: =+AL168+4*AL169+AL170 -> -1.855237727 | AN170: =+IF(AM170>0,$F170,"") ->  | AO170: =+IF(AM170<0,$F170,"") -> 1.040727661 | AQ170: =+AQ158 -> -0.2781066792 | AS170: -0.2781066792 | AT170: =+AS168+4*AS169+AS170 -> -1.976935264 | AU170: =+IF(AT170>0,$F170,"") ->  | AV170: =+IF(AT170<0,$F170,"") -> 1.040727661 | AX170: =+AX158 -> -0.3366704419 | AZ170: -0.3366704419 | BA170: =+AZ168+4*AZ169+AZ170 -> -2.393238706 | BB170: =+IF(BA170>0,$F170,"") ->  | BC170: =+IF(BA170<0,$F170,"") -> 1.040727661 | BE170: =+BE158 -> -0.348998147 | BG170: -0.348998147 | BH170: =+BG168+4*BG169+BG170 -> -2.480870816 | BI170: =+IF(BH170>0,$F170,"") ->  | BJ170: =+IF(BH170<0,$F170,"") -> 1.040727661 | BL170: =+BL158 -> -0.3515709859 | BN170: -0.3515709859 | BO170: =+BN168+4*BN169+BN170 -> -2.49915997 | BP170: =+IF(BO170>0,$F170,"") ->  | BQ170: =+IF(BO170<0,$F170,"") -> 1.040727661 | BS170: =+BS158 -> -0.3520027221 | BU170: -0.3520027221 | BV170: =+BU168+4*BU169+BU170 -> -2.502228988 | BW170: =+IF(BV170>0,$F170,"") ->  | BX170: =+IF(BV170<0,$F170,"") -> 1.040727661
D171: 0.85 | E171: =+E157 -> 0.1143530604 | H171: =+H157 -> -0.1090645175 | J171: -0.1090645175 | O171: =+O157 -> -0.1628141125 | Q171: -0.1628141125 | V171: =+V157 -> -0.188845877 | X171: -0.188845877 | AC171: =+AC157 -> -0.2005255118 | AE171: -0.2005255118 | AJ171: =+AJ157 -> -0.2038497868 | AL171: -0.2038497868 | AQ171: =+AQ157 -> -0.2172216672 | AS171: -0.2172216672 | AX171: =+AX157 -> -0.2629642514 | AZ171: -0.2629642514 | BE171: =+BE157 -> -0.2725930911 | BG171: -0.2725930911 | BL171: =+BL157 -> -0.2746026666 | BN171: -0.2746026666 | BS171: =+BS157 -> -0.2749398842 | BU171: -0.2749398842
D172: 0.9 | E172: =+E156 -> 0.07865428877 | F172: =+E170+4*E171+E172 -> 0.6824715842 | H172: =+H156 -> -0.07501672473 | J172: -0.07501672473 | K172: =+J170+4*J171+J172 -> -0.6509089813 | L172: =+IF(K172>0,$F172,"") ->  | M172: =+IF(K172<0,$F172,"") -> 0.6824715842 | O172: =+O156 -> -0.1119867555 | Q172: -0.1119867555 | R172: =+Q170+4*Q171+Q172 -> -0.9716924486 | S172: =+IF(R172>0,$F172,"") ->  | T172: =+IF(R172<0,$F172,"") -> 0.6824715842 | V172: =+V156 -> -0.1298919162 | X172: -0.1298919162 | Y172: =+X170+4*X171+X172 -> -1.127052869 | Z172: =+IF(Y172>0,$F172,"") ->  | AA172: =+IF(Y172<0,$F172,"") -> 0.6824715842 | AC172: =+AC156 -> -0.1379253992 | AE172: -0.1379253992 | AF172: =+AE170+4*AE171+AE172 -> -1.196758208 | AG172: =+IF(AF172>0,$F172,"") ->  | AH172: =+IF(AF172<0,$F172,"") -> 0.6824715842 | AJ172: =+AJ156 -> -0.1402119011 | AL172: -0.1402119011 | AM172: =+AL170+4*AL171+AL172 -> -1.216597846 | AN172: =+IF(AM172>0,$F172,"") ->  | AO172: =+IF(AM172<0,$F172,"") -> 0.6824715842 | AQ172: =+AQ156 -> -0.149409344 | AS172: -0.149409344 | AT172: =+AS170+4*AS171+AS172 -> -1.296402692 | AU172: =+IF(AT172>0,$F172,"") ->  | AV172: =+IF(AT172<0,$F172,"") -> 0.6824715842 | AX172: =+AX156 -> -0.1808719949 | AZ172: -0.1808719949 | BA172: =+AZ170+4*AZ171+AZ172 -> -1.569399442 | BB172: =+IF(BA172>0,$F172,"") ->  | BC172: =+IF(BA172<0,$F172,"") -> 0.6824715842 | BE172: =+BE156 -> -0.1874949007 | BG172: -0.1874949007 | BH172: =+BG170+4*BG171+BG172 -> -1.626865412 | BI172: =+IF(BH172>0,$F172,"") ->  | BJ172: =+IF(BH172<0,$F172,"") -> 0.6824715842 | BL172: =+BL156 -> -0.1888771263 | BN172: -0.1888771263 | BO172: =+BN170+4*BN171+BN172 -> -1.638858779 | BP172: =+IF(BO172>0,$F172,"") ->  | BQ172: =+IF(BO172<0,$F172,"") -> 0.6824715842 | BS172: =+BS156 -> -0.1891090712 | BU172: -0.1891090712 | BV172: =+BU170+4*BU171+BU172 -> -1.64087133 | BW172: =+IF(BV172>0,$F172,"") ->  | BX172: =+IF(BV172<0,$F172,"") -> 0.6824715842
D173: 0.95 | E173: =+E155 -> 0.04014133182 | H173: =+H155 -> -0.03828489567 | J173: -0.03828489567 | O173: =+O155 -> -0.05715260519 | Q173: -0.05715260519 | V173: =+V155 -> -0.06629053025 | X173: -0.06629053025 | AC173: =+AC155 -> -0.0703904301 | AE173: -0.0703904301 | AJ173: =+AJ155 -> -0.07155734971 | AL173: -0.07155734971 | AQ173: =+AQ155 -> -0.0762512782 | AS173: -0.0762512782 | AX173: =+AX155 -> -0.09230828833 | AZ173: -0.09230828833 | BE173: =+BE155 -> -0.09568829802 | BG173: -0.09568829802 | BL173: =+BL155 -> -0.0963937189 | BN173: -0.0963937189 | BS173: =+BS155 -> -0.09651209231 | BU173: -0.09651209231
D174: 1 | E174: =+E154 -> 0 | F174: =+E172+4*E173+E174 -> 0.2392196161 | H174: =+H154 -> 0 | J174: 0 | K174: =+J172+4*J173+J174 -> -0.2281563074 | L174: =+IF(K174>0,$F174,"") ->  | M174: =+IF(K174<0,$F174,"") -> 0.2392196161 | O174: =+O154 -> 0 | Q174: 0 | R174: =+Q172+4*Q173+Q174 -> -0.3405971763 | S174: =+IF(R174>0,$F174,"") ->  | T174: =+IF(R174<0,$F174,"") -> 0.2392196161 | V174: =+V154 -> 0 | X174: 0 | Y174: =+X172+4*X173+X174 -> -0.3950540372 | Z174: =+IF(Y174>0,$F174,"") ->  | AA174: =+IF(Y174<0,$F174,"") -> 0.2392196161 | AC174: =+AC154 -> 0 | AE174: 0 | AF174: =+AE172+4*AE173+AE174 -> -0.4194871196 | AG174: =+IF(AF174>0,$F174,"") ->  | AH174: =+IF(AF174<0,$F174,"") -> 0.2392196161 | AJ174: =+AJ154 -> 0 | AL174: 0 | AM174: =+AL172+4*AL173+AL174 -> -0.4264412999 | AN174: =+IF(AM174>0,$F174,"") ->  | AO174: =+IF(AM174<0,$F174,"") -> 0.2392196161 | AQ174: =+AQ154 -> 0 | AS174: 0 | AT174: =+AS172+4*AS173+AS174 -> -0.4544144568 | AU174: =+IF(AT174>0,$F174,"") ->  | AV174: =+IF(AT174<0,$F174,"") -> 0.2392196161 | AX174: =+AX154 -> 0 | AZ174: 0 | BA174: =+AZ172+4*AZ173+AZ174 -> -0.5501051483 | BB174: =+IF(BA174>0,$F174,"") ->  | BC174: =+IF(BA174<0,$F174,"") -> 0.2392196161 | BE174: =+BE154 -> 0 | BG174: 0 | BH174: =+BG172+4*BG173+BG174 -> -0.5702480928 | BI174: =+IF(BH174>0,$F174,"") ->  | BJ174: =+IF(BH174<0,$F174,"") -> 0.2392196161 | BL174: =+BL154 -> 0 | BN174: 0 | BO174: =+BN172+4*BN173+BN174 -> -0.5744520019 | BP174: =+IF(BO174>0,$F174,"") ->  | BQ174: =+IF(BO174<0,$F174,"") -> 0.2392196161 | BS174: =+BS154 -> 0 | BU174: 0 | BV174: =+BU172+4*BU173+BU174 -> -0.5751574404 | BW174: =+IF(BV174>0,$F174,"") ->  | BX174: =+IF(BV174<0,$F174,"") -> 0.2392196161
K175: =+SUMIF(K154:K174,">0") -> 0 | L175: =+SUM(L154:L174) -> 0 | M175: =+SUM(M154:M174) -> 9.333829315 | R175: =+SUMIF(R154:R174,">0") -> 0 | S175: =+SUM(S154:S174) -> 0 | T175: =+SUM(T154:T174) -> 9.333829315 | Y175: =+SUMIF(Y154:Y174,">0") -> 0 | Z175: =+SUM(Z154:Z174) -> 0 | AA175: =+SUM(AA154:AA174) -> 9.333829315 | AF175: =+SUMIF(AF154:AF174,">0") -> 0 | AG175: =+SUM(AG154:AG174) -> 0 | AH175: =+SUM(AH154:AH174) -> 9.333829315 | AM175: =+SUMIF(AM154:AM174,">0") -> 0 | AN175: =+SUM(AN154:AN174) -> 0 | AO175: =+SUM(AO154:AO174) -> 9.333829315 | AT175: =+SUMIF(AT154:AT174,">0") -> 0 | AU175: =+SUM(AU154:AU174) -> 0 | AV175: =+SUM(AV154:AV174) -> 9.333829315 | BA175: =+SUMIF(BA154:BA174,">0") -> 0 | BB175: =+SUM(BB154:BB174) -> 0 | BC175: =+SUM(BC154:BC174) -> 9.333829315 | BH175: =+SUMIF(BH154:BH174,">0") -> 0 | BI175: =+SUM(BI154:BI174) -> 0 | BJ175: =+SUM(BJ154:BJ174) -> 9.333829315 | BO175: =+SUMIF(BO154:BO174,">0") -> 0 | BP175: =+SUM(BP154:BP174) -> 0 | BQ175: =+SUM(BQ154:BQ174) -> 9.333829315 | BV175: =+SUMIF(BV154:BV174,">0") -> 0 | BW175: =+SUM(BW154:BW174) -> 0 | BX175: =+SUM(BX154:BX174) -> 9.333829315
K176: =+SUMIF(K154:K174,"<0") -> -8.902163067 | R176: =+SUMIF(R154:R174,"<0") -> -13.2893613 | Y176: =+SUMIF(Y154:Y174,"<0") -> -15.41414962 | AF176: =+SUMIF(AF154:AF174,"<0") -> -16.36747537 | AM176: =+SUMIF(AM154:AM174,"<0") -> -16.63881237 | AT176: =+SUMIF(AT154:AT174,"<0") -> -17.73026413 | BA176: =+SUMIF(BA154:BA174,"<0") -> -21.46390687 | BH176: =+SUMIF(BH154:BH174,"<0") -> -22.24984077 | BO176: =+SUMIF(BO154:BO174,"<0") -> -22.41386816 | BV176: =+SUMIF(BV154:BV174,"<0") -> -22.44139284

Sheet PeeryMethod2 (hidden)
D3: Cable EcAc = | E3: =+Input!E4 -> 6100000 | F3: ton
D5: Span | E5: Center | F5: Side
D6: Cable Span = | E6: =+Input!E7 -> 808 | F6: =+Input!F7 -> 334 | G6: m
D7: Girder L = | E7: =+Input!E8 -> 800 | F7: =+Input!F8 -> 320 | G7: m
D8: Dead Load w = | E8: =+Input!E9 -> 11.99 | F8: =+Input!F9 -> 11.99 | G8: t/m
D9: Live Load p = | E9: =+Input!E10 -> 2.4 | F9: =+Input!F10 -> 2.4 | G9: t/m
D10: Girder EI = | E10: =+Input!E11 -> 34650000 | F10: =+Input!F11 -> 27300000 | G10: t-m^2
D11: f = | E11: =+Input!E12 -> 73 | F11: =+(F8*F7^2)/(E8*E7^2)*E11 -> 11.68 | G11: m
D12: n = | E12: =+E11/E7 -> 0.09125 | F12: =+F11/F7 -> 0.0365
D13: L/f = | E13: =1/E12 -> 10.95890411 | F13: =1/F12 -> 27.39726027
D14: ε = | E14: =+Input!E15 -> 1.2e-05 | F14: /°C
D15: t rise = | E15: =+Input!E16 -> 30 | F15: °C
D16: t drop = | E16: =+Input!E17 -> -30 | F16: °C
D18: cable top to saddle = | E18: =+Input!E19 -> 86.12481481 | F18: m
E20: Main | F20: Side Top | G20: Side | H20: Side Bot | I20: Anchor
D21: b or L(m) | E21: =+(E6-E7)/2 -> 4 | F21: =+F6-(F7+H21) -> 4 | H21: =+Input!H22 -> 10 | I21: =+Input!I22 -> 10
D22: h1(m) | E22: =+(E18*F7-4*F21*F11+4*H21*F11)/(F21+F7+H21) -> 83.35407407
D23: tanα | E23: =4*E11/E7 -> 0.365 | F23: =+(E22+4*F11)/F7 -> 0.4064814815 | G23: =+E22/F7 -> 0.2604814815 | H23: =+(E22-4*F11)/F7 -> 0.1144814815
D24: secα | E24: =+SQRT(1+E23^2) -> 1.064530413 | F24: =+SQRT(1+F23^2) -> 1.079456898 | G24: =+SQRT(1+G23^2) -> 1.03336857 | H24: =+SQRT(1+H23^2) -> 1.006531673 | I24: =+Input!I25 -> 1.414213562
D26: Span | F26: L | G26: n | H26: n2 | I26: secα | J26: sec2α | K26: sec3α | L26: LT | M26: LS
F27: (m) | L27: (m) | M27: (m)
D28: Anchor Span | F28: =+I21 -> 10 | G28: 0 | H28: =+G28^2 -> 0 | I28: =+I24 -> 1.414213562 | J28: =+I28^2 -> 2 | K28: =+I28^3 -> 2.828427125 | L28: =+F28*(J28+16/3*H28) -> 20 | M28: =+F28*(K28+8*H28*I28) -> 28.28427125
D29: End | F29: =+H21 -> 10 | G29: 0 | H29: 0 | I29: =+H24 -> 1.006531673 | J29: 1.01310601 | K29: 1.019723287 | L29: 10.1310601 | M29: 10.19723287
D30: Side Span | F30: =+F7 -> 320 | G30: =+F12 -> 0.0365 | H30: 0.00133225 | I30: =+G24 -> 1.03336857 | J30: 1.067850602 | K30: 1.10348325 | L30: 343.9858994 | M30: 356.6390056
D31: b1 | F31: =+F21 -> 4 | G31: 0 | H31: 0 | I31: =+F24 -> 1.079456898 | J31: 1.165227195 | K31: 1.257812533 | L31: 4.660908779 | M31: 5.031250133
D32: b | F32: =+E21 -> 4 | G32: 0 | H32: 0 | I32: =+E24 -> 1.064530413 | J32: 1.133225 | K32: 1.206352477 | L32: 4.5329 | M32: 4.825409909
D33: Main Span | F33: =+E7 -> 800 | G33: =+E12 -> 0.09125 | H33: 0.0083265625 | I33: 1 | J33: 1 | K33: 1 | L33: 835.5266667 | M33: 853.29
D34: ∑ | L34: =+SUM(L28:L32)*2+L33 -> 1602.148203 | M34: =+SUM(M28:M32)*2+M33 -> 1663.244339
D36: Ls/(EcAc) = | E36: =+M34/E3 -> 0.0002726630065 | F36: m/ton
D38: Hr1 = Hw+Hp = | E38: =+E8*E7^2/(8*E11)+[1]PeeryMethod1!E51 -> 15725.24065 | F38: ton
E40: Main | F40: Side
D41: (cl)^2 | E41: =+E38*E$7^2/E$10 -> 290.4517753 | F41: =+E38*F$7^2/F$10 -> 58.98405283
D42: cl | E42: =+SQRT(E41) -> 17.04264578 | F42: =+SQRT(F41) -> 7.680107605
D43: c | E43: =+E42/E$7 -> 0.02130330723 | F43: =+F42/F$7 -> 0.02400033627
D44: D | E44: =64*E$11^2*E$7/(E$10*E41)*(1/12-1/E41+2*TANH(E42/2)/E42^3) -> 0.002176827256 | F44: =64*F$11^2*F$7/(F$10*F41)*(1/12-1/F41+2*TANH(F42/2)/F42^3) -> 0.0001228268541
D45: Dtotal | E45: =+E44+2*F44+E$36 -> 0.002695143971
D46: D/D0 | E46: =+E45/E44 -> 1.238106498 | F46: =+E45/F44 -> 21.94262803
D47: Hlive | E47: =+E38/E$8*E$9/E46 -> 2542.326685 | F47: =+E38/F$8*F$9/F46 -> 143.4500546
D48: Hlive total | E48: =+E47+2*F47 -> 2829.226794
D49: Ht(+) | E49: =-E$14*E$15*$L$34/$E45 -> -214.0046541
D50: Ht(-) | E50: =-E$14*E$16*$L$34/$E45 -> 214.0046541
D51: Hmax | E51: =+E48+E50 -> 3043.231448
E53: Hr min | F53: Hr min
E54: Main | F54: Side
D55: L | E55: =+E7 -> 800 | F55: =+F7 -> 320
D56: f | E56: =+E11 -> 73 | F56: =+F11 -> 11.68
D57: EI | E57: =+E10 -> 34650000 | F57: =+F10 -> 27300000
D58: (cl)^2 | E58: =+E41 -> 290.4517753 | F58: =+F41 -> 58.98405283
D59: cl | E59: =E42 -> 17.04264578 | F59: =F42 -> 7.680107605
D60: c | E60: =+E43 -> 0.02130330723 | F60: =+F43 -> 0.02400033627
D61: D | E61: =+E45 -> 0.002695143971 | F61: =+E45 -> 0.002695143971
C63: mh | D63: x/L
D64: 0 | E64: =-8*E$56/E$58*(TANH(E$59/2)*SINH(E$59*$D64)-COSH(E$59*$D64)+1) -> 0 | F64: =-8*F$56/F$58*(TANH(F$59/2)*SINH(F$59*$D64)-COSH(F$59*$D64)+1) -> 0
D65: 0.1 | E65: =-8*E$56/E$58*(TANH(E$59/2)*SINH(E$59*$D65)-COSH(E$59*$D65)+1) -> -1.644908885 | F65: -0.8479738422
D66: 0.2 | E66: -1.944125963 | F66: -1.239949021
D67: 0.3 | E67: -1.998544896 | F67: -1.418718591
D68: 0.4 | E68: -2.008386408 | F68: -1.495014081
D69: 0.5 | E69: -2.009859854 | F69: -1.516093623
D72: k/L
C73: -ηH/D | D73: 0 | E73: =-8*E$56/(E$57*E$60^4*E$55^2)*(TANH(E$59/2)*SINH(E$59*$D73)-COSH(E$59*$D73)+1-E$58/2*$D73*(1-$D73))/E$61 -> 0 | F73: =-8*F$56/(F$57*F$60^4*F$55^2)*(TANH(F$59/2)*SINH(F$59*$D73)-COSH(F$59*$D73)+1-F$58/2*$D73*(1-$D73))/F$61 -> 0
D74: =+D73+0.05 -> 0.05 | E74: =-8*E$56/(E$57*E$60^4*E$55^2)*(TANH(E$59/2)*SINH(E$59*$D74)-COSH(E$59*$D74)+1-E$58/2*$D74*(1-$D74))/E$61 -> 0.3000556616 | F74: 0.0404568109
D75: 0.1 | E75: 0.5812659767 | F75: 0.0792044497
D76: 0.15 | E76: 0.8346824653 | F76: 0.1150333403
D77: 0.2 | E77: 1.056488569 | F77: 0.1471210004
D78: 0.25 | E78: 1.245056528 | F78: 0.1749092606
D79: 0.3 | E79: 1.399692146 | F79: 0.1980209401
D80: 0.35 | E80: 1.520099455 | F80: 0.2162035408
D81: 0.4 | E81: 1.606152491 | F81: 0.2292915539
D82: 0.45 | E82: 1.657798151 | F82: 0.2371817531
D83: 0.5 | E83: 1.675015244 | F83: 0.2398177843
H84: 1 | I84: =+H84+1 -> 2 | J84: 3 | K84: 4 | L84: 5 | M84: 6 | N84: 7 | O84: 1 | P84: =+O84+1 -> 2 | Q84: 3 | R84: 4 | S84: 5 | T84: 6 | U84: 7 | V84: 1 | W84: =+V84+1 -> 2 | X84: 3 | Y84: 4 | Z84: 5 | AA84: 6 | AB84: 7 | AC84: 1 | AD84: =+AC84+1 -> 2 | AE84: 3 | AF84: 4 | AG84: 5 | AH84: 6 | AI84: 7 | AJ84: 1 | AK84: =+AJ84+1 -> 2 | AL84: 3 | AM84: 4 | AN84: 5 | AO84: 6 | AP84: 7 | AQ84: 1 | AR84: =+AQ84+1 -> 2 | AS84: 3 | AT84: 4 | AU84: 5 | AV84: 6 | AW84: 7 | AX84: 1 | AY84: =+AX84+1 -> 2 | AZ84: 3 | BA84: 4 | BB84: 5 | BC84: 6 | BD84: 7 | BE84: 1 | BF84: =+BE84+1 -> 2 | BG84: 3 | BH84: 4 | BI84: 5 | BJ84: 6 | BK84: 7 | BL84: 1 | BM84: =+BL84+1 -> 2 | BN84: 3 | BO84: 4 | BP84: 5 | BQ84: 6 | BR84: 7 | BS84: 1 | BT84: =+BS84+1 -> 2 | BU84: 3 | BV84: 4 | BW84: 5 | BX84: 6 | BY84: 7
H85: Side | O85: Side | V85: Side | AC85: Side | AJ85: Side | AQ85: Center | AX85: Center | BE85: Center | BL85: Center | BS85: Center
D86: x/L | H86: 0.1 | O86: =+H86+0.1 -> 0.2 | V86: 0.3 | AC86: 0.4 | AJ86: 0.5 | AQ86: 0.1 | AX86: 0.2 | BE86: 0.3 | BL86: 0.4 | BS86: 0.5
D87: mh | H87: =+INDEX($F$64:$F$69,MATCH(H86,$D$64:$D$69,0)) -> -0.8479738422 | O87: =+INDEX($F$64:$F$69,MATCH(O86,$D$64:$D$69,0)) -> -1.239949021 | V87: =+INDEX($F$64:$F$69,MATCH(V86,$D$64:$D$69,0)) -> -1.418718591 | AC87: =+INDEX($F$64:$F$69,MATCH(AC86,$D$64:$D$69,0)) -> -1.495014081 | AJ87: =+INDEX($F$64:$F$69,MATCH(AJ86,$D$64:$D$69,0)) -> -1.516093623 | AQ87: =+INDEX($E$64:$E$69,MATCH(AQ86,$D$64:$D$69,0)) -> -1.644908885 | AX87: =+INDEX($E$64:$E$69,MATCH(AX86,$D$64:$D$69,0)) -> -1.944125963 | BE87: =+INDEX($E$64:$E$69,MATCH(BE86,$D$64:$D$69,0)) -> -1.998544896 | BL87: =+INDEX($E$64:$E$69,MATCH(BL86,$D$64:$D$69,0)) -> -2.008386408 | BS87: =+INDEX($E$64:$E$69,MATCH(BS86,$D$64:$D$69,0)) -> -2.009859854
D88: cl | H88: =+$F$42 -> 7.680107605 | O88: =+$F$42 -> 7.680107605 | V88: =+$F$42 -> 7.680107605 | AC88: =+$F$42 -> 7.680107605 | AJ88: =+$F$42 -> 7.680107605 | AQ88: =+$E$42 -> 17.04264578 | AX88: =+$E$42 -> 17.04264578 | BE88: =+$E$42 -> 17.04264578 | BL88: =+$E$42 -> 17.04264578 | BS88: =+$E$42 -> 17.04264578
D89: c | H89: =+$F$43 -> 0.02400033627 | O89: =+$F$43 -> 0.02400033627 | V89: =+$F$43 -> 0.02400033627 | AC89: =+$F$43 -> 0.02400033627 | AJ89: =+$F$43 -> 0.02400033627 | AQ89: =+$E$43 -> 0.02130330723 | AX89: =+$E$43 -> 0.02130330723 | BE89: =+$E$43 -> 0.02130330723 | BL89: =+$E$43 -> 0.02130330723 | BS89: =+$E$43 -> 0.02130330723
D92: span | H92: 1 | I92: 2 | J92: 3 | K92: Sub Total | L92: Temp | M92: Total | O92: 1 | P92: 2 | Q92: 3 | R92: Sub Total | S92: Temp | T92: Total | V92: 1 | W92: 2 | X92: 3 | Y92: Sub Total | Z92: Temp | AA92: Total | AC92: 1 | AD92: 2 | AE92: 3 | AF92: Sub Total | AG92: Temp | AH92: Total | AJ92: 1 | AK92: 2 | AL92: 3 | AM92: Sub Total | AN92: Temp | AO92: Total | AQ92: 1 | AR92: 2 | AS92: 3 | AT92: Sub Total | AU92: Temp | AV92: Total | AX92: 1 | AY92: 2 | AZ92: 3 | BA92: Sub Total | BB92: Temp | BC92: Total | BE92: 1 | BF92: 2 | BG92: 3 | BH92: Sub Total | BI92: Temp | BJ92: Total | BL92: 1 | BM92: 2 | BN92: 3 | BO92: Sub Total | BP92: Temp | BQ92: Total | BS92: 1 | BT92: 2 | BU92: 3 | BV92: Sub Total | BW92: Temp | BX92: Total
D93: L | H93: =+$F$7 -> 320 | I93: =+$E$7 -> 800 | J93: =+$F$7 -> 320 | O93: =+$F$7 -> 320 | P93: =+$E$7 -> 800 | Q93: =+$F$7 -> 320 | V93: =+$F$7 -> 320 | W93: =+$E$7 -> 800 | X93: =+$F$7 -> 320 | AC93: =+$F$7 -> 320 | AD93: =+$E$7 -> 800 | AE93: =+$F$7 -> 320 | AJ93: =+$F$7 -> 320 | AK93: =+$E$7 -> 800 | AL93: =+$F$7 -> 320 | AQ93: =+$F$7 -> 320 | AR93: =+$E$7 -> 800 | AS93: =+$F$7 -> 320 | AX93: =+$F$7 -> 320 | AY93: =+$E$7 -> 800 | AZ93: =+$F$7 -> 320 | BE93: =+$F$7 -> 320 | BF93: =+$E$7 -> 800 | BG93: =+$F$7 -> 320 | BL93: =+$F$7 -> 320 | BM93: =+$E$7 -> 800 | BN93: =+$F$7 -> 320 | BS93: =+$F$7 -> 320 | BT93: =+$E$7 -> 800 | BU93: =+$F$7 -> 320
D94: p | H94: =+$F$9 -> 2.4 | I94: =+$E$9 -> 2.4 | J94: =+$F$9 -> 2.4 | O94: =+$F$9 -> 2.4 | P94: =+$E$9 -> 2.4 | Q94: =+$F$9 -> 2.4 | V94: =+$F$9 -> 2.4 | W94: =+$E$9 -> 2.4 | X94: =+$F$9 -> 2.4 | AC94: =+$F$9 -> 2.4 | AD94: =+$E$9 -> 2.4 | AE94: =+$F$9 -> 2.4 | AJ94: =+$F$9 -> 2.4 | AK94: =+$E$9 -> 2.4 | AL94: =+$F$9 -> 2.4 | AQ94: =+$F$9 -> 2.4 | AR94: =+$E$9 -> 2.4 | AS94: =+$F$9 -> 2.4 | AX94: =+$F$9 -> 2.4 | AY94: =+$E$9 -> 2.4 | AZ94: =+$F$9 -> 2.4 | BE94: =+$F$9 -> 2.4 | BF94: =+$E$9 -> 2.4 | BG94: =+$F$9 -> 2.4 | BL94: =+$F$9 -> 2.4 | BM94: =+$E$9 -> 2.4 | BN94: =+$F$9 -> 2.4 | BS94: =+$F$9 -> 2.4 | BT94: =+$E$9 -> 2.4 | BU94: =+$F$9 -> 2.4
D95: ∑+ΔM/P | H95: =+K127 -> 166.9614605 | I95: =+K151 -> 0 | J95: =+K175 -> 0 | O95: =+R127 -> 243.3996178 | P95: =+R151 -> 0 | Q95: =+R175 -> 0 | V95: =+Y127 -> 278.2665855 | W95: =+Y151 -> 0 | X95: =+Y175 -> 0 | AC95: =+AF127 -> 293.2311356 | AD95: =+AF151 -> 0 | AE95: =+AF175 -> 0 | AJ95: =+AM127 -> 297.3656639 | AK95: =+AM151 -> 0 | AL95: =+AM175 -> 0 | AQ95: =+AT127 -> 0 | AR95: =+AT151 -> 109.8733318 | AS95: =+AT175 -> 0 | AX95: =+BA127 -> 0 | AY95: =+BA151 -> 117.5713142 | AZ95: =+BA175 -> 0 | BE95: =+BH127 -> 0 | BF95: =+BH151 -> 104.8348938 | BG95: =+BH175 -> 0 | BL95: =+BO127 -> 0 | BM95: =+BO151 -> 97.40518474 | BN95: =+BO175 -> 0 | BS95: =+BV127 -> 0 | BT95: =+BV151 -> 95.71730378 | BU95: =+BV175 -> 0
D96: ∑-ΔM/P | H96: =+K128 -> -0.6403964182 | I96: =+K152 -> -56.29356206 | J96: =+K176 -> -7.940821359 | O96: =+R128 -> -0.1967850972 | P96: =+R152 -> -82.31521267 | Q96: =+R176 -> -11.6114592 | V96: =+Y128 -> 0 | W96: =+Y152 -> -94.18300317 | X96: =+Y176 -> -13.28554058 | AC96: =+AF128 -> 0 | AD96: =+AF152 -> -99.2479529 | AE96: =+AF176 -> -14.00000702 | AJ96: =+AM128 -> 0 | AK96: =+AM152 -> -100.6473387 | AL96: =+AM176 -> -14.19740566 | AQ96: =+AT128 -> -15.40369167 | AR96: =+AT152 -> -83.50998203 | AS96: =+AT176 -> -15.40369167 | AX96: =+BA128 -> -18.20569952 | AY96: =+BA152 -> -86.41234039 | AZ96: =+BA176 -> -18.20569952 | BE96: =+BH128 -> -18.71530371 | BF96: =+BH152 -> -72.80373466 | BG96: =+BH176 -> -18.71530371 | BL96: =+BO128 -> -18.80746421 | BM96: =+BO152 -> -65.21629336 | BN96: =+BO176 -> -18.80746421 | BS96: =+BV128 -> -18.82126224 | BT96: =+BV152 -> -63.50479712 | BU96: =+BV176 -> -18.82126224
D97: +M | H97: =+H93*H94*H95*0.05/3 -> 2137.106694 | I97: =+I93*I94*I95*0.05/3 -> 0 | J97: =+J93*J94*J95*0.05/3 -> 0 | K97: =+SUM(H97:J97) -> 2137.106694 | L97: =+$E$49*H87 -> 181.4703488 | M97: =+K97+L97 -> 2318.577043 | O97: =+O93*O94*O95*0.05/3 -> 3115.515108 | P97: =+P93*P94*P95*0.05/3 -> 0 | Q97: =+Q93*Q94*Q95*0.05/3 -> 0 | R97: =+SUM(O97:Q97) -> 3115.515108 | S97: =+$E$49*O87 -> 265.3548613 | T97: =+R97+S97 -> 3380.869969 | V97: =+V93*V94*V95*0.05/3 -> 3561.812294 | W97: =+W93*W94*W95*0.05/3 -> 0 | X97: =+X93*X94*X95*0.05/3 -> 0 | Y97: =+SUM(V97:X97) -> 3561.812294 | Z97: =+$E$49*V87 -> 303.6123813 | AA97: =+Y97+Z97 -> 3865.424676 | AC97: =+AC93*AC94*AC95*0.05/3 -> 3753.358535 | AD97: =+AD93*AD94*AD95*0.05/3 -> 0 | AE97: =+AE93*AE94*AE95*0.05/3 -> 0 | AF97: =+SUM(AC97:AE97) -> 3753.358535 | AG97: =+$E$49*AC87 -> 319.9399712 | AH97: =+AF97+AG97 -> 4073.298507 | AJ97: =+AJ93*AJ94*AJ95*0.05/3 -> 3806.280498 | AK97: =+AK93*AK94*AK95*0.05/3 -> 0 | AL97: =+AL93*AL94*AL95*0.05/3 -> 0 | AM97: =+SUM(AJ97:AL97) -> 3806.280498 | AN97: =+$E$49*AJ87 -> 324.4510913 | AO97: =+AM97+AN97 -> 4130.731589 | AQ97: =+AQ93*AQ94*AQ95*0.05/3 -> 0 | AR97: =+AR93*AR94*AR95*0.05/3 -> 3515.946619 | AS97: =+AS93*AS94*AS95*0.05/3 -> 0 | AT97: =+SUM(AQ97:AS97) -> 3515.946619 | AU97: =+$E$49*AQ87 -> 352.0181569 | AV97: =+AT97+AU97 -> 3867.964776 | AX97: =+AX93*AX94*AX95*0.05/3 -> 0 | AY97: =+AY93*AY94*AY95*0.05/3 -> 3762.282054 | AZ97: =+AZ93*AZ94*AZ95*0.05/3 -> 0 | BA97: =+SUM(AX97:AZ97) -> 3762.282054 | BB97: =+$E$49*AX87 -> 416.0520041 | BC97: =+BA97+BB97 -> 4178.334058 | BE97: =+BE93*BE94*BE95*0.05/3 -> 0 | BF97: =+BF93*BF94*BF95*0.05/3 -> 3354.7166 | BG97: =+BG93*BG94*BG95*0.05/3 -> 0 | BH97: =+SUM(BE97:BG97) -> 3354.7166 | BI97: =+$E$49*BE87 -> 427.6979092 | BJ97: =+BH97+BI97 -> 3782.41451 | BL97: =+BL93*BL94*BL95*0.05/3 -> 0 | BM97: =+BM93*BM94*BM95*0.05/3 -> 3116.965912 | BN97: =+BN93*BN94*BN95*0.05/3 -> 0 | BO97: =+SUM(BL97:BN97) -> 3116.965912 | BP97: =+$E$49*BL87 -> 429.8040385 | BQ97: =+BO97+BP97 -> 3546.76995 | BS97: =+BS93*BS94*BS95*0.05/3 -> 0 | BT97: =+BT93*BT94*BT95*0.05/3 -> 3062.953721 | BU97: =+BU93*BU94*BU95*0.05/3 -> 0 | BV97: =+SUM(BS97:BU97) -> 3062.953721 | BW97: =+$E$49*BS87 -> 430.1193628 | BX97: =+BV97+BW97 -> 3493.073084
D98: -M | H98: =+H93*H94*H96*0.05/3 -> -8.197074152 | I98: =+I93*I94*I96*0.05/3 -> -1801.393986 | J98: =+J93*J94*J96*0.05/3 -> -101.6425134 | K98: =+SUM(H98:J98) -> -1911.233574 | L98: =+$E$50*H87 -> -181.4703488 | M98: =+K98+L98 -> -2092.703922 | O98: =+O93*O94*O96*0.05/3 -> -2.518849244 | P98: =+P93*P94*P96*0.05/3 -> -2634.086805 | Q98: =+Q93*Q94*Q96*0.05/3 -> -148.6266777 | R98: =+SUM(O98:Q98) -> -2785.232332 | S98: =+$E$50*O87 -> -265.3548613 | T98: =+R98+S98 -> -3050.587194 | V98: =+V93*V94*V96*0.05/3 -> 0 | W98: =+W93*W94*W96*0.05/3 -> -3013.856101 | X98: =+X93*X94*X96*0.05/3 -> -170.0549194 | Y98: =+SUM(V98:X98) -> -3183.911021 | Z98: =+$E$50*V87 -> -303.6123813 | AA98: =+Y98+Z98 -> -3487.523402 | AC98: =+AC93*AC94*AC96*0.05/3 -> 0 | AD98: =+AD93*AD94*AD96*0.05/3 -> -3175.934493 | AE98: =+AE93*AE94*AE96*0.05/3 -> -179.2000899 | AF98: =+SUM(AC98:AE98) -> -3355.134583 | AG98: =+$E$50*AC87 -> -319.9399712 | AH98: =+AF98+AG98 -> -3675.074554 | AJ98: =+AJ93*AJ94*AJ96*0.05/3 -> 0 | AK98: =+AK93*AK94*AK96*0.05/3 -> -3220.714837 | AL98: =+AL93*AL94*AL96*0.05/3 -> -181.7267924 | AM98: =+SUM(AJ98:AL98) -> -3402.441629 | AN98: =+$E$50*AJ87 -> -324.4510913 | AO98: =+AM98+AN98 -> -3726.892721 | AQ98: =+AQ93*AQ94*AQ96*0.05/3 -> -197.1672534 | AR98: =+AR93*AR94*AR96*0.05/3 -> -2672.319425 | AS98: =+AS93*AS94*AS96*0.05/3 -> -197.1672534 | AT98: =+SUM(AQ98:AS98) -> -3066.653932 | AU98: =+$E$50*AQ87 -> -352.0181569 | AV98: =+AT98+AU98 -> -3418.672089 | AX98: =+AX93*AX94*AX96*0.05/3 -> -233.0329538 | AY98: =+AY93*AY94*AY96*0.05/3 -> -2765.194893 | AZ98: =+AZ93*AZ94*AZ96*0.05/3 -> -233.0329538 | BA98: =+SUM(AX98:AZ98) -> -3231.2608 | BB98: =+$E$50*AX87 -> -416.0520041 | BC98: =+BA98+BB98 -> -3647.312804 | BE98: =+BE93*BE94*BE96*0.05/3 -> -239.5558875 | BF98: =+BF93*BF94*BF96*0.05/3 -> -2329.719509 | BG98: =+BG93*BG94*BG96*0.05/3 -> -239.5558875 | BH98: =+SUM(BE98:BG98) -> -2808.831284 | BI98: =+$E$50*BE87 -> -427.6979092 | BJ98: =+BH98+BI98 -> -3236.529193 | BL98: =+BL93*BL94*BL96*0.05/3 -> -240.7355418 | BM98: =+BM93*BM94*BM96*0.05/3 -> -2086.921388 | BN98: =+BN93*BN94*BN96*0.05/3 -> -240.7355418 | BO98: =+SUM(BL98:BN98) -> -2568.392471 | BP98: =+$E$50*BL87 -> -429.8040385 | BQ98: =+BO98+BP98 -> -2998.19651 | BS98: =+BS93*BS94*BS96*0.05/3 -> -240.9121567 | BT98: =+BT93*BT94*BT96*0.05/3 -> -2032.153508 | BU98: =+BU93*BU94*BU96*0.05/3 -> -240.9121567 | BV98: =+SUM(BS98:BU98) -> -2513.977821 | BW98: =+$E$50*BS87 -> -430.1193628 | BX98: =+BV98+BW98 -> -2944.097184
D99: ∑+ΔH/P | H99: =+L127 -> 7.392195504 | I99: =+L151 -> 0 | J99: =+L175 -> 0 | O99: =+S127 -> 8.436974487 | P99: =+S151 -> 0 | Q99: =+S175 -> 0 | V99: =+Z127 -> 9.364464991 | W99: =+Z151 -> 0 | X99: =+Z175 -> 0 | AC99: =+AG127 -> 9.364464991 | AD99: =+AG151 -> 0 | AE99: =+AG175 -> 0 | AJ99: =+AN127 -> 9.364464991 | AK99: =+AN151 -> 0 | AL99: =+AN175 -> 0 | AQ99: =+AU127 -> 0 | AR99: =+AU151 -> 6.757973029 | AS99: =+AU175 -> 0 | AX99: =+BB127 -> 0 | AY99: =+BB151 -> 14.19437986 | AZ99: =+BB175 -> 0 | BE99: =+BI127 -> 0 | BF99: =+BI151 -> 21.49913369 | BG99: =+BI175 -> 0 | BL99: =+BP127 -> 0 | BM99: =+BP151 -> 18.99860279 | BN99: =+BP175 -> 0 | BS99: =+BW127 -> 0 | BT99: =+BW151 -> 19.82472067 | BU99: =+BW175 -> 0
D100: ∑-ΔH/P | H100: =+M127 -> 1.972269488 | I100: =+M151 -> 66.3859653 | J100: =+M175 -> 9.364464991 | O100: =+T127 -> 0.9274905046 | P100: =+T151 -> 66.3859653 | Q100: =+T175 -> 9.364464991 | V100: =+AA127 -> 0 | W100: =+AA151 -> 66.3859653 | X100: =+AA175 -> 9.364464991 | AC100: =+AH127 -> 0 | AD100: =+AH151 -> 66.3859653 | AE100: =+AH175 -> 9.364464991 | AJ100: =+AO127 -> 0 | AK100: =+AO151 -> 66.3859653 | AL100: =+AO175 -> 9.364464991 | AQ100: =+AV127 -> 9.364464991 | AR100: =+AV151 -> 59.62799227 | AS100: =+AV175 -> 9.364464991 | AX100: =+BC127 -> 9.364464991 | AY100: =+BC151 -> 52.19158544 | AZ100: =+BC175 -> 9.364464991 | BE100: =+BJ127 -> 9.364464991 | BF100: =+BJ151 -> 44.88683161 | BG100: =+BJ175 -> 9.364464991 | BL100: =+BQ127 -> 9.364464991 | BM100: =+BQ151 -> 47.38736251 | BN100: =+BQ175 -> 9.364464991 | BS100: =+BX127 -> 9.364464991 | BT100: =+BX151 -> 46.56124463 | BU100: =+BX175 -> 9.364464991
D101: +H | H101: =+H93*H94*H99*0.05/3 -> 94.62010245 | I101: =+I93*I94*I99*0.05/3 -> 0 | J101: =+J93*J94*J99*0.05/3 -> 0 | K101: =+SUM(H101:J101) -> 94.62010245 | L101: =+$E$49 -> -214.0046541 | M101: =+K101+L101 -> -119.3845516 | O101: =+O93*O94*O99*0.05/3 -> 107.9932734 | P101: =+P93*P94*P99*0.05/3 -> 0 | Q101: =+Q93*Q94*Q99*0.05/3 -> 0 | R101: =+SUM(O101:Q101) -> 107.9932734 | S101: =+$E$49 -> -214.0046541 | T101: =+R101+S101 -> -106.0113806 | V101: =+V93*V94*V99*0.05/3 -> 119.8651519 | W101: =+W93*W94*W99*0.05/3 -> 0 | X101: =+X93*X94*X99*0.05/3 -> 0 | Y101: =+SUM(V101:X101) -> 119.8651519 | Z101: =+$E$49 -> -214.0046541 | AA101: =+Y101+Z101 -> -94.13950218 | AC101: =+AC93*AC94*AC99*0.05/3 -> 119.8651519 | AD101: =+AD93*AD94*AD99*0.05/3 -> 0 | AE101: =+AE93*AE94*AE99*0.05/3 -> 0 | AF101: =+SUM(AC101:AE101) -> 119.8651519 | AG101: =+$E$49 -> -214.0046541 | AH101: =+AF101+AG101 -> -94.13950218 | AJ101: =+AJ93*AJ94*AJ99*0.05/3 -> 119.8651519 | AK101: =+AK93*AK94*AK99*0.05/3 -> 0 | AL101: =+AL93*AL94*AL99*0.05/3 -> 0 | AM101: =+SUM(AJ101:AL101) -> 119.8651519 | AN101: =+$E$49 -> -214.0046541 | AO101: =+AM101+AN101 -> -94.13950218 | AQ101: =+AQ93*AQ94*AQ99*0.05/3 -> 0 | AR101: =+AR93*AR94*AR99*0.05/3 -> 216.2551369 | AS101: =+AS93*AS94*AS99*0.05/3 -> 0 | AT101: =+SUM(AQ101:AS101) -> 216.2551369 | AU101: =+$E$49 -> -214.0046541 | AV101: =+AT101+AU101 -> 2.25048287 | AX101: =+AX93*AX94*AX99*0.05/3 -> 0 | AY101: =+AY93*AY94*AY99*0.05/3 -> 454.2201554 | AZ101: =+AZ93*AZ94*AZ99*0.05/3 -> 0 | BA101: =+SUM(AX101:AZ101) -> 454.2201554 | BB101: =+$E$49 -> -214.0046541 | BC101: =+BA101+BB101 -> 240.2155014 | BE101: =+BE93*BE94*BE99*0.05/3 -> 0 | BF101: =+BF93*BF94*BF99*0.05/3 -> 687.9722781 | BG101: =+BG93*BG94*BG99*0.05/3 -> 0 | BH101: =+SUM(BE101:BG101) -> 687.9722781 | BI101: =+$E$49 -> -214.0046541 | BJ101: =+BH101+BI101 -> 473.967624 | BL101: =+BL93*BL94*BL99*0.05/3 -> 0 | BM101: =+BM93*BM94*BM99*0.05/3 -> 607.9552894 | BN101: =+BN93*BN94*BN99*0.05/3 -> 0 | BO101: =+SUM(BL101:BN101) -> 607.9552894 | BP101: =+$E$49 -> -214.0046541 | BQ101: =+BO101+BP101 -> 393.9506353 | BS101: =+BS93*BS94*BS99*0.05/3 -> 0 | BT101: =+BT93*BT94*BT99*0.05/3 -> 634.3910616 | BU101: =+BU93*BU94*BU99*0.05/3 -> 0 | BV101: =+SUM(BS101:BU101) -> 634.3910616 | BW101: =+$E$49 -> -214.0046541 | BX101: =+BV101+BW101 -> 420.3864075
D102: -H | H102: =+H93*H94*H100*0.05/3 -> 25.24504944 | I102: =+I93*I94*I100*0.05/3 -> 2124.35089 | J102: =+J93*J94*J100*0.05/3 -> 119.8651519 | K102: =+SUM(H102:J102) -> 2269.461091 | L102: =+$E$50 -> 214.0046541 | M102: =+K102+L102 -> 2483.465745 | O102: =+O93*O94*O100*0.05/3 -> 11.87187846 | P102: =+P93*P94*P100*0.05/3 -> 2124.35089 | Q102: =+Q93*Q94*Q100*0.05/3 -> 119.8651519 | R102: =+SUM(O102:Q102) -> 2256.08792 | S102: =+$E$50 -> 214.0046541 | T102: =+R102+S102 -> 2470.092574 | V102: =+V93*V94*V100*0.05/3 -> 0 | W102: =+W93*W94*W100*0.05/3 -> 2124.35089 | X102: =+X93*X94*X100*0.05/3 -> 119.8651519 | Y102: =+SUM(V102:X102) -> 2244.216042 | Z102: =+$E$50 -> 214.0046541 | AA102: =+Y102+Z102 -> 2458.220696 | AC102: =+AC93*AC94*AC100*0.05/3 -> 0 | AD102: =+AD93*AD94*AD100*0.05/3 -> 2124.35089 | AE102: =+AE93*AE94*AE100*0.05/3 -> 119.8651519 | AF102: =+SUM(AC102:AE102) -> 2244.216042 | AG102: =+$E$50 -> 214.0046541 | AH102: =+AF102+AG102 -> 2458.220696 | AJ102: =+AJ93*AJ94*AJ100*0.05/3 -> 0 | AK102: =+AK93*AK94*AK100*0.05/3 -> 2124.35089 | AL102: =+AL93*AL94*AL100*0.05/3 -> 119.8651519 | AM102: =+SUM(AJ102:AL102) -> 2244.216042 | AN102: =+$E$50 -> 214.0046541 | AO102: =+AM102+AN102 -> 2458.220696 | AQ102: =+AQ93*AQ94*AQ100*0.05/3 -> 119.8651519 | AR102: =+AR93*AR94*AR100*0.05/3 -> 1908.095753 | AS102: =+AS93*AS94*AS100*0.05/3 -> 119.8651519 | AT102: =+SUM(AQ102:AS102) -> 2147.826056 | AU102: =+$E$50 -> 214.0046541 | AV102: =+AT102+AU102 -> 2361.830711 | AX102: =+AX93*AX94*AX100*0.05/3 -> 119.8651519 | AY102: =+AY93*AY94*AY100*0.05/3 -> 1670.130734 | AZ102: =+AZ93*AZ94*AZ100*0.05/3 -> 119.8651519 | BA102: =+SUM(AX102:AZ102) -> 1909.861038 | BB102: =+$E$50 -> 214.0046541 | BC102: =+BA102+BB102 -> 2123.865692 | BE102: =+BE93*BE94*BE100*0.05/3 -> 119.8651519 | BF102: =+BF93*BF94*BF100*0.05/3 -> 1436.378612 | BG102: =+BG93*BG94*BG100*0.05/3 -> 119.8651519 | BH102: =+SUM(BE102:BG102) -> 1676.108915 | BI102: =+$E$50 -> 214.0046541 | BJ102: =+BH102+BI102 -> 1890.113569 | BL102: =+BL93*BL94*BL100*0.05/3 -> 119.8651519 | BM102: =+BM93*BM94*BM100*0.05/3 -> 1516.3956 | BN102: =+BN93*BN94*BN100*0.05/3 -> 119.8651519 | BO102: =+SUM(BL102:BN102) -> 1756.125904 | BP102: =+$E$50 -> 214.0046541 | BQ102: =+BO102+BP102 -> 1970.130558 | BS102: =+BS93*BS94*BS100*0.05/3 -> 119.8651519 | BT102: =+BT93*BT94*BT100*0.05/3 -> 1489.959828 | BU102: =+BU93*BU94*BU100*0.05/3 -> 119.8651519 | BV102: =+SUM(BS102:BU102) -> 1729.690132 | BW102: =+$E$50 -> 214.0046541 | BX102: =+BV102+BW102 -> 1943.694786
D105: k/L | E105: H/P | F105: ΔH/P | H105: mhH/P | I105: mp | J105: M/P | K105: ΔM/P | L105: Δ+H/P | M105: Δ-H/P | O105: mhH/P | P105: mp | Q105: M/P | R105: ΔM/P | S105: Δ+H/P | T105: Δ-H/P | V105: mhH/P | W105: mp | X105: M/P | Y105: ΔM/P | Z105: Δ+H/P | AA105: Δ-H/P | AC105: mhH/P | AD105: mp | AE105: M/P | AF105: ΔM/P | AG105: Δ+H/P | AH105: Δ-H/P | AJ105: mhH/P | AK105: mp | AL105: M/P | AM105: ΔM/P | AN105: Δ+H/P | AO105: Δ-H/P | AQ105: mhH/P | AR105: mp | AS105: M/P | AT105: ΔM/P | AU105: Δ+H/P | AV105: Δ-H/P | AX105: mhH/P | AY105: mp | AZ105: M/P | BA105: ΔM/P | BB105: Δ+H/P | BC105: Δ-H/P | BE105: mhH/P | BF105: mp | BG105: M/P | BH105: ΔM/P | BI105: Δ+H/P | BJ105: Δ-H/P | BL105: mhH/P | BM105: mp | BN105: M/P | BO105: ΔM/P | BP105: Δ+H/P | BQ105: Δ-H/P | BS105: mhH/P | BT105: mp | BU105: M/P | BV105: ΔM/P | BW105: Δ+H/P | BX105: Δ-H/P
D106: 0 | E106: =+F73 -> 0 | H106: =+H$87*$E106 -> 0 | I106: =+IF(H$86<$D106,SINH(H$88-H$88*$D106)/(H$89*SINH(H$88))*SINH(H$88*H$86),SINH(H$88*$D106)/(H$89*SINH(H$88))*SINH(H$88-H$88*H$86)) -> 0 | J106: =+H106+I106 -> 0 | O106: =+O$87*$E106 -> 0 | P106: =+IF(O$86<$D106,SINH(O$88-O$88*$D106)/(O$89*SINH(O$88))*SINH(O$88*O$86),SINH(O$88*$D106)/(O$89*SINH(O$88))*SINH(O$88-O$88*O$86)) -> 0 | Q106: =+O106+P106 -> 0 | V106: =+V$87*$E106 -> 0 | W106: =+IF(V$86<$D106,SINH(V$88-V$88*$D106)/(V$89*SINH(V$88))*SINH(V$88*V$86),SINH(V$88*$D106)/(V$89*SINH(V$88))*SINH(V$88-V$88*V$86)) -> 0 | X106: =+V106+W106 -> 0 | AC106: =+AC$87*$E106 -> 0 | AD106: =+IF(AC$86<$D106,SINH(AC$88-AC$88*$D106)/(AC$89*SINH(AC$88))*SINH(AC$88*AC$86),SINH(AC$88*$D106)/(AC$89*SINH(AC$88))*SINH(AC$88-AC$88*AC$86)) -> 0 | AE106: =+AC106+AD106 -> 0 | AJ106: =+AJ$87*$E106 -> 0 | AK106: =+IF(AJ$86<$D106,SINH(AJ$88-AJ$88*$D106)/(AJ$89*SINH(AJ$88))*SINH(AJ$88*AJ$86),SINH(AJ$88*$D106)/(AJ$89*SINH(AJ$88))*SINH(AJ$88-AJ$88*AJ$86)) -> 0 | AL106: =+AJ106+AK106 -> 0 | AQ106: =+AQ$87*$E106 -> 0 | AS106: =+AQ106+AR106 -> 0 | AX106: =+AX$87*$E106 -> 0 | AZ106: =+AX106+AY106 -> 0 | BE106: =+BE$87*$E106 -> 0 | BG106: =+BE106+BF106 -> 0 | BL106: =+BL$87*$E106 -> 0 | BN106: =+BL106+BM106 -> 0 | BS106: =+BS$87*$E106 -> 0 | BU106: =+BS106+BT106 -> 0
D107: =+D106+0.05 -> 0.05 | E107: =+F74 -> 0.0404568109 | H107: =+H$87*$E107 -> -0.03430631739 | I107: 7.606736135 | J107: =+H107+I107 -> 7.572429818 | O107: =+O$87*$E107 -> -0.05016438306 | P107: 3.529018593 | Q107: =+O107+P107 -> 3.47885421 | V107: =+V$87*$E107 -> -0.05739682977 | W107: 1.637207848 | X107: =+V107+W107 -> 1.579811018 | AC107: =+AC$87*$E107 -> -0.06048350197 | AD107: 0.7594988055 | AE107: =+AC107+AD107 -> 0.6990153036 | AJ107: =+AJ$87*$E107 -> -0.06133631302 | AK107: 0.3522303569 | AL107: =+AJ107+AK107 -> 0.2908940439 | AQ107: -0.06654776772 | AS107: =+AQ107+AR107 -> -0.06654776772 | AX107: -0.07865313644 | AZ107: =+AX107+AY107 -> -0.07865313644 | BE107: -0.08085475295 | BG107: =+BE107+BF107 -> -0.08085475295 | BL107: -0.08125290913 | BN107: =+BL107+BM107 -> -0.08125290913 | BS107: -0.08131252006 | BU107: =+BS107+BT107 -> -0.08131252006
D108: 0.1 | E108: 0.0792044497 | F108: =+E106+4*E107+E108 -> 0.2410316933 | H108: -0.06716330153 | I108: 16.34901423 | J108: 16.28185093 | K108: =+J106+4*J107+J108 -> 46.5715702 | L108: =+IF(K108>0,$F108,"") -> 0.2410316933 | M108: =+IF(K108<0,$F108,"") ->  | O108: -0.09820947985 | P108: 7.584852974 | Q108: 7.486643495 | R108: =+Q106+4*Q107+Q108 -> 21.40206033 | S108: =+IF(R108>0,$F108,"") -> 0.2410316933 | T108: =+IF(R108<0,$F108,"") ->  | V108: -0.1123688253 | W108: 3.518819889 | X108: 3.406451064 | Y108: =+X106+4*X107+X108 -> 9.725695136 | Z108: =+IF(Y108>0,$F108,"") -> 0.2410316933 | AA108: =+IF(Y108<0,$F108,"") ->  | AC108: -0.1184117676 | AD108: 1.632376431 | AE108: 1.513964663 | AF108: =+AE106+4*AE107+AE108 -> 4.310025877 | AG108: =+IF(AF108>0,$F108,"") -> 0.2410316933 | AH108: =+IF(AF108<0,$F108,"") ->  | AJ108: -0.1200813611 | AK108: 0.7570420501 | AL108: 0.636960689 | AM108: =+AL106+4*AL107+AL108 -> 1.800536865 | AN108: =+IF(AM108>0,$F108,"") -> 0.2410316933 | AO108: =+IF(AM108<0,$F108,"") ->  | AQ108: -0.1302841031 | AS108: -0.1302841031 | AT108: =+AS106+4*AS107+AS108 -> -0.3964751739 | AU108: =+IF(AT108>0,$F108,"") ->  | AV108: =+IF(AT108<0,$F108,"") -> 0.2410316933 | AX108: -0.153983427 | AZ108: -0.153983427 | BA108: =+AZ106+4*AZ107+AZ108 -> -0.4685959728 | BB108: =+IF(BA108>0,$F108,"") ->  | BC108: =+IF(BA108<0,$F108,"") -> 0.2410316933 | BE108: -0.1582936487 | BG108: -0.1582936487 | BH108: =+BG106+4*BG107+BG108 -> -0.4817126605 | BI108: =+IF(BH108>0,$F108,"") ->  | BJ108: =+IF(BH108<0,$F108,"") -> 0.2410316933 | BL108: -0.1590731402 | BN108: -0.1590731402 | BO108: =+BN106+4*BN107+BN108 -> -0.4840847767 | BP108: =+IF(BO108>0,$F108,"") ->  | BQ108: =+IF(BO108<0,$F108,"") -> 0.2410316933 | BS108: -0.1591898437 | BU108: -0.1591898437 | BV108: =+BU106+4*BU107+BU108 -> -0.484439924 | BW108: =+IF(BV108>0,$F108,"") ->  | BX108: =+IF(BV108<0,$F108,"") -> 0.2410316933
D109: 0.15 | E109: 0.1150333403 | H109: -0.09754526355 | I109: 11.13575473 | J109: 11.03820946 | O109: -0.1426354776 | P109: 12.77296258 | Q109: 12.6303271 | V109: -0.1631999385 | W109: 5.925725246 | X109: 5.762525308 | AC109: -0.1719764635 | AD109: 2.74893701 | AE109: 2.576960547 | AJ109: -0.1744013137 | AK109: 1.274865816 | AL109: 1.100464502 | AQ109: -0.1892193635 | AS109: -0.1892193635 | AX109: -0.2236393034 | AZ109: -0.2236393034 | BE109: -0.2298992951 | BG109: -0.2298992951 | BL109: -0.2310313971 | BN109: -0.2310313971 | BS109: -0.2312008925 | BU109: -0.2312008925
D110: 0.2 | E110: 0.1471210004 | F110: =+E108+4*E109+E110 -> 0.6864588113 | H110: -0.12475476 | I110: 7.584852974 | J110: 7.460098214 | K110: =+J108+4*J109+J110 -> 67.89478701 | L110: =+IF(K110>0,$F110,"") -> 0.6864588113 | M110: =+IF(K110<0,$F110,"") ->  | O110: -0.1824225404 | P110: 19.86783412 | Q110: 19.68541158 | R110: =+Q108+4*Q109+Q110 -> 77.69336347 | S110: =+IF(R110>0,$F110,"") -> 0.6864588113 | T110: =+IF(R110<0,$F110,"") ->  | V110: -0.2087232984 | W110: 9.217229405 | X110: 9.008506107 | Y110: =+X108+4*X109+X110 -> 35.4650584 | Z110: =+IF(Y110>0,$F110,"") -> 0.6864588113 | AA110: =+IF(Y110<0,$F110,"") ->  | AC110: -0.2199479672 | AD110: 4.27586194 | AE110: 4.055913972 | AF110: =+AE108+4*AE109+AE110 -> 15.87772082 | AG110: =+IF(AF110>0,$F110,"") -> 0.6864588113 | AH110: =+IF(AF110<0,$F110,"") ->  | AJ110: -0.2230492106 | AK110: 1.983002957 | AL110: 1.759953746 | AM110: =+AL108+4*AL109+AL110 -> 6.798772444 | AN110: =+IF(AM110>0,$F110,"") -> 0.6864588113 | AO110: =+IF(AM110<0,$F110,"") ->  | AQ110: -0.2420006408 | AS110: -0.2420006408 | AT110: =+AS108+4*AS109+AS110 -> -1.129162198 | AU110: =+IF(AT110>0,$F110,"") ->  | AV110: =+IF(AT110<0,$F110,"") -> 0.6864588113 | AX110: -0.2860217566 | AZ110: -0.2860217566 | BA110: =+AZ108+4*AZ109+AZ110 -> -1.334562397 | BB110: =+IF(BA110>0,$F110,"") ->  | BC110: =+IF(BA110<0,$F110,"") -> 0.6864588113 | BE110: -0.2940279245 | BG110: -0.2940279245 | BH110: =+BG108+4*BG109+BG110 -> -1.371918754 | BI110: =+IF(BH110>0,$F110,"") ->  | BJ110: =+IF(BH110<0,$F110,"") -> 0.6864588113 | BL110: -0.2954758176 | BN110: -0.2954758176 | BO110: =+BN108+4*BN109+BN110 -> -1.378674546 | BP110: =+IF(BO110>0,$F110,"") ->  | BQ110: =+IF(BO110<0,$F110,"") -> 0.6864588113 | BS110: -0.2956925924 | BU110: -0.2956925924 | BV110: =+BU108+4*BU109+BU110 -> -1.379686006 | BW110: =+IF(BV110>0,$F110,"") ->  | BX110: =+IF(BV110<0,$F110,"") -> 0.6864588113
D111: 0.25 | E111: 0.1749092606 | H111: -0.1483184778 | I111: 5.166226441 | J111: 5.017907963 | O111: -0.2168785664 | P111: 13.53246138 | Q111: 13.31558282 | V111: -0.2481470198 | W111: 13.88469174 | X111: 13.63654472 | AC111: -0.2614918075 | AD111: 6.441092256 | AE111: 6.179600449 | AJ111: -0.2651788147 | AK111: 2.987164967 | AL111: 2.721986152 | AQ111: -0.2877097969 | AS111: -0.2877097969 | AX111: -0.3400456347 | AZ111: -0.3400456347 | BE111: -0.3495640102 | BG111: -0.3495640102 | BL111: -0.3512853817 | BN111: -0.3512853817 | BS111: -0.3515431011 | BU111: -0.3515431011
D112: 0.3 | E112: 0.1980209401 | F112: =+E110+4*E111+E112 -> 1.044778983 | H112: -0.1679165774 | I112: 3.518819889 | J112: 3.350903312 | K112: =+J110+4*J111+J112 -> 30.88263338 | L112: =+IF(K112>0,$F112,"") -> 1.044778983 | M112: =+IF(K112<0,$F112,"") ->  | O112: -0.2455358708 | P112: 9.217229405 | Q112: 8.971693534 | R112: =+Q110+4*Q111+Q112 -> 81.91943638 | S112: =+IF(R112>0,$F112,"") -> 1.044778983 | T112: =+IF(R112<0,$F112,"") ->  | V112: -0.2809359892 | W112: 20.62487617 | X112: 20.34394018 | Y112: =+X110+4*X111+X112 -> 83.89862517 | Z112: =+IF(Y112>0,$F112,"") -> 1.044778983 | AA112: =+IF(Y112<0,$F112,"") ->  | AC112: -0.2960440938 | AD112: 9.567855931 | AE112: 9.271811838 | AF112: =+AE110+4*AE111+AE112 -> 38.04612761 | AG112: =+IF(AF112>0,$F112,"") -> 1.044778983 | AH112: =+IF(AF112<0,$F112,"") ->  | AJ112: -0.3002182846 | AK112: 4.437254259 | AL112: 4.137035975 | AM112: =+AL110+4*AL111+AL112 -> 16.78493433 | AN112: =+IF(AM112>0,$F112,"") -> 1.044778983 | AO112: =+IF(AM112<0,$F112,"") ->  | AQ112: -0.3257264039 | AS112: -0.3257264039 | AT112: =+AS110+4*AS111+AS112 -> -1.718566232 | AU112: =+IF(AT112>0,$F112,"") ->  | AV112: =+IF(AT112<0,$F112,"") -> 1.044778983 | AX112: -0.3849776509 | AZ112: -0.3849776509 | BA112: =+AZ110+4*AZ111+AZ112 -> -2.031181946 | BB112: =+IF(BA112>0,$F112,"") ->  | BC112: =+IF(BA112<0,$F112,"") -> 1.044778983 | BE112: -0.3957537393 | BG112: -0.3957537393 | BH112: =+BG110+4*BG111+BG112 -> -2.088037704 | BI112: =+IF(BH112>0,$F112,"") ->  | BJ112: =+IF(BH112<0,$F112,"") -> 1.044778983 | BL112: -0.3977025646 | BN112: -0.3977025646 | BO112: =+BN110+4*BN111+BN112 -> -2.098319909 | BP112: =+IF(BO112>0,$F112,"") ->  | BQ112: =+IF(BO112<0,$F112,"") -> 1.044778983 | BS112: -0.3979943378 | BU112: -0.3979943378 | BV112: =+BU110+4*BU111+BU112 -> -2.099859335 | BW112: =+IF(BV112>0,$F112,"") ->  | BX112: =+IF(BV112<0,$F112,"") -> 1.044778983
D113: 0.35 | E113: 0.2162035408 | H113: -0.1833349472 | I113: 2.396706653 | J113: 2.213371706 | O113: -0.2680813687 | P113: 6.277955603 | Q113: 6.009874234 | V113: -0.3067319828 | W113: 14.04782839 | X113: 13.74109641 | AC113: -0.3232273378 | AD113: 14.1229197 | AE113: 13.79969236 | AJ113: -0.3277848095 | AK113: 6.549741762 | AL113: 6.221956953 | AQ113: -0.3556351252 | AS113: -0.3556351252 | AX113: -0.4203269168 | AZ113: -0.4203269168 | BE113: -0.432092483 | BG113: -0.432092483 | BL113: -0.4342202527 | BN113: -0.4342202527 | BS113: -0.4345388169 | BU113: -0.4345388169
D114: 0.4 | E114: 0.2292915539 | F114: =+E112+4*E113+E114 -> 1.292126657 | H114: -0.19443324 | I114: 1.632376431 | J114: 1.437943191 | K114: =+J112+4*J113+J114 -> 13.64233333 | L114: =+IF(K114>0,$F114,"") -> 1.292126657 | M114: =+IF(K114<0,$F114,"") ->  | O114: -0.2843098378 | P114: 4.27586194 | Q114: 3.991552102 | R114: =+Q112+4*Q113+Q114 -> 37.00274257 | S114: =+IF(R114>0,$F114,"") -> 1.292126657 | T114: =+IF(R114<0,$F114,"") ->  | V114: -0.3253001904 | W114: 9.567855931 | X114: 9.242555741 | Y114: =+X112+4*X113+X114 -> 84.55088156 | Z114: =+IF(Y114>0,$F114,"") -> 1.292126657 | AA114: =+IF(Y114<0,$F114,"") ->  | AC114: -0.3427941018 | AD114: 20.78626849 | AE114: 20.44347439 | AF114: =+AE112+4*AE113+AE114 -> 84.91405566 | AG114: =+IF(AF114>0,$F114,"") -> 1.292126657 | AH114: =+IF(AF114<0,$F114,"") ->  | AJ114: -0.3476274628 | AK114: 9.639981942 | AL114: 9.292354479 | AM114: =+AL112+4*AL113+AL114 -> 38.31721827 | AN114: =+IF(AM114>0,$F114,"") -> 1.292126657 | AO114: =+IF(AM114<0,$F114,"") ->  | AQ114: -0.3771637144 | AS114: -0.3771637144 | AT114: =+AS112+4*AS113+AS114 -> -2.125430619 | AU114: =+IF(AT114>0,$F114,"") ->  | AV114: =+IF(AT114<0,$F114,"") -> 1.292126657 | AX114: -0.445771663 | AZ114: -0.445771663 | BA114: =+AZ112+4*AZ113+AZ114 -> -2.512056981 | BB114: =+IF(BA114>0,$F114,"") ->  | BC114: =+IF(BA114<0,$F114,"") -> 1.292126657 | BE114: -0.4582494649 | BG114: -0.4582494649 | BH114: =+BG112+4*BG113+BG114 -> -2.582373136 | BI114: =+IF(BH114>0,$F114,"") ->  | BJ114: =+IF(BH114<0,$F114,"") -> 1.292126657 | BL114: -0.4605060404 | BN114: -0.4605060404 | BO114: =+BN112+4*BN113+BN114 -> -2.595089616 | BP114: =+IF(BO114>0,$F114,"") ->  | BQ114: =+IF(BO114<0,$F114,"") -> 1.292126657 | BS114: -0.4608438892 | BU114: -0.4608438892 | BV114: =+BU112+4*BU113+BU114 -> -2.596993495 | BW114: =+IF(BV114>0,$F114,"") ->  | BX114: =+IF(BV114<0,$F114,"") -> 1.292126657
D115: 0.45 | E115: 0.2371817531 | H115: -0.2011239225 | I115: 1.111729162 | J115: 0.91060524 | O115: -0.2940932825 | P115: 2.912073664 | Q115: 2.617980381 | V115: -0.3364941627 | W115: 6.51618356 | X115: 6.179689397 | AC115: -0.3545900607 | AD115: 14.1564779 | AE115: 13.80188784 | AJ115: -0.3595897434 | AK115: 14.16928926 | AL115: 13.80969952 | AQ115: -0.3901423731 | AS115: -0.3901423731 | AX115: -0.4611112041 | AZ115: -0.4611112041 | BE115: -0.4740183822 | BG115: -0.4740183822 | BL115: -0.4763526092 | BN115: -0.4763526092 | BS115: -0.4767020838 | BU115: -0.4767020838
D116: 0.5 | E116: 0.2398177843 | F116: =+E114+4*E115+E116 -> 1.417836351 | H116: -0.203359208 | I116: 0.7570420501 | J116: 0.5536828422 | K116: =+J114+4*J115+J116 -> 5.634046993 | L116: =+IF(K116>0,$F116,"") -> 1.417836351 | M116: =+IF(K116<0,$F116,"") ->  | O116: -0.2973618268 | P116: 1.983002957 | Q116: 1.68564113 | R116: =+Q114+4*Q115+Q116 -> 16.14911476 | S116: =+IF(R116>0,$F116,"") -> 1.417836351 | T116: =+IF(R116<0,$F116,"") ->  | V116: -0.3402339491 | W116: 4.437254259 | X116: 4.09702031 | Y116: =+X114+4*X115+X116 -> 38.05833364 | Z116: =+IF(Y116>0,$F116,"") -> 1.417836351 | AA116: =+IF(Y116<0,$F116,"") ->  | AC116: -0.3585309644 | AD116: 9.639981942 | AE116: 9.281450977 | AF116: =+AE114+4*AE115+AE116 -> 84.93247672 | AG116: =+IF(AF116>0,$F116,"") -> 1.417836351 | AH116: =+IF(AF116<0,$F116,"") ->  | AJ116: -0.3635862135 | AK116: 20.81380371 | AL116: 20.4502175 | AM116: =+AL114+4*AL115+AL116 -> 84.98137005 | AN116: =+IF(AM116>0,$F116,"") -> 1.417836351 | AO116: =+IF(AM116<0,$F116,"") ->  | AQ116: -0.3944784042 | AS116: -0.3944784042 | AT116: =+AS114+4*AS115+AS116 -> -2.332211611 | AU116: =+IF(AT116>0,$F116,"") ->  | AV116: =+IF(AT116<0,$F116,"") -> 1.417836351 | AX116: -0.4662359807 | AZ116: -0.4662359807 | BA116: =+AZ114+4*AZ115+AZ116 -> -2.75645246 | BB116: =+IF(BA116>0,$F116,"") ->  | BC116: =+IF(BA116<0,$F116,"") -> 1.417836351 | BE116: -0.4792866088 | BG116: -0.4792866088 | BH116: =+BG114+4*BG115+BG116 -> -2.833609603 | BI116: =+IF(BH116>0,$F116,"") ->  | BJ116: =+IF(BH116<0,$F116,"") -> 1.417836351 | BL116: -0.4816467784 | BN116: -0.4816467784 | BO116: =+BN114+4*BN115+BN116 -> -2.847563256 | BP116: =+IF(BO116>0,$F116,"") ->  | BQ116: =+IF(BO116<0,$F116,"") -> 1.417836351 | BS116: -0.482000137 | BU116: -0.482000137 | BV116: =+BU114+4*BU115+BU116 -> -2.849652361 | BW116: =+IF(BV116>0,$F116,"") ->  | BX116: =+IF(BV116<0,$F116,"") -> 1.417836351
D117: 0.55 | E117: =+E115 -> 0.2371817531 | H117: =+H115 -> -0.2011239225 | I117: 0.5153670102 | J117: 0.3142430877 | O117: =+O115 -> -0.2940932825 | P117: 1.349957119 | Q117: 1.055863837 | V117: =+V115 -> -0.3364941627 | W117: 3.02072317 | X117: 2.684229007 | AC117: =+AC115 -> -0.3545900607 | AD117: 6.562553125 | AE117: 6.207963065 | AJ117: =+AJ115 -> -0.3595897434 | AK117: 14.16928926 | AL117: 13.80969952 | AQ117: =+AQ115 -> -0.3901423731 | AS117: -0.3901423731 | AX117: =+AX115 -> -0.4611112041 | AZ117: -0.4611112041 | BE117: =+BE115 -> -0.4740183822 | BG117: -0.4740183822 | BL117: =+BL115 -> -0.4763526092 | BN117: -0.4763526092 | BS117: =+BS115 -> -0.4767020838 | BU117: -0.4767020838
D118: 0.6 | E118: =+E114 -> 0.2292915539 | F118: =+E116+4*E117+E118 -> 1.417836351 | H118: =+H114 -> -0.19443324 | I118: 0.3506265262 | J118: 0.1561932862 | K118: =+J116+4*J117+J118 -> 1.966848479 | L118: =+IF(K118>0,$F118,"") -> 1.417836351 | M118: =+IF(K118<0,$F118,"") ->  | O118: =+O114 -> -0.2843098378 | P118: 0.9184343698 | Q118: 0.634124532 | R118: =+Q116+4*Q117+Q118 -> 6.543221009 | S118: =+IF(R118>0,$F118,"") -> 1.417836351 | T118: =+IF(R118<0,$F118,"") ->  | V118: =+V114 -> -0.3253001904 | W118: 2.055128967 | X118: 1.729828777 | Y118: =+X116+4*X117+X118 -> 16.56376511 | Z118: =+IF(Y118>0,$F118,"") -> 1.417836351 | AA118: =+IF(Y118<0,$F118,"") ->  | AC118: =+AC114 -> -0.3427941018 | AD118: 4.464789479 | AE118: 4.121995377 | AF118: =+AE116+4*AE117+AE118 -> 38.23529861 | AG118: =+IF(AF118>0,$F118,"") -> 1.417836351 | AH118: =+IF(AF118<0,$F118,"") ->  | AJ118: =+AJ114 -> -0.3476274628 | AK118: 9.639981942 | AL118: 9.292354479 | AM118: =+AL116+4*AL117+AL118 -> 84.98137005 | AN118: =+IF(AM118>0,$F118,"") -> 1.417836351 | AO118: =+IF(AM118<0,$F118,"") ->  | AQ118: =+AQ114 -> -0.3771637144 | AS118: -0.3771637144 | AT118: =+AS116+4*AS117+AS118 -> -2.332211611 | AU118: =+IF(AT118>0,$F118,"") ->  | AV118: =+IF(AT118<0,$F118,"") -> 1.417836351 | AX118: =+AX114 -> -0.445771663 | AZ118: -0.445771663 | BA118: =+AZ116+4*AZ117+AZ118 -> -2.75645246 | BB118: =+IF(BA118>0,$F118,"") ->  | BC118: =+IF(BA118<0,$F118,"") -> 1.417836351 | BE118: =+BE114 -> -0.4582494649 | BG118: -0.4582494649 | BH118: =+BG116+4*BG117+BG118 -> -2.833609603 | BI118: =+IF(BH118>0,$F118,"") ->  | BJ118: =+IF(BH118<0,$F118,"") -> 1.417836351 | BL118: =+BL114 -> -0.4605060404 | BN118: -0.4605060404 | BO118: =+BN116+4*BN117+BN118 -> -2.847563256 | BP118: =+IF(BO118>0,$F118,"") ->  | BQ118: =+IF(BO118<0,$F118,"") -> 1.417836351 | BS118: =+BS114 -> -0.4608438892 | BU118: -0.4608438892 | BV118: =+BU116+4*BU117+BU118 -> -2.849652361 | BW118: =+IF(BV118>0,$F118,"") ->  | BX118: =+IF(BV118<0,$F118,"") -> 1.417836351
D119: 0.65 | E119: =+E113 -> 0.2162035408 | H119: =+H113 -> -0.1833349472 | I119: 0.2382279568 | J119: 0.05489300962 | O119: =+O113 -> -0.2680813687 | P119: 0.6240165162 | Q119: 0.3559351475 | V119: =+V113 -> -0.3067319828 | W119: 1.396326685 | X119: 1.089594702 | AC119: =+AC113 -> -0.3232273378 | AD119: 3.033534532 | AE119: 2.710307195 | AJ119: =+AJ113 -> -0.3277848095 | AK119: 6.549741762 | AL119: 6.221956953 | AQ119: =+AQ113 -> -0.3556351252 | AS119: -0.3556351252 | AX119: =+AX113 -> -0.4203269168 | AZ119: -0.4203269168 | BE119: =+BE113 -> -0.432092483 | BG119: -0.432092483 | BL119: =+BL113 -> -0.4342202527 | BN119: -0.4342202527 | BS119: =+BS113 -> -0.4345388169 | BU119: -0.4345388169
D120: 0.7 | E120: =+E112 -> 0.1980209401 | F120: =+E118+4*E119+E120 -> 1.292126657 | H120: =+H112 -> -0.1679165774 | I120: 0.1613923196 | J120: -0.006524257819 | K120: =+J118+4*J119+J120 -> 0.3692410669 | L120: =+IF(K120>0,$F120,"") -> 1.292126657 | M120: =+IF(K120<0,$F120,"") ->  | O120: =+O112 -> -0.2455358708 | P120: 0.4227525366 | Q120: 0.1772166658 | R120: =+Q118+4*Q119+Q120 -> 2.235081788 | S120: =+IF(R120>0,$F120,"") -> 1.292126657 | T120: =+IF(R120<0,$F120,"") ->  | V120: =+V112 -> -0.2809359892 | W120: 0.9459695898 | X120: 0.6650336006 | Y120: =+X118+4*X119+X120 -> 6.753241185 | Z120: =+IF(Y120>0,$F120,"") -> 1.292126657 | AA120: =+IF(Y120<0,$F120,"") ->  | AC120: =+AC112 -> -0.2960440938 | AD120: 2.055128967 | AE120: 1.759084873 | AF120: =+AE118+4*AE119+AE120 -> 16.72230903 | AG120: =+IF(AF120>0,$F120,"") -> 1.292126657 | AH120: =+IF(AF120<0,$F120,"") ->  | AJ120: =+AJ112 -> -0.3002182846 | AK120: 4.437254259 | AL120: 4.137035975 | AM120: =+AL118+4*AL119+AL120 -> 38.31721827 | AN120: =+IF(AM120>0,$F120,"") -> 1.292126657 | AO120: =+IF(AM120<0,$F120,"") ->  | AQ120: =+AQ112 -> -0.3257264039 | AS120: -0.3257264039 | AT120: =+AS118+4*AS119+AS120 -> -2.125430619 | AU120: =+IF(AT120>0,$F120,"") ->  | AV120: =+IF(AT120<0,$F120,"") -> 1.292126657 | AX120: =+AX112 -> -0.3849776509 | AZ120: -0.3849776509 | BA120: =+AZ118+4*AZ119+AZ120 -> -2.512056981 | BB120: =+IF(BA120>0,$F120,"") ->  | BC120: =+IF(BA120<0,$F120,"") -> 1.292126657 | BE120: =+BE112 -> -0.3957537393 | BG120: -0.3957537393 | BH120: =+BG118+4*BG119+BG120 -> -2.582373136 | BI120: =+IF(BH120>0,$F120,"") ->  | BJ120: =+IF(BH120<0,$F120,"") -> 1.292126657 | BL120: =+BL112 -> -0.3977025646 | BN120: -0.3977025646 | BO120: =+BN118+4*BN119+BN120 -> -2.595089616 | BP120: =+IF(BO120>0,$F120,"") ->  | BQ120: =+IF(BO120<0,$F120,"") -> 1.292126657 | BS120: =+BS112 -> -0.3979943378 | BU120: -0.3979943378 | BV120: =+BU118+4*BU119+BU120 -> -2.596993495 | BW120: =+IF(BV120>0,$F120,"") ->  | BX120: =+IF(BV120<0,$F120,"") -> 1.292126657
D121: 0.75 | E121: =+E111 -> 0.1749092606 | H121: =+H111 -> -0.1483184778 | I121: 0.108649506 | J121: -0.03966897181 | O121: =+O111 -> -0.2168785664 | P121: 0.2845975221 | Q121: 0.06771895568 | V121: =+V111 -> -0.2481470198 | W121: 0.636827879 | X121: 0.3886808592 | AC121: =+AC111 -> -0.2614918075 | AD121: 1.383515322 | AE121: 1.122023514 | AJ121: =+AJ111 -> -0.2651788147 | AK121: 2.987164967 | AL121: 2.721986152 | AQ121: =+AQ111 -> -0.2877097969 | AS121: -0.2877097969 | AX121: =+AX111 -> -0.3400456347 | AZ121: -0.3400456347 | BE121: =+BE111 -> -0.3495640102 | BG121: -0.3495640102 | BL121: =+BL111 -> -0.3512853817 | BN121: -0.3512853817 | BS121: =+BS111 -> -0.3515431011 | BU121: -0.3515431011
D122: 0.8 | E122: =+E110 -> 0.1471210004 | F122: =+E120+4*E121+E122 -> 1.044778983 | H122: =+H110 -> -0.12475476 | I122: 0.07212601044 | J122: -0.05262874955 | K122: =+J120+4*J121+J122 -> -0.2178288946 | L122: =+IF(K122>0,$F122,"") ->  | M122: =+IF(K122<0,$F122,"") -> 1.044778983 | O122: =+O110 -> -0.1824225404 | P122: 0.1889275397 | Q122: 0.006504999288 | R122: =+Q120+4*Q121+Q122 -> 0.4545974878 | S122: =+IF(R122>0,$F122,"") -> 1.044778983 | T122: =+IF(R122<0,$F122,"") ->  | V122: =+V110 -> -0.2087232984 | W122: 0.4227525366 | X122: 0.2140292382 | Y122: =+X120+4*X121+X122 -> 2.433786276 | Z122: =+IF(Y122>0,$F122,"") -> 1.044778983 | AA122: =+IF(Y122<0,$F122,"") ->  | AC122: =+AC110 -> -0.2199479672 | AD122: 0.9184343698 | AE122: 0.6984864025 | AF122: =+AE120+4*AE121+AE122 -> 6.945665333 | AG122: =+IF(AF122>0,$F122,"") -> 1.044778983 | AH122: =+IF(AF122<0,$F122,"") ->  | AJ122: =+AJ110 -> -0.2230492106 | AK122: 1.983002957 | AL122: 1.759953746 | AM122: =+AL120+4*AL121+AL122 -> 16.78493433 | AN122: =+IF(AM122>0,$F122,"") -> 1.044778983 | AO122: =+IF(AM122<0,$F122,"") ->  | AQ122: =+AQ110 -> -0.2420006408 | AS122: -0.2420006408 | AT122: =+AS120+4*AS121+AS122 -> -1.718566232 | AU122: =+IF(AT122>0,$F122,"") ->  | AV122: =+IF(AT122<0,$F122,"") -> 1.044778983 | AX122: =+AX110 -> -0.2860217566 | AZ122: -0.2860217566 | BA122: =+AZ120+4*AZ121+AZ122 -> -2.031181946 | BB122: =+IF(BA122>0,$F122,"") ->  | BC122: =+IF(BA122<0,$F122,"") -> 1.044778983 | BE122: =+BE110 -> -0.2940279245 | BG122: -0.2940279245 | BH122: =+BG120+4*BG121+BG122 -> -2.088037704 | BI122: =+IF(BH122>0,$F122,"") ->  | BJ122: =+IF(BH122<0,$F122,"") -> 1.044778983 | BL122: =+BL110 -> -0.2954758176 | BN122: -0.2954758176 | BO122: =+BN120+4*BN121+BN122 -> -2.098319909 | BP122: =+IF(BO122>0,$F122,"") ->  | BQ122: =+IF(BO122<0,$F122,"") -> 1.044778983 | BS122: =+BS110 -> -0.2956925924 | BU122: -0.2956925924 | BV122: =+BU120+4*BU121+BU122 -> -2.099859335 | BW122: =+IF(BV122>0,$F122,"") ->  | BX122: =+IF(BV122<0,$F122,"") -> 1.044778983
D123: 0.85 | E123: =+E109 -> 0.1150333403 | H123: =+H109 -> -0.09754526355 | I123: 0.04636956532 | J123: -0.05117569823 | O123: =+O109 -> -0.1426354776 | P123: 0.1214608688 | Q123: -0.02117460883 | V123: =+V109 -> -0.1631999385 | W123: 0.2717861593 | X123: 0.1085862208 | AC123: =+AC109 -> -0.1719764635 | AD123: 0.5904583137 | AE123: 0.4184818502 | AJ123: =+AJ109 -> -0.1744013137 | AK123: 1.274865816 | AL123: 1.100464502 | AQ123: =+AQ109 -> -0.1892193635 | AS123: -0.1892193635 | AX123: =+AX109 -> -0.2236393034 | AZ123: -0.2236393034 | BE123: =+BE109 -> -0.2298992951 | BG123: -0.2298992951 | BL123: =+BL109 -> -0.2310313971 | BN123: -0.2310313971 | BS123: =+BS109 -> -0.2312008925 | BU123: -0.2312008925
D124: 0.9 | E124: =+E108 -> 0.0792044497 | F124: =+E122+4*E123+E124 -> 0.6864588113 | H124: =+H108 -> -0.06716330153 | I124: 0.02753522007 | J124: -0.03962808147 | K124: =+J122+4*J123+J124 -> -0.2969596239 | L124: =+IF(K124>0,$F124,"") ->  | M124: =+IF(K124<0,$F124,"") -> 0.6864588113 | O124: =+O108 -> -0.09820947985 | P124: 0.07212601044 | Q124: -0.02608346941 | R124: =+Q122+4*Q123+Q124 -> -0.1042769054 | S124: =+IF(R124>0,$F124,"") ->  | T124: =+IF(R124<0,$F124,"") -> 0.6864588113 | V124: =+V108 -> -0.1123688253 | W124: 0.1613923196 | X124: 0.04902349432 | Y124: =+X122+4*X123+X124 -> 0.6973976157 | Z124: =+IF(Y124>0,$F124,"") -> 0.6864588113 | AA124: =+IF(Y124<0,$F124,"") ->  | AC124: =+AC108 -> -0.1184117676 | AD124: 0.3506265262 | AE124: 0.2322147586 | AF124: =+AE122+4*AE123+AE124 -> 2.604628562 | AG124: =+IF(AF124>0,$F124,"") -> 0.6864588113 | AH124: =+IF(AF124<0,$F124,"") ->  | AJ124: =+AJ108 -> -0.1200813611 | AK124: 0.7570420501 | AL124: 0.636960689 | AM124: =+AL122+4*AL123+AL124 -> 6.798772444 | AN124: =+IF(AM124>0,$F124,"") -> 0.6864588113 | AO124: =+IF(AM124<0,$F124,"") ->  | AQ124: =+AQ108 -> -0.1302841031 | AS124: -0.1302841031 | AT124: =+AS122+4*AS123+AS124 -> -1.129162198 | AU124: =+IF(AT124>0,$F124,"") ->  | AV124: =+IF(AT124<0,$F124,"") -> 0.6864588113 | AX124: =+AX108 -> -0.153983427 | AZ124: -0.153983427 | BA124: =+AZ122+4*AZ123+AZ124 -> -1.334562397 | BB124: =+IF(BA124>0,$F124,"") ->  | BC124: =+IF(BA124<0,$F124,"") -> 0.6864588113 | BE124: =+BE108 -> -0.1582936487 | BG124: -0.1582936487 | BH124: =+BG122+4*BG123+BG124 -> -1.371918754 | BI124: =+IF(BH124>0,$F124,"") ->  | BJ124: =+IF(BH124<0,$F124,"") -> 0.6864588113 | BL124: =+BL108 -> -0.1590731402 | BN124: -0.1590731402 | BO124: =+BN122+4*BN123+BN124 -> -1.378674546 | BP124: =+IF(BO124>0,$F124,"") ->  | BQ124: =+IF(BO124<0,$F124,"") -> 0.6864588113 | BS124: =+BS108 -> -0.1591898437 | BU124: -0.1591898437 | BV124: =+BU122+4*BU123+BU124 -> -1.379686006 | BW124: =+IF(BV124>0,$F124,"") ->  | BX124: =+IF(BV124<0,$F124,"") -> 0.6864588113
D125: 0.95 | E125: =+E107 -> 0.0404568109 | H125: =+H107 -> -0.03430631739 | I125: 0.01281136284 | J125: -0.02149495454 | O125: =+O107 -> -0.05016438306 | P125: 0.03355820248 | Q125: -0.01660618059 | V125: =+V107 -> -0.05739682977 | W125: 0.0750913035 | X125: 0.01769447373 | AC125: =+AC107 -> -0.06048350197 | AD125: 0.1631366533 | AE125: 0.1026531513 | AJ125: =+AJ107 -> -0.06133631302 | AK125: 0.3522303569 | AL125: 0.2908940439 | AQ125: =+AQ107 -> -0.06654776772 | AS125: -0.06654776772 | AX125: =+AX107 -> -0.07865313644 | AZ125: -0.07865313644 | BE125: =+BE107 -> -0.08085475295 | BG125: -0.08085475295 | BL125: =+BL107 -> -0.08125290913 | BN125: -0.08125290913 | BS125: =+BS107 -> -0.08131252006 | BU125: -0.08131252006
D126: 1 | E126: =+E106 -> 0 | F126: =+E124+4*E125+E126 -> 0.2410316933 | H126: =+H106 -> 0 | I126: -5.78317977e-17 | J126: -5.78317977e-17 | K126: =+J124+4*J125+J126 -> -0.1256078996 | L126: =+IF(K126>0,$F126,"") ->  | M126: =+IF(K126<0,$F126,"") -> 0.2410316933 | O126: =+O106 -> 0 | P126: -1.514851465e-16 | Q126: -1.514851465e-16 | R126: =+Q124+4*Q125+Q126 -> -0.09250819175 | S126: =+IF(R126>0,$F126,"") ->  | T126: =+IF(R126<0,$F126,"") -> 0.2410316933 | V126: =+V106 -> 0 | W126: -3.389697978e-16 | X126: -3.389697978e-16 | Y126: =+X124+4*X125+X126 -> 0.1198013892 | Z126: =+IF(Y126>0,$F126,"") -> 0.2410316933 | AA126: =+IF(Y126<0,$F126,"") ->  | AC126: =+AC106 -> 0 | AD126: -7.36415481e-16 | AE126: -7.36415481e-16 | AF126: =+AE124+4*AE125+AE126 -> 0.6428273639 | AG126: =+IF(AF126>0,$F126,"") -> 0.2410316933 | AH126: =+IF(AF126<0,$F126,"") ->  | AJ126: =+AJ106 -> 0 | AK126: -1.590003733e-15 | AL126: -1.590003733e-15 | AM126: =+AL124+4*AL125+AL126 -> 1.800536865 | AN126: =+IF(AM126>0,$F126,"") -> 0.2410316933 | AO126: =+IF(AM126<0,$F126,"") ->  | AQ126: =+AQ106 -> 0 | AS126: 0 | AT126: =+AS124+4*AS125+AS126 -> -0.3964751739 | AU126: =+IF(AT126>0,$F126,"") ->  | AV126: =+IF(AT126<0,$F126,"") -> 0.2410316933 | AX126: =+AX106 -> 0 | AZ126: 0 | BA126: =+AZ124+4*AZ125+AZ126 -> -0.4685959728 | BB126: =+IF(BA126>0,$F126,"") ->  | BC126: =+IF(BA126<0,$F126,"") -> 0.2410316933 | BE126: =+BE106 -> 0 | BG126: 0 | BH126: =+BG124+4*BG125+BG126 -> -0.4817126605 | BI126: =+IF(BH126>0,$F126,"") ->  | BJ126: =+IF(BH126<0,$F126,"") -> 0.2410316933 | BL126: =+BL106 -> 0 | BN126: 0 | BO126: =+BN124+4*BN125+BN126 -> -0.4840847767 | BP126: =+IF(BO126>0,$F126,"") ->  | BQ126: =+IF(BO126<0,$F126,"") -> 0.2410316933 | BS126: =+BS106 -> 0 | BU126: 0 | BV126: =+BU124+4*BU125+BU126 -> -0.484439924 | BW126: =+IF(BV126>0,$F126,"") ->  | BX126: =+IF(BV126<0,$F126,"") -> 0.2410316933
K127: =+SUMIF(K106:K126,">0") -> 166.9614605 | L127: =+SUM(L106:L126) -> 7.392195504 | M127: =+SUM(M106:M126) -> 1.972269488 | R127: =+SUMIF(R106:R126,">0") -> 243.3996178 | S127: =+SUM(S106:S126) -> 8.436974487 | T127: =+SUM(T106:T126) -> 0.9274905046 | Y127: =+SUMIF(Y106:Y126,">0") -> 278.2665855 | Z127: =+SUM(Z106:Z126) -> 9.364464991 | AA127: =+SUM(AA106:AA126) -> 0 | AF127: =+SUMIF(AF106:AF126,">0") -> 293.2311356 | AG127: =+SUM(AG106:AG126) -> 9.364464991 | AH127: =+SUM(AH106:AH126) -> 0 | AM127: =+SUMIF(AM106:AM126,">0") -> 297.3656639 | AN127: =+SUM(AN106:AN126) -> 9.364464991 | AO127: =+SUM(AO106:AO126) -> 0 | AT127: =+SUMIF(AT106:AT126,">0") -> 0 | AU127: =+SUM(AU106:AU126) -> 0 | AV127: =+SUM(AV106:AV126) -> 9.364464991 | BA127: =+SUMIF(BA106:BA126,">0") -> 0 | BB127: =+SUM(BB106:BB126) -> 0 | BC127: =+SUM(BC106:BC126) -> 9.364464991 | BH127: =+SUMIF(BH106:BH126,">0") -> 0 | BI127: =+SUM(BI106:BI126) -> 0 | BJ127: =+SUM(BJ106:BJ126) -> 9.364464991 | BO127: =+SUMIF(BO106:BO126,">0") -> 0 | BP127: =+SUM(BP106:BP126) -> 0 | BQ127: =+SUM(BQ106:BQ126) -> 9.364464991 | BV127: =+SUMIF(BV106:BV126,">0") -> 0 | BW127: =+SUM(BW106:BW126) -> 0 | BX127: =+SUM(BX106:BX126) -> 9.364464991
K128: =+SUMIF(K106:K126,"<0") -> -0.6403964182 | R128: =+SUMIF(R106:R126,"<0") -> -0.1967850972 | Y128: =+SUMIF(Y106:Y126,"<0") -> 0 | AF128: =+SUMIF(AF106:AF126,"<0") -> 0 | AM128: =+SUMIF(AM106:AM126,"<0") -> 0 | AT128: =+SUMIF(AT106:AT126,"<0") -> -15.40369167 | BA128: =+SUMIF(BA106:BA126,"<0") -> -18.20569952 | BH128: =+SUMIF(BH106:BH126,"<0") -> -18.71530371 | BO128: =+SUMIF(BO106:BO126,"<0") -> -18.80746421 | BV128: =+SUMIF(BV106:BV126,"<0") -> -18.82126224
D130: 0 | E130: =+E73 -> 0 | H130: =+H$87*$E130 -> 0 | J130: =+H130+I130 -> 0 | O130: =+O$87*$E130 -> 0 | Q130: =+O130+P130 -> 0 | V130: =+V$87*$E130 -> 0 | X130: =+V130+W130 -> 0 | AC130: =+AC$87*$E130 -> 0 | AE130: =+AC130+AD130 -> 0 | AJ130: =+AJ$87*$E130 -> 0 | AL130: =+AJ130+AK130 -> 0 | AQ130: =+AQ$87*$E130 -> 0 | AR130: =+IF(AQ$86<$D130,SINH(AQ$88-AQ$88*$D130)/(AQ$89*SINH(AQ$88))*SINH(AQ$88*AQ$86),SINH(AQ$88*$D130)/(AQ$89*SINH(AQ$88))*SINH(AQ$88-AQ$88*AQ$86)) -> 0 | AS130: =+AQ130+AR130 -> 0 | AX130: =+AX$87*$E130 -> 0 | AY130: =+IF(AX$86<$D130,SINH(AX$88-AX$88*$D130)/(AX$89*SINH(AX$88))*SINH(AX$88*AX$86),SINH(AX$88*$D130)/(AX$89*SINH(AX$88))*SINH(AX$88-AX$88*AX$86)) -> 0 | AZ130: =+AX130+AY130 -> 0 | BE130: =+BE$87*$E130 -> 0 | BF130: =+IF(BE$86<$D130,SINH(BE$88-BE$88*$D130)/(BE$89*SINH(BE$88))*SINH(BE$88*BE$86),SINH(BE$88*$D130)/(BE$89*SINH(BE$88))*SINH(BE$88-BE$88*BE$86)) -> 0 | BG130: =+BE130+BF130 -> 0 | BL130: =+BL$87*$E130 -> 0 | BM130: =+IF(BL$86<$D130,SINH(BL$88-BL$88*$D130)/(BL$89*SINH(BL$88))*SINH(BL$88*BL$86),SINH(BL$88*$D130)/(BL$89*SINH(BL$88))*SINH(BL$88-BL$88*BL$86)) -> 0 | BN130: =+BL130+BM130 -> 0 | BS130: =+BS$87*$E130 -> 0 | BT130: =+IF(BS$86<$D130,SINH(BS$88-BS$88*$D130)/(BS$89*SINH(BS$88))*SINH(BS$88*BS$86),SINH(BS$88*$D130)/(BS$89*SINH(BS$88))*SINH(BS$88-BS$88*BS$86)) -> 0 | BU130: =+BS130+BT130 -> 0
D131: =+D130+0.05 -> 0.05 | E131: =+E74 -> 0.3000556616 | H131: =+H$87*$E131 -> -0.2544393522 | J131: -0.2544393522 | O131: =+O$87*$E131 -> -0.3720537237 | Q131: -0.3720537237 | V131: =+V$87*$E131 -> -0.4256945454 | X131: -0.4256945454 | AC131: =+AC$87*$E131 -> -0.4485874391 | AE131: -0.4485874391 | AJ131: =+AJ$87*$E131 -> -0.454912475 | AL131: -0.454912475 | AQ131: -0.4935642237 | AR131: 8.189356349 | AS131: 7.695792125 | AX131: -0.5833460019 | AY131: 1.489693995 | AZ131: 0.9063479934 | BE131: -0.599674711 | BF131: 0.2709844467 | BG131: -0.3286902642 | BL131: -0.6026277123 | BM131: 0.04929372779 | BN131: -0.5533339845 | BS131: -0.6030698282 | BT131: 0.008966830157 | BU131: -0.594102998
D132: 0.1 | E132: 0.5812659767 | F132: =+E130+4*E131+E132 -> 1.781488623 | H132: -0.4928983436 | J132: -0.4928983436 | K132: =+J130+4*J131+J132 -> -1.510655752 | L132: =+IF(K132>0,$F132,"") ->  | M132: =+IF(K132<0,$F132,"") -> 1.781488623 | O132: -0.7207401786 | Q132: -0.7207401786 | R132: =+Q130+4*Q131+Q132 -> -2.208955073 | S132: =+IF(R132>0,$F132,"") ->  | T132: =+IF(R132<0,$F132,"") -> 1.781488623 | V132: -0.8246528475 | X132: -0.8246528475 | Y132: =+X130+4*X131+X132 -> -2.527431029 | Z132: =+IF(Y132>0,$F132,"") ->  | AA132: =+IF(Y132<0,$F132,"") -> 1.781488623 | AC132: -0.8690008199 | AE132: -0.8690008199 | AF132: =+AE130+4*AE131+AE132 -> -2.663350576 | AG132: =+IF(AF132>0,$F132,"") ->  | AH132: =+IF(AF132<0,$F132,"") -> 1.781488623 | AJ132: -0.8812536405 | AL132: -0.8812536405 | AM132: =+AL130+4*AL131+AL132 -> -2.700903541 | AN132: =+IF(AM132>0,$F132,"") ->  | AO132: =+IF(AM132<0,$F132,"") -> 1.781488623 | AQ132: -0.9561295696 | AR132: 22.69389807 | AS132: 21.7377685 | AT132: =+AS130+4*AS131+AS132 -> 52.520937 | AU132: =+IF(AT132>0,$F132,"") -> 1.781488623 | AV132: =+IF(AT132<0,$F132,"") ->  | AX132: -1.130054276 | AY132: 4.128158824 | AZ132: 2.998104548 | BA132: =+AZ130+4*AZ131+AZ132 -> 6.623496521 | BB132: =+IF(BA132>0,$F132,"") -> 1.781488623 | BC132: =+IF(BA132<0,$F132,"") ->  | BE132: -1.161686151 | BF132: 0.7509373326 | BG132: -0.4107488185 | BH132: =+BG130+4*BG131+BG132 -> -1.725509875 | BI132: =+IF(BH132>0,$F132,"") ->  | BJ132: =+IF(BH132<0,$F132,"") -> 1.781488623 | BL132: -1.167406687 | BM132: 0.1366000924 | BN132: -1.030806595 | BO132: =+BN130+4*BN131+BN132 -> -3.244142533 | BP132: =+IF(BO132>0,$F132,"") ->  | BQ132: =+IF(BO132<0,$F132,"") -> 1.781488623 | BS132: -1.168263151 | BT132: 0.02484839112 | BU132: -1.14341476 | BV132: =+BU130+4*BU131+BU132 -> -3.519826752 | BW132: =+IF(BV132>0,$F132,"") ->  | BX132: =+IF(BV132<0,$F132,"") -> 1.781488623
D133: 0.15 | E133: 0.8346824653 | H133: -0.7077888971 | J133: -0.7077888971 | O133: -1.034963705 | Q133: -1.034963705 | V133: -1.184179531 | X133: -1.184179531 | AC133: -1.247862039 | AE133: -1.247862039 | AJ133: -1.265456763 | AL133: -1.265456763 | AQ133: -1.372976603 | AR133: 9.679050344 | AS133: 8.306073741 | AX133: -1.622727851 | AY133: 9.950034791 | AZ133: 8.327306939 | BE133: -1.668150381 | BF133: 1.80997217 | BG133: 0.1418217888 | BL133: -1.676364918 | BM133: 0.3292450047 | BN133: -1.347119913 | BS133: -1.677594778 | BT133: 0.05989167729 | BU133: -1.617703101
D134: 0.2 | E134: 1.056488569 | F134: =+E132+4*E133+E134 -> 4.976484407 | H134: -0.8958746709 | J134: -0.8958746709 | K134: =+J132+4*J133+J134 -> -4.219928603 | L134: =+IF(K134>0,$F134,"") ->  | M134: =+IF(K134<0,$F134,"") -> 4.976484407 | O134: -1.309991966 | Q134: -1.309991966 | R134: =+Q132+4*Q133+Q134 -> -6.170586967 | S134: =+IF(R134>0,$F134,"") ->  | T134: =+IF(R134<0,$F134,"") -> 4.976484407 | V134: -1.498859974 | X134: -1.498859974 | Y134: =+X132+4*X133+X134 -> -7.060230946 | Z134: =+IF(Y134>0,$F134,"") ->  | AA134: =+IF(Y134<0,$F134,"") -> 4.976484407 | AC134: -1.579465287 | AE134: -1.579465287 | AF134: =+AE132+4*AE133+AE134 -> -7.439914261 | AG134: =+IF(AF134>0,$F134,"") ->  | AH134: =+IF(AF134<0,$F134,"") -> 4.976484407 | AJ134: -1.601735582 | AL134: -1.601735582 | AM134: =+AL132+4*AL133+AL134 -> -7.544816274 | AN134: =+IF(AM134>0,$F134,"") ->  | AO134: =+IF(AM134<0,$F134,"") -> 4.976484407 | AQ134: -1.737827434 | AR134: 4.128158824 | AS134: 2.390331391 | AT134: =+AS132+4*AS133+AS134 -> 57.35239485 | AU134: =+IF(AT134>0,$F134,"") -> 4.976484407 | AV134: =+IF(AT134<0,$F134,"") ->  | AX134: -2.053946856 | AY134: 23.4448354 | AZ134: 21.39088854 | BA134: =+AZ132+4*AZ133+AZ134 -> 57.69822085 | BB134: =+IF(BA134>0,$F134,"") -> 4.976484407 | BC134: =+IF(BA134<0,$F134,"") ->  | BE134: -2.111439837 | BF134: 4.264758917 | BG134: 2.15331908 | BH134: =+BG132+4*BG133+BG134 -> 2.309857417 | BI134: =+IF(BH134>0,$F134,"") -> 4.976484407 | BJ134: =+IF(BH134<0,$F134,"") ->  | BL134: -2.121837282 | BM134: 0.7757857237 | BN134: -1.346051558 | BO134: =+BN132+4*BN133+BN134 -> -7.765337806 | BP134: =+IF(BO134>0,$F134,"") ->  | BQ134: =+IF(BO134<0,$F134,"") -> 4.976484407 | BS134: -2.123393961 | BT134: 0.1411201614 | BU134: -1.982273799 | BV134: =+BU132+4*BU133+BU134 -> -9.596500962 | BW134: =+IF(BV134>0,$F134,"") ->  | BX134: =+IF(BV134<0,$F134,"") -> 4.976484407
D135: 0.25 | E135: 1.245056528 | H135: -1.055775368 | J135: -1.055775368 | O135: -1.543806623 | Q135: -1.543806623 | V135: -1.766384844 | X135: -1.766384844 | AC135: -1.861377041 | AE135: -1.861377041 | AJ135: -1.887622263 | AL135: -1.887622263 | AQ135: -2.048004546 | AR135: 1.760678442 | AS135: -0.2873261039 | AX135: -2.420546722 | AY135: 9.999328518 | AZ135: 7.578781797 | BE135: -2.48830137 | BF135: 10.00829535 | BG135: 7.519993978 | BL135: -2.500554609 | BM135: 1.820570119 | BN135: -0.6799844893 | BS135: -2.502389132 | BT135: 0.3311728242 | BU135: -2.171216308
D136: 0.3 | E136: 1.399692146 | F136: =+E134+4*E135+E136 -> 7.436406828 | H136: -1.186902327 | J136: -1.186902327 | K136: =+J134+4*J135+J136 -> -6.30587847 | L136: =+IF(K136>0,$F136,"") ->  | M136: =+IF(K136<0,$F136,"") -> 7.436406828 | O136: -1.735546905 | Q136: -1.735546905 | R136: =+Q134+4*Q135+Q136 -> -9.220765364 | S136: =+IF(R136>0,$F136,"") ->  | T136: =+IF(R136<0,$F136,"") -> 7.436406828 | V136: -1.985769269 | X136: -1.985769269 | Y136: =+X134+4*X135+X136 -> -10.55016862 | Z136: =+IF(Y136>0,$F136,"") ->  | AA136: =+IF(Y136<0,$F136,"") -> 7.436406828 | AC136: -2.092559467 | AE136: -2.092559467 | AF136: =+AE134+4*AE135+AE136 -> -11.11753292 | AG136: =+IF(AF136>0,$F136,"") ->  | AH136: =+IF(AF136<0,$F136,"") -> 7.436406828 | AJ136: -2.122064336 | AL136: -2.122064336 | AM136: =+AL134+4*AL135+AL136 -> -11.27428897 | AN136: =+IF(AM136>0,$F136,"") ->  | AO136: =+IF(AM136<0,$F136,"") -> 7.436406828 | AQ136: -2.302366047 | AR136: 0.7509373326 | AS136: -1.551428714 | AT136: =+AS134+4*AS135+AS136 -> -0.310401739 | AU136: =+IF(AT136>0,$F136,"") ->  | AV136: =+IF(AT136<0,$F136,"") -> 7.436406828 | AX136: -2.72117784 | AY136: 4.264758917 | AZ136: 1.543581077 | BA136: =+AZ134+4*AZ135+AZ136 -> 53.24959681 | BB136: =+IF(BA136>0,$F136,"") -> 7.436406828 | BC136: =+IF(BA136<0,$F136,"") ->  | BE136: -2.797347594 | BF136: 23.46968379 | BG136: 20.6723362 | BH136: =+BG134+4*BG135+BG136 -> 52.90563119 | BI136: =+IF(BH136>0,$F136,"") -> 7.436406828 | BJ136: =+IF(BH136<0,$F136,"") ->  | BL136: -2.81112268 | BM136: 4.269278986 | BN136: 1.458156305 | BO136: =+BN134+4*BN135+BN136 -> -2.60783321 | BP136: =+IF(BO136>0,$F136,"") ->  | BQ136: =+IF(BO136<0,$F136,"") -> 7.436406828 | BS136: -2.813185051 | BT136: 0.7766079231 | BU136: -2.036577128 | BV136: =+BU134+4*BU135+BU136 -> -12.70371616 | BW136: =+IF(BV136>0,$F136,"") ->  | BX136: =+IF(BV136<0,$F136,"") -> 7.436406828
D137: 0.35 | E137: 1.520099455 | H137: -1.289004575 | J137: -1.289004575 | O137: -1.884845831 | Q137: -1.884845831 | V137: -2.156593357 | X137: -2.156593357 | AC137: -2.27257009 | AE137: -2.27257009 | AJ137: -2.30461309 | AL137: -2.30461309 | AQ137: -2.5004251 | AR137: 0.3202781745 | AS137: -2.180146925 | AX137: -2.955264816 | AY137: 1.818939 | AZ137: -1.136325816 | BE137: -3.037987007 | BF137: 10.00992647 | BG137: 6.971939461 | BL137: -3.052947084 | BM137: 10.01022317 | BN137: 6.957276084 | BS137: -3.055186869 | BT137: 1.820920734 | BU137: -1.234266135
D138: 0.4 | E138: 1.606152491 | F138: =+E136+4*E137+E138 -> 9.086242456 | H138: -1.361975299 | J138: -1.361975299 | K138: =+J136+4*J137+J138 -> -7.704895927 | L138: =+IF(K138>0,$F138,"") ->  | M138: =+IF(K138<0,$F138,"") -> 9.086242456 | O138: -1.991547208 | Q138: -1.991547208 | R138: =+Q136+4*Q137+Q138 -> -11.26647744 | S138: =+IF(R138>0,$F138,"") ->  | T138: =+IF(R138<0,$F138,"") -> 9.086242456 | V138: -2.278678399 | X138: -2.278678399 | Y138: =+X136+4*X137+X138 -> -12.8908211 | Z138: =+IF(Y138>0,$F138,"") ->  | AA138: =+IF(Y138<0,$F138,"") -> 9.086242456 | AC138: -2.40122059 | AE138: -2.40122059 | AF138: =+AE136+4*AE137+AE138 -> -13.58406041 | AG138: =+IF(AF138>0,$F138,"") ->  | AH138: =+IF(AF138<0,$F138,"") -> 9.086242456 | AJ138: -2.435077549 | AL138: -2.435077549 | AM138: =+AL136+4*AL137+AL138 -> -13.77559425 | AN138: =+IF(AM138>0,$F138,"") ->  | AO138: =+IF(AM138<0,$F138,"") -> 9.086242456 | AQ138: -2.641974503 | AR138: 0.1366000924 | AS138: -2.505374411 | AT138: =+AS136+4*AS137+AS138 -> -12.77739083 | AU138: =+IF(AT138>0,$F138,"") ->  | AV138: =+IF(AT138<0,$F138,"") -> 9.086242456 | AX138: -3.122562758 | AY138: 0.7757857237 | AZ138: -2.346777034 | BA138: =+AZ136+4*AZ137+AZ138 -> -5.348499221 | BB138: =+IF(BA138>0,$F138,"") ->  | BC138: =+IF(BA138<0,$F138,"") -> 9.086242456 | BE138: -3.209967863 | BF138: 4.269278986 | BG138: 1.059311122 | BH138: =+BG136+4*BG137+BG138 -> 49.61940516 | BI138: =+IF(BH138>0,$F138,"") -> 9.086242456 | BJ138: =+IF(BH138<0,$F138,"") ->  | BL138: -3.225774832 | BM138: 23.47050599 | BN138: 20.24473116 | BO138: =+BN136+4*BN137+BN138 -> 49.5319918 | BP138: =+IF(BO138>0,$F138,"") -> 9.086242456 | BQ138: =+IF(BO138<0,$F138,"") ->  | BS138: -3.228141411 | BT138: 4.269428391 | BU138: 1.041286979 | BV138: =+BU136+4*BU137+BU138 -> -5.932354688 | BW138: =+IF(BV138>0,$F138,"") ->  | BX138: =+IF(BV138<0,$F138,"") -> 9.086242456
D139: 0.45 | E139: 1.657798151 | H139: -1.405769467 | J139: -1.405769467 | O139: -2.055585194 | Q139: -2.055585194 | V139: -2.351949057 | X139: -2.351949057 | AC139: -2.478431579 | AE139: -2.478431579 | AJ139: -2.513377205 | AL139: -2.513377205 | AQ139: -2.726926908 | AR139: 0.05826055794 | AS139: -2.66866635 | AX139: -3.222968426 | AY139: 0.330876124 | AZ139: -2.892092301 | BE139: -3.313184033 | BF139: 1.820866819 | BG139: -1.492317214 | BL139: -3.329499273 | BM139: 10.01027708 | BN139: 6.68077781 | BS139: -3.331941949 | BT139: 10.01028658 | BU139: 6.678344627
D140: 0.5 | E140: 1.675015244 | F140: =+E138+4*E139+E140 -> 9.912360337 | H140: -1.420369112 | J140: -1.420369112 | K140: =+J138+4*J139+J140 -> -8.405422281 | L140: =+IF(K140>0,$F140,"") ->  | M140: =+IF(K140<0,$F140,"") -> 9.912360337 | O140: -2.076933511 | Q140: -2.076933511 | R140: =+Q138+4*Q139+Q140 -> -12.29082149 | S140: =+IF(R140>0,$F140,"") ->  | T140: =+IF(R140<0,$F140,"") -> 9.912360337 | V140: -2.376375267 | X140: -2.376375267 | Y140: =+X138+4*X139+X140 -> -14.06284989 | Z140: =+IF(Y140>0,$F140,"") ->  | AA140: =+IF(Y140<0,$F140,"") -> 9.912360337 | AC140: -2.504171375 | AE140: -2.504171375 | AF140: =+AE138+4*AE139+AE140 -> -14.81911828 | AG140: =+IF(AF140>0,$F140,"") ->  | AH140: =+IF(AF140<0,$F140,"") -> 9.912360337 | AJ140: -2.539479929 | AL140: -2.539479929 | AM140: =+AL138+4*AL139+AL140 -> -15.0280663 | AN140: =+IF(AM140>0,$F140,"") ->  | AO140: =+IF(AM140<0,$F140,"") -> 9.912360337 | AQ140: -2.755247457 | AR140: 0.02484839112 | AS140: -2.730399066 | AT140: =+AS138+4*AS139+AS140 -> -15.91043888 | AU140: =+IF(AT140>0,$F140,"") ->  | AV140: =+IF(AT140<0,$F140,"") -> 9.912360337 | AX140: -3.256440623 | AY140: 0.1411201614 | AZ140: -3.115320462 | BA140: =+AZ138+4*AZ139+AZ140 -> -17.0304667 | BB140: =+IF(BA140>0,$F140,"") ->  | BC140: =+IF(BA140<0,$F140,"") -> 9.912360337 | BE140: -3.347593166 | BF140: 0.7766079231 | BG140: -2.570985243 | BH140: =+BG138+4*BG139+BG140 -> -7.480942975 | BI140: =+IF(BH140>0,$F140,"") ->  | BJ140: =+IF(BH140<0,$F140,"") -> 9.912360337 | BL140: -3.364077848 | BM140: 4.269428391 | BN140: 0.9053505422 | BO140: =+BN138+4*BN139+BN140 -> 47.87319294 | BP140: =+IF(BO140>0,$F140,"") -> 9.912360337 | BQ140: =+IF(BO140<0,$F140,"") ->  | BS140: -3.366545893 | BT140: 23.4705323 | BU140: 20.1039864 | BV140: =+BU138+4*BU139+BU140 -> 47.85865189 | BW140: =+IF(BV140>0,$F140,"") -> 9.912360337 | BX140: =+IF(BV140<0,$F140,"") -> 
D141: 0.55 | E141: =+E139 -> 1.657798151 | H141: =+H139 -> -1.405769467 | J141: -1.405769467 | O141: =+O139 -> -2.055585194 | Q141: -2.055585194 | V141: =+V139 -> -2.351949057 | X141: -2.351949057 | AC141: =+AC139 -> -2.478431579 | AE141: -2.478431579 | AJ141: =+AJ139 -> -2.513377205 | AL141: -2.513377205 | AQ141: =+AQ139 -> -2.726926908 | AR141: 0.0105979495 | AS141: -2.716328958 | AX141: =+AX139 -> -3.222968426 | AY141: 0.06018837748 | AZ141: -3.162780048 | BE141: =+BE139 -> -3.313184033 | BF141: 0.3312267387 | BG141: -2.981957294 | BL141: =+BL139 -> -3.329499273 | BM141: 1.820930227 | BN141: -1.508569046 | BS141: =+BS139 -> -3.331941949 | BT141: 10.01028658 | BU141: 6.678344627
D142: 0.6 | E142: =+E138 -> 1.606152491 | F142: =+E140+4*E141+E142 -> 9.912360337 | H142: =+H138 -> -1.361975299 | J142: -1.361975299 | K142: =+J140+4*J141+J142 -> -8.405422281 | L142: =+IF(K142>0,$F142,"") ->  | M142: =+IF(K142<0,$F142,"") -> 9.912360337 | O142: =+O138 -> -1.991547208 | Q142: -1.991547208 | R142: =+Q140+4*Q141+Q142 -> -12.29082149 | S142: =+IF(R142>0,$F142,"") ->  | T142: =+IF(R142<0,$F142,"") -> 9.912360337 | V142: =+V138 -> -2.278678399 | X142: -2.278678399 | Y142: =+X140+4*X141+X142 -> -14.06284989 | Z142: =+IF(Y142>0,$F142,"") ->  | AA142: =+IF(Y142<0,$F142,"") -> 9.912360337 | AC142: =+AC138 -> -2.40122059 | AE142: -2.40122059 | AF142: =+AE140+4*AE141+AE142 -> -14.81911828 | AG142: =+IF(AF142>0,$F142,"") ->  | AH142: =+IF(AF142<0,$F142,"") -> 9.912360337 | AJ142: =+AJ138 -> -2.435077549 | AL142: -2.435077549 | AM142: =+AL140+4*AL141+AL142 -> -15.0280663 | AN142: =+IF(AM142>0,$F142,"") ->  | AO142: =+IF(AM142<0,$F142,"") -> 9.912360337 | AQ142: =+AQ138 -> -2.641974503 | AR142: 0.004520069045 | AS142: -2.637454434 | AT142: =+AS140+4*AS141+AS142 -> -16.23316933 | AU142: =+IF(AT142>0,$F142,"") ->  | AV142: =+IF(AT142<0,$F142,"") -> 9.912360337 | AX142: =+AX138 -> -3.122562758 | AY142: 0.02567059051 | AZ142: -3.096892167 | BA142: =+AZ140+4*AZ141+AZ142 -> -18.86333282 | BB142: =+IF(BA142>0,$F142,"") ->  | BC142: =+IF(BA142<0,$F142,"") -> 9.912360337 | BE142: =+BE138 -> -3.209967863 | BF142: 0.1412695662 | BG142: -3.068698297 | BH142: =+BG140+4*BG141+BG142 -> -17.56751272 | BI142: =+IF(BH142>0,$F142,"") ->  | BJ142: =+IF(BH142<0,$F142,"") -> 9.912360337 | BL142: =+BL138 -> -3.225774832 | BM142: 0.7766342302 | BN142: -2.449140602 | BO142: =+BN140+4*BN141+BN142 -> -7.578066243 | BP142: =+IF(BO142>0,$F142,"") ->  | BQ142: =+IF(BO142<0,$F142,"") -> 9.912360337 | BS142: =+BS138 -> -3.228141411 | BT142: 4.269428391 | BU142: 1.041286979 | BV142: =+BU140+4*BU141+BU142 -> 47.85865189 | BW142: =+IF(BV142>0,$F142,"") -> 9.912360337 | BX142: =+IF(BV142<0,$F142,"") -> 
D143: 0.65 | E143: =+E137 -> 1.520099455 | H143: =+H137 -> -1.289004575 | J143: -1.289004575 | O143: =+O137 -> -1.884845831 | Q143: -1.884845831 | V143: =+V137 -> -2.156593357 | X143: -2.156593357 | AC143: =+AC137 -> -2.27257009 | AE143: -2.27257009 | AJ143: =+AJ137 -> -2.30461309 | AL143: -2.30461309 | AQ143: =+AQ137 -> -2.5004251 | AR143: 0.001927819532 | AS143: -2.49849728 | AX143: =+AX137 -> -2.955264816 | AY143: 0.01094856413 | AZ143: -2.944316252 | BE143: =+BE137 -> -3.037987007 | BF143: 0.06025178515 | BG143: -2.977735222 | BL143: =+BL137 -> -3.052947084 | BM143: 0.3312362319 | BN143: -2.721710852 | BS143: =+BS137 -> -3.055186869 | BT143: 1.820920734 | BU143: -1.234266135
D144: 0.7 | E144: =+E136 -> 1.399692146 | F144: =+E142+4*E143+E144 -> 9.086242456 | H144: =+H136 -> -1.186902327 | J144: -1.186902327 | K144: =+J142+4*J143+J144 -> -7.704895927 | L144: =+IF(K144>0,$F144,"") ->  | M144: =+IF(K144<0,$F144,"") -> 9.086242456 | O144: =+O136 -> -1.735546905 | Q144: -1.735546905 | R144: =+Q142+4*Q143+Q144 -> -11.26647744 | S144: =+IF(R144>0,$F144,"") ->  | T144: =+IF(R144<0,$F144,"") -> 9.086242456 | V144: =+V136 -> -1.985769269 | X144: -1.985769269 | Y144: =+X142+4*X143+X144 -> -12.8908211 | Z144: =+IF(Y144>0,$F144,"") ->  | AA144: =+IF(Y144<0,$F144,"") -> 9.086242456 | AC144: =+AC136 -> -2.092559467 | AE144: -2.092559467 | AF144: =+AE142+4*AE143+AE144 -> -13.58406041 | AG144: =+IF(AF144>0,$F144,"") ->  | AH144: =+IF(AF144<0,$F144,"") -> 9.086242456 | AJ144: =+AJ136 -> -2.122064336 | AL144: -2.122064336 | AM144: =+AL142+4*AL143+AL144 -> -13.77559425 | AN144: =+IF(AM144>0,$F144,"") ->  | AO144: =+IF(AM144<0,$F144,"") -> 9.086242456 | AQ144: =+AQ136 -> -2.302366047 | AR144: 0.0008221993934 | AS144: -2.301543847 | AT144: =+AS142+4*AS143+AS144 -> -14.9329874 | AU144: =+IF(AT144>0,$F144,"") ->  | AV144: =+IF(AT144<0,$F144,"") -> 9.086242456 | AX144: =+AX136 -> -2.72117784 | AY144: 0.004669473793 | AZ144: -2.716508366 | BA144: =+AZ142+4*AZ143+AZ144 -> -17.59066554 | BB144: =+IF(BA144>0,$F144,"") ->  | BC144: =+IF(BA144<0,$F144,"") -> 9.086242456 | BE144: =+BE136 -> -2.797347594 | BF144: 0.02569689765 | BG144: -2.771650696 | BH144: =+BG142+4*BG143+BG144 -> -17.75128988 | BI144: =+IF(BH144>0,$F144,"") ->  | BJ144: =+IF(BH144<0,$F144,"") -> 9.086242456 | BL144: =+BL136 -> -2.81112268 | BM144: 0.1412695662 | BN144: -2.669853114 | BO144: =+BN142+4*BN143+BN144 -> -16.00583712 | BP144: =+IF(BO144>0,$F144,"") ->  | BQ144: =+IF(BO144<0,$F144,"") -> 9.086242456 | BS144: =+BS136 -> -2.813185051 | BT144: 0.7766079231 | BU144: -2.036577128 | BV144: =+BU142+4*BU143+BU144 -> -5.932354688 | BW144: =+IF(BV144>0,$F144,"") ->  | BX144: =+IF(BV144<0,$F144,"") -> 9.086242456
D145: 0.75 | E145: =+E135 -> 1.245056528 | H145: =+H135 -> -1.055775368 | J145: -1.055775368 | O145: =+O135 -> -1.543806623 | Q145: -1.543806623 | V145: =+V135 -> -1.766384844 | X145: -1.766384844 | AC145: =+AC135 -> -1.861377041 | AE145: -1.861377041 | AJ145: =+AJ135 -> -1.887622263 | AL145: -1.887622263 | AQ145: =+AQ135 -> -2.048004546 | AR145: 0.0003506146243 | AS145: -2.047653931 | AX145: =+AX135 -> -2.420546722 | AY145: 0.001991227204 | AZ145: -2.418555494 | BE145: =+BE135 -> -2.48830137 | BF145: 0.01095805736 | BG145: -2.477343313 | BL145: =+BL135 -> -2.500554609 | BM145: 0.06024229191 | BN145: -2.440312317 | BS145: =+BS135 -> -2.502389132 | BT145: 0.3311728242 | BU145: -2.171216308
D146: 0.8 | E146: =+E134 -> 1.056488569 | F146: =+E144+4*E145+E146 -> 7.436406828 | H146: =+H134 -> -0.8958746709 | J146: -0.8958746709 | K146: =+J144+4*J145+J146 -> -6.30587847 | L146: =+IF(K146>0,$F146,"") ->  | M146: =+IF(K146<0,$F146,"") -> 7.436406828 | O146: =+O134 -> -1.309991966 | Q146: -1.309991966 | R146: =+Q144+4*Q145+Q146 -> -9.220765364 | S146: =+IF(R146>0,$F146,"") ->  | T146: =+IF(R146<0,$F146,"") -> 7.436406828 | V146: =+V134 -> -1.498859974 | X146: -1.498859974 | Y146: =+X144+4*X145+X146 -> -10.55016862 | Z146: =+IF(Y146>0,$F146,"") ->  | AA146: =+IF(Y146<0,$F146,"") -> 7.436406828 | AC146: =+AC134 -> -1.579465287 | AE146: -1.579465287 | AF146: =+AE144+4*AE145+AE146 -> -11.11753292 | AG146: =+IF(AF146>0,$F146,"") ->  | AH146: =+IF(AF146<0,$F146,"") -> 7.436406828 | AJ146: =+AJ134 -> -1.601735582 | AL146: -1.601735582 | AM146: =+AL144+4*AL145+AL146 -> -11.27428897 | AN146: =+IF(AM146>0,$F146,"") ->  | AO146: =+IF(AM146<0,$F146,"") -> 7.436406828 | AQ146: =+AQ134 -> -1.737827434 | AR146: 0.0001494047481 | AS146: -1.737678029 | AT146: =+AS144+4*AS145+AS146 -> -12.2298376 | AU146: =+IF(AT146>0,$F146,"") ->  | AV146: =+IF(AT146<0,$F146,"") -> 7.436406828 | AX146: =+AX134 -> -2.053946856 | AY146: 0.0008485065318 | AZ146: -2.053098349 | BA146: =+AZ144+4*AZ145+AZ146 -> -14.44382869 | BB146: =+IF(BA146>0,$F146,"") ->  | BC146: =+IF(BA146<0,$F146,"") -> 7.436406828 | BE146: =+BE134 -> -2.111439837 | BF146: 0.004669473793 | BG146: -2.106770363 | BH146: =+BG144+4*BG145+BG146 -> -14.78779431 | BI146: =+IF(BH146>0,$F146,"") ->  | BJ146: =+IF(BH146<0,$F146,"") -> 7.436406828 | BL146: =+BL134 -> -2.121837282 | BM146: 0.02567059051 | BN146: -2.096166691 | BO146: =+BN144+4*BN145+BN146 -> -14.52726907 | BP146: =+IF(BO146>0,$F146,"") ->  | BQ146: =+IF(BO146<0,$F146,"") -> 7.436406828 | BS146: =+BS134 -> -2.123393961 | BT146: 0.1411201614 | BU146: -1.982273799 | BV146: =+BU144+4*BU145+BU146 -> -12.70371616 | BW146: =+IF(BV146>0,$F146,"") ->  | BX146: =+IF(BV146<0,$F146,"") -> 7.436406828
D147: 0.85 | E147: =+E133 -> 0.8346824653 | H147: =+H133 -> -0.7077888971 | J147: -0.7077888971 | O147: =+O133 -> -1.034963705 | Q147: -1.034963705 | V147: =+V133 -> -1.184179531 | X147: -1.184179531 | AC147: =+AC133 -> -1.247862039 | AE147: -1.247862039 | AJ147: =+AJ133 -> -1.265456763 | AL147: -1.265456763 | AQ147: =+AQ133 -> -1.372976603 | AR147: 6.340767236e-05 | AS147: -1.372913196 | AX147: =+AX133 -> -1.622727851 | AY147: 0.0003601078604 | AZ147: -1.622367743 | BE147: =+BE133 -> -1.668150381 | BF147: 0.001981733968 | BG147: -1.666168647 | BL147: =+BL133 -> -1.676364918 | BM147: 0.01089464969 | BN147: -1.665470268 | BS147: =+BS133 -> -1.677594778 | BT147: 0.05989167729 | BU147: -1.617703101
D148: 0.9 | E148: =+E132 -> 0.5812659767 | F148: =+E146+4*E147+E148 -> 4.976484407 | H148: =+H132 -> -0.4928983436 | J148: -0.4928983436 | K148: =+J146+4*J147+J148 -> -4.219928603 | L148: =+IF(K148>0,$F148,"") ->  | M148: =+IF(K148<0,$F148,"") -> 4.976484407 | O148: =+O132 -> -0.7207401786 | Q148: -0.7207401786 | R148: =+Q146+4*Q147+Q148 -> -6.170586967 | S148: =+IF(R148>0,$F148,"") ->  | T148: =+IF(R148<0,$F148,"") -> 4.976484407 | V148: =+V132 -> -0.8246528475 | X148: -0.8246528475 | Y148: =+X146+4*X147+X148 -> -7.060230946 | Z148: =+IF(Y148>0,$F148,"") ->  | AA148: =+IF(Y148<0,$F148,"") -> 4.976484407 | AC148: =+AC132 -> -0.8690008199 | AE148: -0.8690008199 | AF148: =+AE146+4*AE147+AE148 -> -7.439914261 | AG148: =+IF(AF148>0,$F148,"") ->  | AH148: =+IF(AF148<0,$F148,"") -> 4.976484407 | AJ148: =+AJ132 -> -0.8812536405 | AL148: -0.8812536405 | AM148: =+AL146+4*AL147+AL148 -> -7.544816274 | AN148: =+IF(AM148>0,$F148,"") ->  | AO148: =+IF(AM148<0,$F148,"") -> 4.976484407 | AQ148: =+AQ132 -> -0.9561295696 | AR148: 2.630713839e-05 | AS148: -0.9561032625 | AT148: =+AS146+4*AS147+AS148 -> -8.185434074 | AU148: =+IF(AT148>0,$F148,"") ->  | AV148: =+IF(AT148<0,$F148,"") -> 4.976484407 | AX148: =+AX132 -> -1.130054276 | AY148: 0.0001494047481 | AZ148: -1.129904872 | BA148: =+AZ146+4*AZ147+AZ148 -> -9.672474194 | BB148: =+IF(BA148>0,$F148,"") ->  | BC148: =+IF(BA148<0,$F148,"") -> 4.976484407 | BE148: =+BE132 -> -1.161686151 | BF148: 0.0008221993934 | BG148: -1.160863952 | BH148: =+BG146+4*BG147+BG148 -> -9.932308903 | BI148: =+IF(BH148>0,$F148,"") ->  | BJ148: =+IF(BH148<0,$F148,"") -> 4.976484407 | BL148: =+BL132 -> -1.167406687 | BM148: 0.004520069045 | BN148: -1.162886618 | BO148: =+BN146+4*BN147+BN148 -> -9.920934383 | BP148: =+IF(BO148>0,$F148,"") ->  | BQ148: =+IF(BO148<0,$F148,"") -> 4.976484407 | BS148: =+BS132 -> -1.168263151 | BT148: 0.02484839112 | BU148: -1.14341476 | BV148: =+BU146+4*BU147+BU148 -> -9.596500962 | BW148: =+IF(BV148>0,$F148,"") ->  | BX148: =+IF(BV148<0,$F148,"") -> 4.976484407
D149: 0.95 | E149: =+E131 -> 0.3000556616 | H149: =+H131 -> -0.2544393522 | J149: -0.2544393522 | O149: =+O131 -> -0.3720537237 | Q149: -0.3720537237 | V149: =+V131 -> -0.4256945454 | X149: -0.4256945454 | AC149: =+AC131 -> -0.4485874391 | AE149: -0.4485874391 | AJ149: =+AJ131 -> -0.454912475 | AL149: -0.454912475 | AQ149: =+AQ131 -> -0.4935642237 | AR149: 9.493236029e-06 | AS149: -0.4935547305 | AX149: =+AX131 -> -0.5833460019 | AY149: 5.391443633e-05 | AZ149: -0.5832920874 | BE149: =+BE131 -> -0.599674711 | BF149: 0.000296700188 | BG149: -0.5993780108 | BL149: =+BL131 -> -0.6026277123 | BM149: 0.001631119344 | BN149: -0.6009965929 | BS149: =+BS131 -> -0.6030698282 | BT149: 0.008966830157 | BU149: -0.594102998
D150: 1 | E150: =+E130 -> 0 | F150: =+E148+4*E149+E150 -> 1.781488623 | H150: =+H130 -> 0 | J150: 0 | K150: =+J148+4*J149+J150 -> -1.510655752 | L150: =+IF(K150>0,$F150,"") ->  | M150: =+IF(K150<0,$F150,"") -> 1.781488623 | O150: =+O130 -> 0 | Q150: 0 | R150: =+Q148+4*Q149+Q150 -> -2.208955073 | S150: =+IF(R150>0,$F150,"") ->  | T150: =+IF(R150<0,$F150,"") -> 1.781488623 | V150: =+V130 -> 0 | X150: 0 | Y150: =+X148+4*X149+X150 -> -2.527431029 | Z150: =+IF(Y150>0,$F150,"") ->  | AA150: =+IF(Y150<0,$F150,"") -> 1.781488623 | AC150: =+AC130 -> 0 | AE150: 0 | AF150: =+AE148+4*AE149+AE150 -> -2.663350576 | AG150: =+IF(AF150>0,$F150,"") ->  | AH150: =+IF(AF150<0,$F150,"") -> 1.781488623 | AJ150: =+AJ130 -> 0 | AL150: 0 | AM150: =+AL148+4*AL149+AL150 -> -2.700903541 | AN150: =+IF(AM150>0,$F150,"") ->  | AO150: =+IF(AM150<0,$F150,"") -> 1.781488623 | AQ150: =+AQ130 -> 0 | AR150: -3.516616301e-20 | AS150: -3.516616301e-20 | AT150: =+AS148+4*AS149+AS150 -> -2.930322184 | AU150: =+IF(AT150>0,$F150,"") ->  | AV150: =+IF(AT150<0,$F150,"") -> 1.781488623 | AX150: =+AX130 -> 0 | AY150: -1.99717341e-19 | AZ150: -1.99717341e-19 | BA150: =+AZ148+4*AZ149+AZ150 -> -3.463073221 | BB150: =+IF(BA150>0,$F150,"") ->  | BC150: =+IF(BA150<0,$F150,"") -> 1.781488623 | BE150: =+BE130 -> 0 | BF150: -1.099078033e-18 | BG150: -1.099078033e-18 | BH150: =+BG148+4*BG149+BG150 -> -3.558375995 | BI150: =+IF(BH150>0,$F150,"") ->  | BJ150: =+IF(BH150<0,$F150,"") -> 1.781488623 | BL150: =+BL130 -> 0 | BM150: -6.042218752e-18 | BN150: -6.042218752e-18 | BO150: =+BN148+4*BN149+BN150 -> -3.56687299 | BP150: =+IF(BO150>0,$F150,"") ->  | BQ150: =+IF(BO150<0,$F150,"") -> 1.781488623 | BS150: =+BS130 -> 0 | BT150: -3.321617729e-17 | BU150: -3.321617729e-17 | BV150: =+BU148+4*BU149+BU150 -> -3.519826752 | BW150: =+IF(BV150>0,$F150,"") ->  | BX150: =+IF(BV150<0,$F150,"") -> 1.781488623
K151: =+SUMIF(K130:K150,">0") -> 0 | L151: =+SUM(L130:L150) -> 0 | M151: =+SUM(M130:M150) -> 66.3859653 | R151: =+SUMIF(R130:R150,">0") -> 0 | S151: =+SUM(S130:S150) -> 0 | T151: =+SUM(T130:T150) -> 66.3859653 | Y151: =+SUMIF(Y130:Y150,">0") -> 0 | Z151: =+SUM(Z130:Z150) -> 0 | AA151: =+SUM(AA130:AA150) -> 66.3859653 | AF151: =+SUMIF(AF130:AF150,">0") -> 0 | AG151: =+SUM(AG130:AG150) -> 0 | AH151: =+SUM(AH130:AH150) -> 66.3859653 | AM151: =+SUMIF(AM130:AM150,">0") -> 0 | AN151: =+SUM(AN130:AN150) -> 0 | AO151: =+SUM(AO130:AO150) -> 66.3859653 | AT151: =+SUMIF(AT130:AT150,">0") -> 109.8733318 | AU151: =+SUM(AU130:AU150) -> 6.757973029 | AV151: =+SUM(AV130:AV150) -> 59.62799227 | BA151: =+SUMIF(BA130:BA150,">0") -> 117.5713142 | BB151: =+SUM(BB130:BB150) -> 14.19437986 | BC151: =+SUM(BC130:BC150) -> 52.19158544 | BH151: =+SUMIF(BH130:BH150,">0") -> 104.8348938 | BI151: =+SUM(BI130:BI150) -> 21.49913369 | BJ151: =+SUM(BJ130:BJ150) -> 44.88683161 | BO151: =+SUMIF(BO130:BO150,">0") -> 97.40518474 | BP151: =+SUM(BP130:BP150) -> 18.99860279 | BQ151: =+SUM(BQ130:BQ150) -> 47.38736251 | BV151: =+SUMIF(BV130:BV150,">0") -> 95.71730378 | BW151: =+SUM(BW130:BW150) -> 19.82472067 | BX151: =+SUM(BX130:BX150) -> 46.56124463
K152: =+SUMIF(K130:K150,"<0") -> -56.29356206 | R152: =+SUMIF(R130:R150,"<0") -> -82.31521267 | Y152: =+SUMIF(Y130:Y150,"<0") -> -94.18300317 | AF152: =+SUMIF(AF130:AF150,"<0") -> -99.2479529 | AM152: =+SUMIF(AM130:AM150,"<0") -> -100.6473387 | AT152: =+SUMIF(AT130:AT150,"<0") -> -83.50998203 | BA152: =+SUMIF(BA130:BA150,"<0") -> -86.41234039 | BH152: =+SUMIF(BH130:BH150,"<0") -> -72.80373466 | BO152: =+SUMIF(BO130:BO150,"<0") -> -65.21629336 | BV152: =+SUMIF(BV130:BV150,"<0") -> -63.50479712
D154: 0 | E154: =+F73 -> 0 | H154: =+H$87*$E154 -> 0 | J154: =+H154+I154 -> 0 | O154: =+O$87*$E154 -> 0 | Q154: =+O154+P154 -> 0 | V154: =+V$87*$E154 -> 0 | X154: =+V154+W154 -> 0 | AC154: =+AC$87*$E154 -> 0 | AE154: =+AC154+AD154 -> 0 | AJ154: =+AJ$87*$E154 -> 0 | AL154: =+AJ154+AK154 -> 0 | AQ154: =+AQ$87*$E154 -> 0 | AS154: =+AQ154+AR154 -> 0 | AX154: =+AX$87*$E154 -> 0 | AZ154: =+AX154+AY154 -> 0 | BE154: =+BE$87*$E154 -> 0 | BG154: =+BE154+BF154 -> 0 | BL154: =+BL$87*$E154 -> 0 | BN154: =+BL154+BM154 -> 0 | BS154: =+BS$87*$E154 -> 0 | BU154: =+BS154+BT154 -> 0
D155: =+D154+0.05 -> 0.05 | E155: =+F74 -> 0.0404568109 | H155: =+H$87*$E155 -> -0.03430631739 | J155: -0.03430631739 | O155: =+O$87*$E155 -> -0.05016438306 | Q155: -0.05016438306 | V155: =+V$87*$E155 -> -0.05739682977 | X155: -0.05739682977 | AC155: =+AC$87*$E155 -> -0.06048350197 | AE155: -0.06048350197 | AJ155: =+AJ$87*$E155 -> -0.06133631302 | AL155: -0.06133631302 | AQ155: -0.06654776772 | AS155: -0.06654776772 | AX155: -0.07865313644 | AZ155: -0.07865313644 | BE155: -0.08085475295 | BG155: -0.08085475295 | BL155: -0.08125290913 | BN155: -0.08125290913 | BS155: -0.08131252006 | BU155: -0.08131252006
D156: 0.1 | E156: 0.0792044497 | F156: =+E154+4*E155+E156 -> 0.2410316933 | H156: -0.06716330153 | J156: -0.06716330153 | K156: =+J154+4*J155+J156 -> -0.2043885711 | L156: =+IF(K156>0,$F156,"") ->  | M156: =+IF(K156<0,$F156,"") -> 0.2410316933 | O156: -0.09820947985 | Q156: -0.09820947985 | R156: =+Q154+4*Q155+Q156 -> -0.2988670121 | S156: =+IF(R156>0,$F156,"") ->  | T156: =+IF(R156<0,$F156,"") -> 0.2410316933 | V156: -0.1123688253 | X156: -0.1123688253 | Y156: =+X154+4*X155+X156 -> -0.3419561444 | Z156: =+IF(Y156>0,$F156,"") ->  | AA156: =+IF(Y156<0,$F156,"") -> 0.2410316933 | AC156: -0.1184117676 | AE156: -0.1184117676 | AF156: =+AE154+4*AE155+AE156 -> -0.3603457755 | AG156: =+IF(AF156>0,$F156,"") ->  | AH156: =+IF(AF156<0,$F156,"") -> 0.2410316933 | AJ156: -0.1200813611 | AL156: -0.1200813611 | AM156: =+AL154+4*AL155+AL156 -> -0.3654266132 | AN156: =+IF(AM156>0,$F156,"") ->  | AO156: =+IF(AM156<0,$F156,"") -> 0.2410316933 | AQ156: -0.1302841031 | AS156: -0.1302841031 | AT156: =+AS154+4*AS155+AS156 -> -0.3964751739 | AU156: =+IF(AT156>0,$F156,"") ->  | AV156: =+IF(AT156<0,$F156,"") -> 0.2410316933 | AX156: -0.153983427 | AZ156: -0.153983427 | BA156: =+AZ154+4*AZ155+AZ156 -> -0.4685959728 | BB156: =+IF(BA156>0,$F156,"") ->  | BC156: =+IF(BA156<0,$F156,"") -> 0.2410316933 | BE156: -0.1582936487 | BG156: -0.1582936487 | BH156: =+BG154+4*BG155+BG156 -> -0.4817126605 | BI156: =+IF(BH156>0,$F156,"") ->  | BJ156: =+IF(BH156<0,$F156,"") -> 0.2410316933 | BL156: -0.1590731402 | BN156: -0.1590731402 | BO156: =+BN154+4*BN155+BN156 -> -0.4840847767 | BP156: =+IF(BO156>0,$F156,"") ->  | BQ156: =+IF(BO156<0,$F156,"") -> 0.2410316933 | BS156: -0.1591898437 | BU156: -0.1591898437 | BV156: =+BU154+4*BU155+BU156 -> -0.484439924 | BW156: =+IF(BV156>0,$F156,"") ->  | BX156: =+IF(BV156<0,$F156,"") -> 0.2410316933
D157: 0.15 | E157: 0.1150333403 | H157: -0.09754526355 | J157: -0.09754526355 | O157: -0.1426354776 | Q157: -0.1426354776 | V157: -0.1631999385 | X157: -0.1631999385 | AC157: -0.1719764635 | AE157: -0.1719764635 | AJ157: -0.1744013137 | AL157: -0.1744013137 | AQ157: -0.1892193635 | AS157: -0.1892193635 | AX157: -0.2236393034 | AZ157: -0.2236393034 | BE157: -0.2298992951 | BG157: -0.2298992951 | BL157: -0.2310313971 | BN157: -0.2310313971 | BS157: -0.2312008925 | BU157: -0.2312008925
D158: 0.2 | E158: 0.1471210004 | F158: =+E156+4*E157+E158 -> 0.6864588113 | H158: -0.12475476 | J158: -0.12475476 | K158: =+J156+4*J157+J158 -> -0.5820991157 | L158: =+IF(K158>0,$F158,"") ->  | M158: =+IF(K158<0,$F158,"") -> 0.6864588113 | O158: -0.1824225404 | Q158: -0.1824225404 | R158: =+Q156+4*Q157+Q158 -> -0.8511739308 | S158: =+IF(R158>0,$F158,"") ->  | T158: =+IF(R158<0,$F158,"") -> 0.6864588113 | V158: -0.2087232984 | X158: -0.2087232984 | Y158: =+X156+4*X157+X158 -> -0.9738918777 | Z158: =+IF(Y158>0,$F158,"") ->  | AA158: =+IF(Y158<0,$F158,"") -> 0.6864588113 | AC158: -0.2199479672 | AE158: -0.2199479672 | AF158: =+AE156+4*AE157+AE158 -> -1.026265589 | AG158: =+IF(AF158>0,$F158,"") ->  | AH158: =+IF(AF158<0,$F158,"") -> 0.6864588113 | AJ158: -0.2230492106 | AL158: -0.2230492106 | AM158: =+AL156+4*AL157+AL158 -> -1.040735826 | AN158: =+IF(AM158>0,$F158,"") ->  | AO158: =+IF(AM158<0,$F158,"") -> 0.6864588113 | AQ158: -0.2420006408 | AS158: -0.2420006408 | AT158: =+AS156+4*AS157+AS158 -> -1.129162198 | AU158: =+IF(AT158>0,$F158,"") ->  | AV158: =+IF(AT158<0,$F158,"") -> 0.6864588113 | AX158: -0.2860217566 | AZ158: -0.2860217566 | BA158: =+AZ156+4*AZ157+AZ158 -> -1.334562397 | BB158: =+IF(BA158>0,$F158,"") ->  | BC158: =+IF(BA158<0,$F158,"") -> 0.6864588113 | BE158: -0.2940279245 | BG158: -0.2940279245 | BH158: =+BG156+4*BG157+BG158 -> -1.371918754 | BI158: =+IF(BH158>0,$F158,"") ->  | BJ158: =+IF(BH158<0,$F158,"") -> 0.6864588113 | BL158: -0.2954758176 | BN158: -0.2954758176 | BO158: =+BN156+4*BN157+BN158 -> -1.378674546 | BP158: =+IF(BO158>0,$F158,"") ->  | BQ158: =+IF(BO158<0,$F158,"") -> 0.6864588113 | BS158: -0.2956925924 | BU158: -0.2956925924 | BV158: =+BU156+4*BU157+BU158 -> -1.379686006 | BW158: =+IF(BV158>0,$F158,"") ->  | BX158: =+IF(BV158<0,$F158,"") -> 0.6864588113
D159: 0.25 | E159: 0.1749092606 | H159: -0.1483184778 | J159: -0.1483184778 | O159: -0.2168785664 | Q159: -0.2168785664 | V159: -0.2481470198 | X159: -0.2481470198 | AC159: -0.2614918075 | AE159: -0.2614918075 | AJ159: -0.2651788147 | AL159: -0.2651788147 | AQ159: -0.2877097969 | AS159: -0.2877097969 | AX159: -0.3400456347 | AZ159: -0.3400456347 | BE159: -0.3495640102 | BG159: -0.3495640102 | BL159: -0.3512853817 | BN159: -0.3512853817 | BS159: -0.3515431011 | BU159: -0.3515431011
D160: 0.3 | E160: 0.1980209401 | F160: =+E158+4*E159+E160 -> 1.044778983 | H160: -0.1679165774 | J160: -0.1679165774 | K160: =+J158+4*J159+J160 -> -0.8859452486 | L160: =+IF(K160>0,$F160,"") ->  | M160: =+IF(K160<0,$F160,"") -> 1.044778983 | O160: -0.2455358708 | Q160: -0.2455358708 | R160: =+Q158+4*Q159+Q160 -> -1.295472677 | S160: =+IF(R160>0,$F160,"") ->  | T160: =+IF(R160<0,$F160,"") -> 1.044778983 | V160: -0.2809359892 | X160: -0.2809359892 | Y160: =+X158+4*X159+X160 -> -1.482247367 | Z160: =+IF(Y160>0,$F160,"") ->  | AA160: =+IF(Y160<0,$F160,"") -> 1.044778983 | AC160: -0.2960440938 | AE160: -0.2960440938 | AF160: =+AE158+4*AE159+AE160 -> -1.561959291 | AG160: =+IF(AF160>0,$F160,"") ->  | AH160: =+IF(AF160<0,$F160,"") -> 1.044778983 | AJ160: -0.3002182846 | AL160: -0.3002182846 | AM160: =+AL158+4*AL159+AL160 -> -1.583982754 | AN160: =+IF(AM160>0,$F160,"") ->  | AO160: =+IF(AM160<0,$F160,"") -> 1.044778983 | AQ160: -0.3257264039 | AS160: -0.3257264039 | AT160: =+AS158+4*AS159+AS160 -> -1.718566232 | AU160: =+IF(AT160>0,$F160,"") ->  | AV160: =+IF(AT160<0,$F160,"") -> 1.044778983 | AX160: -0.3849776509 | AZ160: -0.3849776509 | BA160: =+AZ158+4*AZ159+AZ160 -> -2.031181946 | BB160: =+IF(BA160>0,$F160,"") ->  | BC160: =+IF(BA160<0,$F160,"") -> 1.044778983 | BE160: -0.3957537393 | BG160: -0.3957537393 | BH160: =+BG158+4*BG159+BG160 -> -2.088037704 | BI160: =+IF(BH160>0,$F160,"") ->  | BJ160: =+IF(BH160<0,$F160,"") -> 1.044778983 | BL160: -0.3977025646 | BN160: -0.3977025646 | BO160: =+BN158+4*BN159+BN160 -> -2.098319909 | BP160: =+IF(BO160>0,$F160,"") ->  | BQ160: =+IF(BO160<0,$F160,"") -> 1.044778983 | BS160: -0.3979943378 | BU160: -0.3979943378 | BV160: =+BU158+4*BU159+BU160 -> -2.099859335 | BW160: =+IF(BV160>0,$F160,"") ->  | BX160: =+IF(BV160<0,$F160,"") -> 1.044778983
D161: 0.35 | E161: 0.2162035408 | H161: -0.1833349472 | J161: -0.1833349472 | O161: -0.2680813687 | Q161: -0.2680813687 | V161: -0.3067319828 | X161: -0.3067319828 | AC161: -0.3232273378 | AE161: -0.3232273378 | AJ161: -0.3277848095 | AL161: -0.3277848095 | AQ161: -0.3556351252 | AS161: -0.3556351252 | AX161: -0.4203269168 | AZ161: -0.4203269168 | BE161: -0.432092483 | BG161: -0.432092483 | BL161: -0.4342202527 | BN161: -0.4342202527 | BS161: -0.4345388169 | BU161: -0.4345388169
D162: 0.4 | E162: 0.2292915539 | F162: =+E160+4*E161+E162 -> 1.292126657 | H162: -0.19443324 | J162: -0.19443324 | K162: =+J160+4*J161+J162 -> -1.095689606 | L162: =+IF(K162>0,$F162,"") ->  | M162: =+IF(K162<0,$F162,"") -> 1.292126657 | O162: -0.2843098378 | Q162: -0.2843098378 | R162: =+Q160+4*Q161+Q162 -> -1.602171183 | S162: =+IF(R162>0,$F162,"") ->  | T162: =+IF(R162<0,$F162,"") -> 1.292126657 | V162: -0.3253001904 | X162: -0.3253001904 | Y162: =+X160+4*X161+X162 -> -1.833164111 | Z162: =+IF(Y162>0,$F162,"") ->  | AA162: =+IF(Y162<0,$F162,"") -> 1.292126657 | AC162: -0.3427941018 | AE162: -0.3427941018 | AF162: =+AE160+4*AE161+AE162 -> -1.931747547 | AG162: =+IF(AF162>0,$F162,"") ->  | AH162: =+IF(AF162<0,$F162,"") -> 1.292126657 | AJ162: -0.3476274628 | AL162: -0.3476274628 | AM162: =+AL160+4*AL161+AL162 -> -1.958984985 | AN162: =+IF(AM162>0,$F162,"") ->  | AO162: =+IF(AM162<0,$F162,"") -> 1.292126657 | AQ162: -0.3771637144 | AS162: -0.3771637144 | AT162: =+AS160+4*AS161+AS162 -> -2.125430619 | AU162: =+IF(AT162>0,$F162,"") ->  | AV162: =+IF(AT162<0,$F162,"") -> 1.292126657 | AX162: -0.445771663 | AZ162: -0.445771663 | BA162: =+AZ160+4*AZ161+AZ162 -> -2.512056981 | BB162: =+IF(BA162>0,$F162,"") ->  | BC162: =+IF(BA162<0,$F162,"") -> 1.292126657 | BE162: -0.4582494649 | BG162: -0.4582494649 | BH162: =+BG160+4*BG161+BG162 -> -2.582373136 | BI162: =+IF(BH162>0,$F162,"") ->  | BJ162: =+IF(BH162<0,$F162,"") -> 1.292126657 | BL162: -0.4605060404 | BN162: -0.4605060404 | BO162: =+BN160+4*BN161+BN162 -> -2.595089616 | BP162: =+IF(BO162>0,$F162,"") ->  | BQ162: =+IF(BO162<0,$F162,"") -> 1.292126657 | BS162: -0.4608438892 | BU162: -0.4608438892 | BV162: =+BU160+4*BU161+BU162 -> -2.596993495 | BW162: =+IF(BV162>0,$F162,"") ->  | BX162: =+IF(BV162<0,$F162,"") -> 1.292126657
D163: 0.45 | E163: 0.2371817531 | H163: -0.2011239225 | J163: -0.2011239225 | O163: -0.2940932825 | Q163: -0.2940932825 | V163: -0.3364941627 | X163: -0.3364941627 | AC163: -0.3545900607 | AE163: -0.3545900607 | AJ163: -0.3595897434 | AL163: -0.3595897434 | AQ163: -0.3901423731 | AS163: -0.3901423731 | AX163: -0.4611112041 | AZ163: -0.4611112041 | BE163: -0.4740183822 | BG163: -0.4740183822 | BL163: -0.4763526092 | BN163: -0.4763526092 | BS163: -0.4767020838 | BU163: -0.4767020838
D164: 0.5 | E164: 0.2398177843 | F164: =+E162+4*E163+E164 -> 1.417836351 | H164: -0.203359208 | J164: -0.203359208 | K164: =+J162+4*J163+J164 -> -1.202288138 | L164: =+IF(K164>0,$F164,"") ->  | M164: =+IF(K164<0,$F164,"") -> 1.417836351 | O164: -0.2973618268 | Q164: -0.2973618268 | R164: =+Q162+4*Q163+Q164 -> -1.758044795 | S164: =+IF(R164>0,$F164,"") ->  | T164: =+IF(R164<0,$F164,"") -> 1.417836351 | V164: -0.3402339491 | X164: -0.3402339491 | Y164: =+X162+4*X163+X164 -> -2.01151079 | Z164: =+IF(Y164>0,$F164,"") ->  | AA164: =+IF(Y164<0,$F164,"") -> 1.417836351 | AC164: -0.3585309644 | AE164: -0.3585309644 | AF164: =+AE162+4*AE163+AE164 -> -2.119685309 | AG164: =+IF(AF164>0,$F164,"") ->  | AH164: =+IF(AF164<0,$F164,"") -> 1.417836351 | AJ164: -0.3635862135 | AL164: -0.3635862135 | AM164: =+AL162+4*AL163+AL164 -> -2.14957265 | AN164: =+IF(AM164>0,$F164,"") ->  | AO164: =+IF(AM164<0,$F164,"") -> 1.417836351 | AQ164: -0.3944784042 | AS164: -0.3944784042 | AT164: =+AS162+4*AS163+AS164 -> -2.332211611 | AU164: =+IF(AT164>0,$F164,"") ->  | AV164: =+IF(AT164<0,$F164,"") -> 1.417836351 | AX164: -0.4662359807 | AZ164: -0.4662359807 | BA164: =+AZ162+4*AZ163+AZ164 -> -2.75645246 | BB164: =+IF(BA164>0,$F164,"") ->  | BC164: =+IF(BA164<0,$F164,"") -> 1.417836351 | BE164: -0.4792866088 | BG164: -0.4792866088 | BH164: =+BG162+4*BG163+BG164 -> -2.833609603 | BI164: =+IF(BH164>0,$F164,"") ->  | BJ164: =+IF(BH164<0,$F164,"") -> 1.417836351 | BL164: -0.4816467784 | BN164: -0.4816467784 | BO164: =+BN162+4*BN163+BN164 -> -2.847563256 | BP164: =+IF(BO164>0,$F164,"") ->  | BQ164: =+IF(BO164<0,$F164,"") -> 1.417836351 | BS164: -0.482000137 | BU164: -0.482000137 | BV164: =+BU162+4*BU163+BU164 -> -2.849652361 | BW164: =+IF(BV164>0,$F164,"") ->  | BX164: =+IF(BV164<0,$F164,"") -> 1.417836351
D165: 0.55 | E165: =+E163 -> 0.2371817531 | H165: =+H163 -> -0.2011239225 | J165: -0.2011239225 | O165: =+O163 -> -0.2940932825 | Q165: -0.2940932825 | V165: =+V163 -> -0.3364941627 | X165: -0.3364941627 | AC165: =+AC163 -> -0.3545900607 | AE165: -0.3545900607 | AJ165: =+AJ163 -> -0.3595897434 | AL165: -0.3595897434 | AQ165: =+AQ163 -> -0.3901423731 | AS165: -0.3901423731 | AX165: =+AX163 -> -0.4611112041 | AZ165: -0.4611112041 | BE165: =+BE163 -> -0.4740183822 | BG165: -0.4740183822 | BL165: =+BL163 -> -0.4763526092 | BN165: -0.4763526092 | BS165: =+BS163 -> -0.4767020838 | BU165: -0.4767020838
D166: 0.6 | E166: =+E162 -> 0.2292915539 | F166: =+E164+4*E165+E166 -> 1.417836351 | H166: =+H162 -> -0.19443324 | J166: -0.19443324 | K166: =+J164+4*J165+J166 -> -1.202288138 | L166: =+IF(K166>0,$F166,"") ->  | M166: =+IF(K166<0,$F166,"") -> 1.417836351 | O166: =+O162 -> -0.2843098378 | Q166: -0.2843098378 | R166: =+Q164+4*Q165+Q166 -> -1.758044795 | S166: =+IF(R166>0,$F166,"") ->  | T166: =+IF(R166<0,$F166,"") -> 1.417836351 | V166: =+V162 -> -0.3253001904 | X166: -0.3253001904 | Y166: =+X164+4*X165+X166 -> -2.01151079 | Z166: =+IF(Y166>0,$F166,"") ->  | AA166: =+IF(Y166<0,$F166,"") -> 1.417836351 | AC166: =+AC162 -> -0.3427941018 | AE166: -0.3427941018 | AF166: =+AE164+4*AE165+AE166 -> -2.119685309 | AG166: =+IF(AF166>0,$F166,"") ->  | AH166: =+IF(AF166<0,$F166,"") -> 1.417836351 | AJ166: =+AJ162 -> -0.3476274628 | AL166: -0.3476274628 | AM166: =+AL164+4*AL165+AL166 -> -2.14957265 | AN166: =+IF(AM166>0,$F166,"") ->  | AO166: =+IF(AM166<0,$F166,"") -> 1.417836351 | AQ166: =+AQ162 -> -0.3771637144 | AS166: -0.3771637144 | AT166: =+AS164+4*AS165+AS166 -> -2.332211611 | AU166: =+IF(AT166>0,$F166,"") ->  | AV166: =+IF(AT166<0,$F166,"") -> 1.417836351 | AX166: =+AX162 -> -0.445771663 | AZ166: -0.445771663 | BA166: =+AZ164+4*AZ165+AZ166 -> -2.75645246 | BB166: =+IF(BA166>0,$F166,"") ->  | BC166: =+IF(BA166<0,$F166,"") -> 1.417836351 | BE166: =+BE162 -> -0.4582494649 | BG166: -0.4582494649 | BH166: =+BG164+4*BG165+BG166 -> -2.833609603 | BI166: =+IF(BH166>0,$F166,"") ->  | BJ166: =+IF(BH166<0,$F166,"") -> 1.417836351 | BL166: =+BL162 -> -0.4605060404 | BN166: -0.4605060404 | BO166: =+BN164+4*BN165+BN166 -> -2.847563256 | BP166: =+IF(BO166>0,$F166,"") ->  | BQ166: =+IF(BO166<0,$F166,"") -> 1.417836351 | BS166: =+BS162 -> -0.4608438892 | BU166: -0.4608438892 | BV166: =+BU164+4*BU165+BU166 -> -2.849652361 | BW166: =+IF(BV166>0,$F166,"") ->  | BX166: =+IF(BV166<0,$F166,"") -> 1.417836351
D167: 0.65 | E167: =+E161 -> 0.2162035408 | H167: =+H161 -> -0.1833349472 | J167: -0.1833349472 | O167: =+O161 -> -0.2680813687 | Q167: -0.2680813687 | V167: =+V161 -> -0.3067319828 | X167: -0.3067319828 | AC167: =+AC161 -> -0.3232273378 | AE167: -0.3232273378 | AJ167: =+AJ161 -> -0.3277848095 | AL167: -0.3277848095 | AQ167: =+AQ161 -> -0.3556351252 | AS167: -0.3556351252 | AX167: =+AX161 -> -0.4203269168 | AZ167: -0.4203269168 | BE167: =+BE161 -> -0.432092483 | BG167: -0.432092483 | BL167: =+BL161 -> -0.4342202527 | BN167: -0.4342202527 | BS167: =+BS161 -> -0.4345388169 | BU167: -0.4345388169
D168: 0.7 | E168: =+E160 -> 0.1980209401 | F168: =+E166+4*E167+E168 -> 1.292126657 | H168: =+H160 -> -0.1679165774 | J168: -0.1679165774 | K168: =+J166+4*J167+J168 -> -1.095689606 | L168: =+IF(K168>0,$F168,"") ->  | M168: =+IF(K168<0,$F168,"") -> 1.292126657 | O168: =+O160 -> -0.2455358708 | Q168: -0.2455358708 | R168: =+Q166+4*Q167+Q168 -> -1.602171183 | S168: =+IF(R168>0,$F168,"") ->  | T168: =+IF(R168<0,$F168,"") -> 1.292126657 | V168: =+V160 -> -0.2809359892 | X168: -0.2809359892 | Y168: =+X166+4*X167+X168 -> -1.833164111 | Z168: =+IF(Y168>0,$F168,"") ->  | AA168: =+IF(Y168<0,$F168,"") -> 1.292126657 | AC168: =+AC160 -> -0.2960440938 | AE168: -0.2960440938 | AF168: =+AE166+4*AE167+AE168 -> -1.931747547 | AG168: =+IF(AF168>0,$F168,"") ->  | AH168: =+IF(AF168<0,$F168,"") -> 1.292126657 | AJ168: =+AJ160 -> -0.3002182846 | AL168: -0.3002182846 | AM168: =+AL166+4*AL167+AL168 -> -1.958984985 | AN168: =+IF(AM168>0,$F168,"") ->  | AO168: =+IF(AM168<0,$F168,"") -> 1.292126657 | AQ168: =+AQ160 -> -0.3257264039 | AS168: -0.3257264039 | AT168: =+AS166+4*AS167+AS168 -> -2.125430619 | AU168: =+IF(AT168>0,$F168,"") ->  | AV168: =+IF(AT168<0,$F168,"") -> 1.292126657 | AX168: =+AX160 -> -0.3849776509 | AZ168: -0.3849776509 | BA168: =+AZ166+4*AZ167+AZ168 -> -2.512056981 | BB168: =+IF(BA168>0,$F168,"") ->  | BC168: =+IF(BA168<0,$F168,"") -> 1.292126657 | BE168: =+BE160 -> -0.3957537393 | BG168: -0.3957537393 | BH168: =+BG166+4*BG167+BG168 -> -2.582373136 | BI168: =+IF(BH168>0,$F168,"") ->  | BJ168: =+IF(BH168<0,$F168,"") -> 1.292126657 | BL168: =+BL160 -> -0.3977025646 | BN168: -0.3977025646 | BO168: =+BN166+4*BN167+BN168 -> -2.595089616 | BP168: =+IF(BO168>0,$F168,"") ->  | BQ168: =+IF(BO168<0,$F168,"") -> 1.292126657 | BS168: =+BS160 -> -0.3979943378 | BU168: -0.3979943378 | BV168: =+BU166+4*BU167+BU168 -> -2.596993495 | BW168: =+IF(BV168>0,$F168,"") ->  | BX168: =+IF(BV168<0,$F168,"") -> 1.292126657
D169: 0.75 | E169: =+E159 -> 0.1749092606 | H169: =+H159 -> -0.1483184778 | J169: -0.1483184778 | O169: =+O159 -> -0.2168785664 | Q169: -0.2168785664 | V169: =+V159 -> -0.2481470198 | X169: -0.2481470198 | AC169: =+AC159 -> -0.2614918075 | AE169: -0.2614918075 | AJ169: =+AJ159 -> -0.2651788147 | AL169: -0.2651788147 | AQ169: =+AQ159 -> -0.2877097969 | AS169: -0.2877097969 | AX169: =+AX159 -> -0.3400456347 | AZ169: -0.3400456347 | BE169: =+BE159 -> -0.3495640102 | BG169: -0.3495640102 | BL169: =+BL159 -> -0.3512853817 | BN169: -0.3512853817 | BS169: =+BS159 -> -0.3515431011 | BU169: -0.3515431011
D170: 0.8 | E170: =+E158 -> 0.1471210004 | F170: =+E168+4*E169+E170 -> 1.044778983 | H170: =+H158 -> -0.12475476 | J170: -0.12475476 | K170: =+J168+4*J169+J170 -> -0.8859452486 | L170: =+IF(K170>0,$F170,"") ->  | M170: =+IF(K170<0,$F170,"") -> 1.044778983 | O170: =+O158 -> -0.1824225404 | Q170: -0.1824225404 | R170: =+Q168+4*Q169+Q170 -> -1.295472677 | S170: =+IF(R170>0,$F170,"") ->  | T170: =+IF(R170<0,$F170,"") -> 1.044778983 | V170: =+V158 -> -0.2087232984 | X170: -0.2087232984 | Y170: =+X168+4*X169+X170 -> -1.482247367 | Z170: =+IF(Y170>0,$F170,"") ->  | AA170: =+IF(Y170<0,$F170,"") -> 1.044778983 | AC170: =+AC158 -> -0.2199479672 | AE170: -0.2199479672 | AF170: =+AE168+4*AE169+AE170 -> -1.561959291 | AG170: =+IF(AF170>0,$F170,"") ->  | AH170: =+IF(AF170<0,$F170,"") -> 1.044778983 | AJ170: =+AJ158 -> -0.2230492106 | AL170: -0.2230492106 | AM170: =+AL168+4*AL169+AL170 -> -1.583982754 | AN170: =+IF(AM170>0,$F170,"") ->  | AO170: =+IF(AM170<0,$F170,"") -> 1.044778983 | AQ170: =+AQ158 -> -0.2420006408 | AS170: -0.2420006408 | AT170: =+AS168+4*AS169+AS170 -> -1.718566232 | AU170: =+IF(AT170>0,$F170,"") ->  | AV170: =+IF(AT170<0,$F170,"") -> 1.044778983 | AX170: =+AX158 -> -0.2860217566 | AZ170: -0.2860217566 | BA170: =+AZ168+4*AZ169+AZ170 -> -2.031181946 | BB170: =+IF(BA170>0,$F170,"") ->  | BC170: =+IF(BA170<0,$F170,"") -> 1.044778983 | BE170: =+BE158 -> -0.2940279245 | BG170: -0.2940279245 | BH170: =+BG168+4*BG169+BG170 -> -2.088037704 | BI170: =+IF(BH170>0,$F170,"") ->  | BJ170: =+IF(BH170<0,$F170,"") -> 1.044778983 | BL170: =+BL158 -> -0.2954758176 | BN170: -0.2954758176 | BO170: =+BN168+4*BN169+BN170 -> -2.098319909 | BP170: =+IF(BO170>0,$F170,"") ->  | BQ170: =+IF(BO170<0,$F170,"") -> 1.044778983 | BS170: =+BS158 -> -0.2956925924 | BU170: -0.2956925924 | BV170: =+BU168+4*BU169+BU170 -> -2.099859335 | BW170: =+IF(BV170>0,$F170,"") ->  | BX170: =+IF(BV170<0,$F170,"") -> 1.044778983
D171: 0.85 | E171: =+E157 -> 0.1150333403 | H171: =+H157 -> -0.09754526355 | J171: -0.09754526355 | O171: =+O157 -> -0.1426354776 | Q171: -0.1426354776 | V171: =+V157 -> -0.1631999385 | X171: -0.1631999385 | AC171: =+AC157 -> -0.1719764635 | AE171: -0.1719764635 | AJ171: =+AJ157 -> -0.1744013137 | AL171: -0.1744013137 | AQ171: =+AQ157 -> -0.1892193635 | AS171: -0.1892193635 | AX171: =+AX157 -> -0.2236393034 | AZ171: -0.2236393034 | BE171: =+BE157 -> -0.2298992951 | BG171: -0.2298992951 | BL171: =+BL157 -> -0.2310313971 | BN171: -0.2310313971 | BS171: =+BS157 -> -0.2312008925 | BU171: -0.2312008925
D172: 0.9 | E172: =+E156 -> 0.0792044497 | F172: =+E170+4*E171+E172 -> 0.6864588113 | H172: =+H156 -> -0.06716330153 | J172: -0.06716330153 | K172: =+J170+4*J171+J172 -> -0.5820991157 | L172: =+IF(K172>0,$F172,"") ->  | M172: =+IF(K172<0,$F172,"") -> 0.6864588113 | O172: =+O156 -> -0.09820947985 | Q172: -0.09820947985 | R172: =+Q170+4*Q171+Q172 -> -0.8511739308 | S172: =+IF(R172>0,$F172,"") ->  | T172: =+IF(R172<0,$F172,"") -> 0.6864588113 | V172: =+V156 -> -0.1123688253 | X172: -0.1123688253 | Y172: =+X170+4*X171+X172 -> -0.9738918777 | Z172: =+IF(Y172>0,$F172,"") ->  | AA172: =+IF(Y172<0,$F172,"") -> 0.6864588113 | AC172: =+AC156 -> -0.1184117676 | AE172: -0.1184117676 | AF172: =+AE170+4*AE171+AE172 -> -1.026265589 | AG172: =+IF(AF172>0,$F172,"") ->  | AH172: =+IF(AF172<0,$F172,"") -> 0.6864588113 | AJ172: =+AJ156 -> -0.1200813611 | AL172: -0.1200813611 | AM172: =+AL170+4*AL171+AL172 -> -1.040735826 | AN172: =+IF(AM172>0,$F172,"") ->  | AO172: =+IF(AM172<0,$F172,"") -> 0.6864588113 | AQ172: =+AQ156 -> -0.1302841031 | AS172: -0.1302841031 | AT172: =+AS170+4*AS171+AS172 -> -1.129162198 | AU172: =+IF(AT172>0,$F172,"") ->  | AV172: =+IF(AT172<0,$F172,"") -> 0.6864588113 | AX172: =+AX156 -> -0.153983427 | AZ172: -0.153983427 | BA172: =+AZ170+4*AZ171+AZ172 -> -1.334562397 | BB172: =+IF(BA172>0,$F172,"") ->  | BC172: =+IF(BA172<0,$F172,"") -> 0.6864588113 | BE172: =+BE156 -> -0.1582936487 | BG172: -0.1582936487 | BH172: =+BG170+4*BG171+BG172 -> -1.371918754 | BI172: =+IF(BH172>0,$F172,"") ->  | BJ172: =+IF(BH172<0,$F172,"") -> 0.6864588113 | BL172: =+BL156 -> -0.1590731402 | BN172: -0.1590731402 | BO172: =+BN170+4*BN171+BN172 -> -1.378674546 | BP172: =+IF(BO172>0,$F172,"") ->  | BQ172: =+IF(BO172<0,$F172,"") -> 0.6864588113 | BS172: =+BS156 -> -0.1591898437 | BU172: -0.1591898437 | BV172: =+BU170+4*BU171+BU172 -> -1.379686006 | BW172: =+IF(BV172>0,$F172,"") ->  | BX172: =+IF(BV172<0,$F172,"") -> 0.6864588113
D173: 0.95 | E173: =+E155 -> 0.0404568109 | H173: =+H155 -> -0.03430631739 | J173: -0.03430631739 | O173: =+O155 -> -0.05016438306 | Q173: -0.05016438306 | V173: =+V155 -> -0.05739682977 | X173: -0.05739682977 | AC173: =+AC155 -> -0.06048350197 | AE173: -0.06048350197 | AJ173: =+AJ155 -> -0.06133631302 | AL173: -0.06133631302 | AQ173: =+AQ155 -> -0.06654776772 | AS173: -0.06654776772 | AX173: =+AX155 -> -0.07865313644 | AZ173: -0.07865313644 | BE173: =+BE155 -> -0.08085475295 | BG173: -0.08085475295 | BL173: =+BL155 -> -0.08125290913 | BN173: -0.08125290913 | BS173: =+BS155 -> -0.08131252006 | BU173: -0.08131252006
D174: 1 | E174: =+E154 -> 0 | F174: =+E172+4*E173+E174 -> 0.2410316933 | H174: =+H154 -> 0 | J174: 0 | K174: =+J172+4*J173+J174 -> -0.2043885711 | L174: =+IF(K174>0,$F174,"") ->  | M174: =+IF(K174<0,$F174,"") -> 0.2410316933 | O174: =+O154 -> 0 | Q174: 0 | R174: =+Q172+4*Q173+Q174 -> -0.2988670121 | S174: =+IF(R174>0,$F174,"") ->  | T174: =+IF(R174<0,$F174,"") -> 0.2410316933 | V174: =+V154 -> 0 | X174: 0 | Y174: =+X172+4*X173+X174 -> -0.3419561444 | Z174: =+IF(Y174>0,$F174,"") ->  | AA174: =+IF(Y174<0,$F174,"") -> 0.2410316933 | AC174: =+AC154 -> 0 | AE174: 0 | AF174: =+AE172+4*AE173+AE174 -> -0.3603457755 | AG174: =+IF(AF174>0,$F174,"") ->  | AH174: =+IF(AF174<0,$F174,"") -> 0.2410316933 | AJ174: =+AJ154 -> 0 | AL174: 0 | AM174: =+AL172+4*AL173+AL174 -> -0.3654266132 | AN174: =+IF(AM174>0,$F174,"") ->  | AO174: =+IF(AM174<0,$F174,"") -> 0.2410316933 | AQ174: =+AQ154 -> 0 | AS174: 0 | AT174: =+AS172+4*AS173+AS174 -> -0.3964751739 | AU174: =+IF(AT174>0,$F174,"") ->  | AV174: =+IF(AT174<0,$F174,"") -> 0.2410316933 | AX174: =+AX154 -> 0 | AZ174: 0 | BA174: =+AZ172+4*AZ173+AZ174 -> -0.4685959728 | BB174: =+IF(BA174>0,$F174,"") ->  | BC174: =+IF(BA174<0,$F174,"") -> 0.2410316933 | BE174: =+BE154 -> 0 | BG174: 0 | BH174: =+BG172+4*BG173+BG174 -> -0.4817126605 | BI174: =+IF(BH174>0,$F174,"") ->  | BJ174: =+IF(BH174<0,$F174,"") -> 0.2410316933 | BL174: =+BL154 -> 0 | BN174: 0 | BO174: =+BN172+4*BN173+BN174 -> -0.4840847767 | BP174: =+IF(BO174>0,$F174,"") ->  | BQ174: =+IF(BO174<0,$F174,"") -> 0.2410316933 | BS174: =+BS154 -> 0 | BU174: 0 | BV174: =+BU172+4*BU173+BU174 -> -0.484439924 | BW174: =+IF(BV174>0,$F174,"") ->  | BX174: =+IF(BV174<0,$F174,"") -> 0.2410316933
K175: =+SUMIF(K154:K174,">0") -> 0 | L175: =+SUM(L154:L174) -> 0 | M175: =+SUM(M154:M174) -> 9.364464991 | R175: =+SUMIF(R154:R174,">0") -> 0 | S175: =+SUM(S154:S174) -> 0 | T175: =+SUM(T154:T174) -> 9.364464991 | Y175: =+SUMIF(Y154:Y174,">0") -> 0 | Z175: =+SUM(Z154:Z174) -> 0 | AA175: =+SUM(AA154:AA174) -> 9.364464991 | AF175: =+SUMIF(AF154:AF174,">0") -> 0 | AG175: =+SUM(AG154:AG174) -> 0 | AH175: =+SUM(AH154:AH174) -> 9.364464991 | AM175: =+SUMIF(AM154:AM174,">0") -> 0 | AN175: =+SUM(AN154:AN174) -> 0 | AO175: =+SUM(AO154:AO174) -> 9.364464991 | AT175: =+SUMIF(AT154:AT174,">0") -> 0 | AU175: =+SUM(AU154:AU174) -> 0 | AV175: =+SUM(AV154:AV174) -> 9.364464991 | BA175: =+SUMIF(BA154:BA174,">0") -> 0 | BB175: =+SUM(BB154:BB174) -> 0 | BC175: =+SUM(BC154:BC174) -> 9.364464991 | BH175: =+SUMIF(BH154:BH174,">0") -> 0 | BI175: =+SUM(BI154:BI174) -> 0 | BJ175: =+SUM(BJ154:BJ174) -> 9.364464991 | BO175: =+SUMIF(BO154:BO174,">0") -> 0 | BP175: =+SUM(BP154:BP174) -> 0 | BQ175: =+SUM(BQ154:BQ174) -> 9.364464991 | BV175: =+SUMIF(BV154:BV174,">0") -> 0 | BW175: =+SUM(BW154:BW174) -> 0 | BX175: =+SUM(BX154:BX174) -> 9.364464991
K176: =+SUMIF(K154:K174,"<0") -> -7.940821359 | R176: =+SUMIF(R154:R174,"<0") -> -11.6114592 | Y176: =+SUMIF(Y154:Y174,"<0") -> -13.28554058 | AF176: =+SUMIF(AF154:AF174,"<0") -> -14.00000702 | AM176: =+SUMIF(AM154:AM174,"<0") -> -14.19740566 | AT176: =+SUMIF(AT154:AT174,"<0") -> -15.40369167 | BA176: =+SUMIF(BA154:BA174,"<0") -> -18.20569952 | BH176: =+SUMIF(BH154:BH174,"<0") -> -18.71530371 | BO176: =+SUMIF(BO154:BO174,"<0") -> -18.80746421 | BV176: =+SUMIF(BV154:BV174,"<0") -> -18.82126224
